{"text_format":"1","workbook":"xlsx","n_sheets":7,"sheets":["RegistroInf","Edos_Mpios","Filtro_Edo_Mpios","Diagrama","Solicitud","Presupuesto y Programa de Obra","Hoja1"],"not_rendered":{"charts":0,"images":6,"macros":1,"external_links":0,"defined_names":9,"comments":0,"pivot_tables":0},"unopened":[],"bounds":{"document_bytes":16777216,"sheet_cells":100000,"rows_first":2000,"rows_last":500,"rows_between":2000,"halvings":0,"cell_chars":16384,"cell_head_chars":4096},"cells_cut":0,"cells_raw":0,"read":"whole","date_system":"1900"}

{"sheet":"RegistroInf","index":0,"n_rows":96,"n_cols":59,"rows_kept":96,"cut":false,"hidden":true,"merged":[[6,48,6,49],[6,45,6,46],[6,42,6,43],[6,39,6,40],[7,15,7,16],[6,26,6,28],[6,30,6,31],[6,33,6,34],[6,36,6,37]]}
[null,"Nombre","dsf",null,"Presupuesto Paramétrico",{"$f":"+W32","v":{"$error":"#VALUE!"}}]
[null,"Direccion","dsfdsf",null,"Valor Único",{"$f":"+W31","v":{"$error":"#VALUE!"}}]
[null,"M2","12",null,"Valor Terreno","12"]
[null,"Estado","Baja California Sur",null,"Valor Terreno + Presupuesto",{"$f":"+F1+F3","v":{"$error":"#VALUE!"}}]
[null,"Municipio","La Paz",null,"Valor Avalúo",1900,null,null,null,null,null,null,null,null,null,null,null,null,null,null,null,null,"Monto Paramétrico",{"$f":"+X6*X7","v":181763.98998330551}]
[null,"FIC",{"$f":"+Filtro_Edo_Mpios!K2","v":0.98699999999999999},null,null,null,null,null,null,null,null,null,null,null,null,null,null,null,null,null,null,null,"Unitario Modelo",{"$f":"+IF($T$7=\"A\",AA24,IF($T$7=\"B\",AE24,IF($T$7=\"C\",AH24,IF($T$7=\"D\",AK24,IF($T$7=\"E\",AN24,IF($T$7=\"F\",AQ24,IF($T$7=\"G\",AT24,IF($T$7=\"H\",AW24))))))))","v":15146.99916527546}]
[null,null,null,null,null,null,null,null,null,null,null,null,null,null,null,null,null,null,"Modelo Vivienda:","B",null,null,"SUPERFICIE DEL CLIENTE",{"$f":"+C3","v":"12"},null,null,"A",null,null,null,"B",null,null,"C",null,null,"D",null,null,"E",null,null,"F",null,null,"G",null,null,"H"]
[null,"Carpintería / GUARDA","",null,null,null,null,null,null,null,"Cimentación",null,"FRR",{"$f":"+M10*M11*M12*M13*M14*M15","v":1},null,"ORIGEN",null,null,"Concepto","Datos",null,"FRR","Monto","% FINAL",null,"CIMENTACION",71750.2,1709.9666348903718,0.16737661368684792,null,124244.44,0.13693786076957012,null,108223.3,7.1375351521296287E-2,null,263426.07,0.11464686491418785,null,350347.89,0.13378157361047316,null,657278.29,0.12107176650783423,null,994135.47,0.11729187589470502,null,1345380.18,0.10370563562639989]
[null,null,"NO APLICA","Económica","Media","Alta","Residencial","Plus","FRR",null,null,"PARAMETRO","SI",null,null,"CIMENTACION",{"$f":"N8","v":1},null,"Cimentacion",{"$f":"+U9*$X$5","v":24890.371953255428},{"$f":"+IF($T$7=\"A\",AC8,IF($T$7=\"B\",AF8,IF($T$7=\"C\",AI8,IF($T$7=\"D\",AL8,IF($T$7=\"E\",AO8,IF($T$7=\"F\",AR8,IF($T$7=\"G\",AU8,IF($T$7=\"H\",AX8))))))))","v":0.13693786076957012},{"$f":"+Q9","v":1},{"$f":"V9*T9","v":24890.371953255428},{"$f":"+W9/$W$28","v":{"$error":"#VALUE!"}},null,"ESTRUCTURA DE CONCRETO",40286.9,960.12631077216395,9.3980015358015367E-2,null,59711.14,6.5811522638053732E-2,null,233573.24,0.15404605210678385,null,299291.09000000003,0.13025584432569656,null,491007.38,0.18749289442204306,null,869571,0.16017644074929649,null,1329769.24,0.15689122194450644,null,2130519.88,0.16422638125238417]
[null,"PARAMETRO","Losacero",0.95,1,1.1000000000000001,1.1499999999999999,1.2,{"$f":"PRODUCT(I11,I12,I13,I14)","v":0},null,"Mampostería",1.02,1,null,null,"ESTRUCTURA DE CONCRETO",{"$f":"N16","v":1},null,"Estructura De Concreto",{"$f":"+U10*$X$5","v":11962.164941569283},{"$f":"+IF($T$7=\"A\",AC9,IF($T$7=\"B\",AF9,IF($T$7=\"C\",AI9,IF($T$7=\"D\",AL9,IF($T$7=\"E\",AO9,IF($T$7=\"F\",AR9,IF($T$7=\"G\",AU9,IF($T$7=\"H\",AX9))))))))","v":6.5811522638053732E-2},{"$f":"+Q10","v":1},{"$f":"V10*T10","v":11962.164941569283},{"$f":"+W10/$W$28","v":{"$error":"#VALUE!"}},null,"ALBAÑILERIA",33480.74,797.92040038131552,7.8102819015553923E-2,null,145199.57,0.16003386952737242,null,200001.81,0.13190504719081297,null,257338.18,0.1119973264594615,null,339527.79,0.12964988038228592,null,420900,7.7530487920341049E-2,null,886976.38,0.10464883974464238,null,1323805.82,0.10204262412207347]
[null,"Puertas",null,null,null,null,null,null,{"$f":"IF(SUM(C11:H11)=0,\"\",SUM(C11:H11))","v":""},null,"Zapatas",1,1,null,null,"ALBAÑILERIA",{"$f":"N24","v":1},null,"Albañileria",{"$f":"+U11*$X$5","v":29088.394657762939},0.16003386952737242,1,29088.394657762939,{"$error":"#VALUE!"},null,"INSTALACION HIDRAULICA",12017.84,286.41182078169686,2.8034839805747561E-2,null,57207.5,6.3052098508192253E-2,null,67425.210000000006,4.4468225097065252E-2,null,73502.5,3.1989359247378564E-2,null,120112.71,4.5865460626631473E-2,null,132331.09,2.4375609348373878E-2,null,200140.78,2.3613368839187944E-2,null,188558.49,1.4534611367772765E-2,null,null,null,{"$f":"IF(C11<>\"\",1,0)","v":0},0,0,0,0,0]
[null,"Clósets",null,null,null,null,null,null,{"$f":"IF(SUM(C12:H12)=0,\"\",SUM(C12:H12))","v":""},null,"Pilotes",1.03,1,null,null,"INSTALACION HIDRAULICA",{"$f":"I41","v":""},null,"Instalacion Hidraulica",11460.601001669449,6.3052098508192253E-2,"",{"$error":"#VALUE!"},{"$error":"#VALUE!"},null,"INSTALACION SANITARIA",17780.32,423.7445185891325,4.1477372214551819E-2,null,22006.55,2.425484697680301E-2,null,33275.64,2.1945925711894826E-2,null,48753.25,2.121812494442038E-2,null,50611.78,1.9326286142688266E-2,null,88755.68,1.6348945535998232E-2,null,134236.04,1.583767747898248E-2,null,167872.39,1.294006940779587E-2,null,null,null,0,0,0,0,0,0]
[null,"Cocina integral",null,null,null,null,null,null,{"$f":"IF(SUM(C13:H13)=0,\"\",SUM(C13:H13))","v":""},null,"MIXTO",1.04,1,null,null,"INSTALACION SANITARIA",{"$f":"I40","v":""},null,"Instalacion Sanitaria",4408.65776293823,2.425484697680301E-2,"",{"$error":"#VALUE!"},{"$f":"+W13/$W$28","v":{"$error":"#VALUE!"}},null,"INSTALACION ELECTRICA",15128.95,360.55648236415635,3.5292339528498015E-2,null,54920.67,6.0531634750267342E-2,null,58899.08,3.8845078086520657E-2,null,82026.070000000007,3.5698941136432391E-2,null,120475.4,4.6003955078339979E-2,null,112056.31,2.0640960771805637E-2,null,169476.45,1.9995474802317621E-2,null,190217.84,1.4662518667906075E-2,null,null,null,0,0,0,0,0,0]
[null,"Otro",null,null,null,null,null,null,{"$f":"IF(SUM(C14:H14)=0,\"\",SUM(C14:H14))","v":""},null,"DESCONOCIDO",1,1,null,null,"INSTALACION ELECTRICA",{"$f":"I39","v":""},null,"Instalacion Electrica",11002.471452420701,6.0531634750267342E-2,"",{"$f":"V14*T14","v":{"$error":"#VALUE!"}},{"$error":"#VALUE!"},null,"INSTALACION DE GAS",9292.02,221.44947569113441,2.1676132497337495E-2,null,10471.24,1.1541033185909592E-2,null,10219.93,6.7402407455052797E-3,null,10437.41,4.5425129499293421E-3,null,10219.93,3.9025162035052725E-3,null,6789.61,1.250657581584288E-3,null,10269.06,1.2115826740145179E-3,null,15403.6,1.1873522091984539E-3,null,null,null,0,0,0,0,0,0]
[null,"Ventanería / CANCELERIA","",null,null,null,null,null,null,null,"OTRO",1.03,1,null,null,"INSTALACION DE GAS",{"$f":"I42","v":""},null,"Instalacion De Gas",2097.7442404006674,1.1541033185909592E-2,"",{"$error":"#VALUE!"},{"$error":"#VALUE!"},null,"ACABADOS INTERIORES",60346.6,1438.1935176358436,0.14077465366667602,null,185374.31,0.2043130578159886,null,422962.11,0.27895166088484813,null,681161.75,0.29645152105469968,null,588102.41,0.22456897301111664,null,1167393.57,0.21503585905718417,null,1765591.51,0.20831118747997682,null,3239955.4,0.24974474810397962]
[null,null,"NO APLICA","Económica","Media","Alta","Residencial","Plus","FRR",null,"Losas de entrepiso (ESTRUCTURA DE CONCRETO)",null,"FRR",{"$f":"+M18*M19*M20*M21*M22*M23*M64*M65*M66*M67","v":1},null,"ACABADOS INTERIORES",{"$f":"I26","v":0},null,"Acabados Interiores",{"$f":"+U16*$X$5","v":37136.756594323873},{"$f":"+IF($T$7=\"A\",AC15,IF($T$7=\"B\",AF15,IF($T$7=\"C\",AI15,IF($T$7=\"D\",AL15,IF($T$7=\"E\",AO15,IF($T$7=\"F\",AR15,IF($T$7=\"G\",AU15,IF($T$7=\"H\",AX15))))))))","v":0.2043130578159886},{"$f":"+Q16","v":0},0,{"$error":"#VALUE!"},null,"ACABADOS EXTERIORES",50946.32,1214.1639656816014,0.1188459756405771,null,95103.09,0.1048192876653144,null,111272.51,7.338636426635442E-2,null,241113.46,0.10493609185154847,null,240434.35,9.181070190835533E-2,null,604744.43999999994,0.11139494298007463,null,914628.49,0.10791134063332582,null,1385296.9,0.10678252711124475]
[null,"PARAMETRO",1,0.95,1,1.1000000000000001,1.1499999999999999,1.2,{"$f":"PRODUCT(I18,I19,I20,I21,I22,I23)","v":0},null,null,"PARAMETRO","SI",null,null,"ACABADOS EXTERIORES",{"$f":"I36","v":1.02},null,"Acabados Exteriores",{"$f":"+U17*$X$5","v":19052.371953255424},{"$f":"+IF($T$7=\"A\",AC16,IF($T$7=\"B\",AF16,IF($T$7=\"C\",AI16,IF($T$7=\"D\",AL16,IF($T$7=\"E\",AO16,IF($T$7=\"F\",AR16,IF($T$7=\"G\",AU16,IF($T$7=\"H\",AX16))))))))","v":0.1048192876653144},{"$f":"+Q17","v":1.02},19433.419392320531,{"$error":"#VALUE!"},null,"ACCESOS",16127.49,384.35390848427073,3.7621702287498893E-2,null,35519.800000000003,3.9148676809706552E-2,null,71697.7,4.7286014571431882E-2,null,73223.42,3.1867899563983323E-2,null,87482.25,3.3405404747791731E-2,null,120644.91,2.2222995337148096E-2,null,182463.42,2.1527726813694154E-2,null,366164.8,2.8224998325762161E-2]
[null,"Cristales",null,null,null,null,null,null,{"$f":"IF(SUM(C18:H18)=0,\"\",SUM(C18:H18))","v":""},null,"Losa Maciza de concreto",1.02,1,null,null,"ACCESOS",{"$f":"I45","v":""},null,"Accesos",7115.8196994991667,3.9148676809706552E-2,"",{"$f":"V18*T18","v":{"$error":"#VALUE!"}},{"$error":"#VALUE!"},null,"CANCELERIA",10002.77,238.38822688274547,2.3334147780610954E-2,null,28521.91,3.1435848078692367E-2,null,38895.760000000002,2.5652503136459295E-2,null,62287.85,2.7108580121721421E-2,null,67746.63,2.5869288860870514E-2,null,132052.82999999999,2.4324353388362675E-2,null,199719.76,2.3563695301647647E-2,null,329103.98,2.5368247533628749E-2,null,null,null,{"$f":"IF(C18<>\"\",1,0)","v":0},{"$f":"IF(D18<>\"\",1,0)","v":0},{"$f":"IF(E18<>\"\",1,0)","v":0},{"$f":"IF(F18<>\"\",1,0)","v":0},{"$f":"IF(G18<>\"\",1,0)","v":0},{"$f":"IF(H18<>\"\",1,0)","v":0}]
[null,"Cancelería",null,null,null,null,null,null,"",null,"Vigueta y bovedilla",1,1,null,null,"CANCELERIA",{"$f":"I17","v":0},null,"Canceleria",5713.9051752921532,3.1435848078692367E-2,0,0,{"$error":"#VALUE!"},null,"MOBILIARIO FIJO",76564.06,1824.6916110581506,0.17860623514522114,null,56405.61,6.2168283496651211E-2,null,86652.44,5.7148953738964114E-2,null,141978.12,6.1790947055507271E-2,null,117705.85,4.4946392673174969E-2,null,424811.21,7.8250939380685364E-2,null,642487.96,7.5803168021117084E-2,null,849230.34,6.5461029909719429E-2,null,null,null,0,0,0,0,0,0]
[null,"Portones/rejas",null,null,null,null,null,null,"",null,"Losacero",1.03,1,null,null,"MOBILIARIO FIJO",{"$f":"I48","v":""},null,"Mobiliario Fijo",11299.955258764609,6.2168283496651211E-2,"",{"$error":"#VALUE!"},{"$error":"#VALUE!"},null,"GUARDA",14950.97,356.31482364156335,3.487715337286381E-2,null,32619.42,3.5951979777478417E-2,null,73157.2,4.8248582942063085E-2,null,63178,2.7495986375033268E-2,null,35030.9,1.3376672332723693E-2,null,267477.38,4.9269783271690362E-2,null,404541.25,4.7729312071813357E-2,null,457990.6,3.5303185664528121E-2,null,null,null,0,0,0,0,0,0]
[null,"Protecciones",null,null,null,null,null,null,"",null,"MIXTO",1.04,1,null,null,"CARPINTERIA",{"$f":"I10","v":0},null,"Guarda",6534.7752921535894,3.5951979777478417E-2,0,0,{"$error":"#VALUE!"},null,"EQUIPOS",null,null,null,null,null,null,null,null,null,null,null,null,null,null,null,null,11422.79,2.1040971302247391E-3,null,17275.3,2.0382054607143208E-3,null,68324.289999999994,5.266625767574841E-3,null,null,null,0,0,0,0,0,0]
[null,"Barandales",null,null,null,null,null,null,"",null,"DESCONOCIDO",1,1,null,null,"EQUIPO",{"$f":"+IF($T$7=\"A\",\"\",IF($T$7=\"B\",\"\",IF($T$7=\"C\",\"\",IF($T$7=\"D\",\"\",IF($T$7=\"E\",1,IF($T$7=\"F\",1,IF($T$7=\"G\",1,IF($T$7=\"H\",1))))))))","v":""},null,"Equipo",{"$f":"+IF($T$7=\"E\",U22*$X$5,IF($T$7=\"F\",U22*$X$5,IF($T$7=\"G\",U22*$X$5,IF($T$7=\"H\",U22*$X$5,IF($T$7=\"A\",\"\",IF($T$7=\"B\",\"\",IF($T$7=\"C\",\"\",IF($T$7=\"D\",\"\"))))))))","v":""},{"$f":"+IF($T$7=\"A\",\"\",IF($T$7=\"B\",\"\",IF($T$7=\"C\",\"\",IF($T$7=\"D\",\"\",IF($T$7=\"E\",AO21,IF($T$7=\"F\",AR21,IF($T$7=\"G\",AU21,IF($T$7=\"H\",AX21))))))))","v":""},"",{"$f":"IF(Q22=\"\",,V22*T22)","v":0},{"$f":"+IF(Q22=\"\",\"\",W22/$W$28)","v":""},null,"ACCESORIAS",null,null,null,null,null,null,null,null,null,null,null,null,null,null,null,null,412602.97,7.6002161039396152E-2,null,624029.11,7.3625322839354315E-2,null,915242.69,7.0549444930031652E-2,null,null,null,0,0,0,0,0,0]
[null,"Otro",null,null,null,null,null,null,"",null,"OTRO",1.03,1,null,null,"ACCESORIAS",{"$f":"+IF($T$7=\"A\",\"\",IF($T$7=\"B\",\"\",IF($T$7=\"C\",\"\",IF($T$7=\"D\",\"\",IF($T$7=\"E\",1,IF($T$7=\"F\",1,IF($T$7=\"G\",1,IF($T$7=\"H\",1))))))))","v":""},null,"Accesorias",{"$f":"+IF($T$7=\"E\",U23*$X$5,IF($T$7=\"F\",U23*$X$5,IF($T$7=\"G\",U23*$X$5,IF($T$7=\"H\",U23*$X$5,IF($T$7=\"A\",\"\",IF($T$7=\"B\",\"\",IF($T$7=\"C\",\"\",IF($T$7=\"D\",\"\"))))))))","v":""},{"$f":"+IF($T$7=\"A\",\"\",IF($T$7=\"B\",\"\",IF($T$7=\"C\",\"\",IF($T$7=\"D\",\"\",IF($T$7=\"E\",AO22,IF($T$7=\"F\",AR22,IF($T$7=\"G\",AU22,IF($T$7=\"H\",AX22))))))))","v":""},"",{"$f":"IF(Q23=\"\",,V23*T23)","v":0},{"$f":"+IF(Q23=\"\",\"\",W23/$W$28)","v":""},null,null,null,null,null,null,null,null,null,null,null,null,null,null,null,null,null,null,null,null,null,null,null,null,null,null,null,null,null,0,0,0,0,0,0]
[null,"Acabados interiores","",null,null,null,null,null,null,null,"Muros (ALBAÑILERIA)",null,"FRR",{"$f":"+M26*M27*M28*M29*M30*M31*M70*M71*M72*M73","v":1},null,null,null,null,"SUB TOTAL",null,null,null,{"$f":"+SUM(W9:W23)","v":{"$error":"#VALUE!"}},null,null,null,10716.879499999999,null,"Unitario Modelo A",null,15146.99916527546,"Unitario Modelo B",null,18953.199124999996,"Unitario Modelo C",null,19147.643083333336,"Unitario Modelo D",null,13040.560053779505,"Unitario Modelo E",null,18096.106933333329,"Unitario Modelo F",null,18959.69090014316,"Unitario Modelo G",null,18759.134709931172,"Unitario Modelo H"]
[null,null,"NO APLICA","Económica","Media","Alta","Residencial","Plus","FRR",null,null,"PARAMETRO","SI",null,null,null,null,null,"UNITARIO",null,null,null,{"$f":"W24/X7","v":{"$error":"#VALUE!"}},null,null,null,{"$f":"SUM(AA8:AA20)","v":428675.18},{"$f":"SUM(AB8:AB20)","v":10216.281696854147},{"$f":"SUM(AC8:AC20)","v":1.0000000000000002},null,{"$f":"SUM(AE8:AE20)","v":907305.25},{"$f":"SUM(AF8:AF20)","v":1},null,{"$f":"SUM(AH8:AH20)","v":1516255.9299999997},{"$f":"SUM(AI8:AI20)","v":1},null,{"$f":"SUM(AK8:AK20)","v":2297717.1700000004},{"$f":"SUM(AL8:AL20)","v":1},null,{"$f":"SUM(AN8:AN22)","v":2618805.27},{"$f":"SUM(AO8:AO22)","v":1},null,{"$f":"SUM(AQ8:AQ22)","v":5428832.0799999991},{"$f":"SUM(AR8:AR22)","v":1},null,{"$f":"SUM(AT8:AT22)","v":8475740.2199999988},{"$f":"SUM(AU8:AU22)","v":1},null,{"$f":"SUM(AW8:AW22)","v":12973067.199999999},{"$f":"SUM(AX8:AX22)","v":1.0000000000000002},null,null,null,{"$f":"SUM(BB11:BG23)","v":0}]
[null,"PARAMETRO",1,0.95,1,1.1000000000000001,1.1499999999999999,1.2,{"$f":"PRODUCT(I27,I28,I29,I30,I31,I32,I33)","v":0},null,"Tablaroca/Triplay",1.02,1,null,null,"Espacios","TT",null,"OBRAS COMPLEMENTARIAS",null,null,{"$f":"+M33","v":1.05},{"$f":"IF(V26=1,0,V26*$W$25)","v":{"$error":"#VALUE!"}},{"$f":"+W26/$W$28","v":{"$error":"#VALUE!"}},null,null,"MOD 1002",null,null,null,"MOD 1015",null,null,"MOD 1025",null,null,"MOD 1045",null,null,"MOD 1060",null,null,"MOD 1070",null,null,"MOD 1085",null,null,"MOD 1100"]
[null,"Pisos",null,null,null,null,null,null,{"$f":"IF(SUM(C27:H27)=0,\"\",SUM(C27:H27))","v":""},null,"Ladrillo/block",1,1,null,null,"Cocina","4",null,"INSTALACIONES ESPECIALES",null,null,{"$f":"+M50","v":1.0506},{"$f":"IF(V27=1,0,V27*W25)","v":{"$error":"#VALUE!"}},{"$error":"#VALUE!"},null,null,"41.96\t",null,null,null,59.9,null,null,83.22,null,null,120,null,null,200.82,null,null,300,null,null,450,null,null,700,null,null,null,null,{"$f":"IF(C27<>\"\",1,0)","v":0},{"$f":"IF(D27<>\"\",1,0)","v":0},{"$f":"IF(E27<>\"\",1,0)","v":0},{"$f":"IF(F27<>\"\",1,0)","v":0},{"$f":"IF(G27<>\"\",1,0)","v":0},{"$f":"IF(H27<>\"\",1,0)","v":0}]
[null,"Azulejos",null,null,null,null,null,null,"",null,"Marcos rígidos de acero",1.03,1,null,null,"Sala","2",null,null,null,null,null,{"$f":"W24+W26+W27","v":{"$error":"#VALUE!"}},{"$f":"+SUM(X9:X27)","v":{"$error":"#VALUE!"}},null,null,null,null,null,null,null,null,null,null,null,null,null,null,null,null,null,null,null,null,null,null,null,null,null,null,null,null,null,0,0,0,0,0,0]
[null,"Plafones",null,null,null,null,null,null,"",null,"MIXTO",1.04,1,null,null,"Comedor","1",null,null,null,null,null,{"$f":"+W28/X7","v":{"$error":"#VALUE!"}},null,null,null,null,null,null,null,null,null,null,null,null,null,null,null,null,null,null,null,null,null,null,null,null,null,null,null,null,null,null,0,0,0,0,0,0]
[null,"Recubrimientos en muros",null,null,null,null,null,null,"",null,"DESCONOCIDO",1,1,null,null,"Baños","2",null,null,null,null,"Factor IC",{"$f":"+C6","v":0.98699999999999999},null,null,null,null,null,null,null,null,null,null,null,null,null,null,null,null,null,null,null,null,null,null,null,null,null,null,null,null,null,null,0,0,0,0,0,0]
[null,"Muebles sanitarios (WC, Lavabo)",null,null,null,null,null,null,"",null,"OTRO",1.03,1,null,null,"Recamaras","1",null,null,null,null,"Unitario Final",{"$f":"W29*W30","v":{"$error":"#VALUE!"}},null,null,null,null,null,null,null,null,null,null,null,null,null,null,null,null,null,null,null,null,null,null,null,null,null,null,null,null,null,null,0,0,0,0,0,0]
[null,"Tinas/Jacuzzi",null,null,null,null,null,null,"",null,null,null,null,null,null,"Vestidores","3",null,null,null,null,"Presupuesto Final",{"$f":"W31*X7","v":{"$error":"#VALUE!"}},null,null,null,null,null,null,null,null,null,null,null,null,null,null,null,null,null,null,null,null,null,null,null,null,null,null,null,null,null,null,0,0,0,0,0,0]
[null,"Otro",null,null,null,null,null,null,"",null,"OBRAS  COMPLEMENTARIAS","PARAMETROS",{"$f":"M34*M35*M36*M37*M38*M39*M40*M41*M42*M43*M44*M45*M46*M47*M48","v":1.05},null,null,"Estacionamientos","2",null,null,null,null,null,null,null,null,null,null,null,null,null,null,null,null,null,null,null,null,null,null,null,null,null,null,null,null,null,null,null,null,null,null,null,null,0,0,0,0,0,0]
[null,null,null,null,null,null,null,null,null,null,"TERRAZA",1.03,1,null,null,"CuartoServicio","1"]
[null,"ACABADOS EXTERIORES","NO APLICA","Económica","Media","Alta","Residencial","Plus","FRR",null,"ROOF GARDEN",1.05,1.05,null,null,"AccesoInd","2"]
[null,null,null,null,1.02,null,null,null,{"$f":"IF(SUM(C36:H36)=0,\"\",SUM(C36:H36))","v":1.02},null,"PALAPAS",1.02,1,null,null,null,null,null,null,null,null,null,null,null,null,null,null,null,null,null,null,null,null,null,null,null,null,null,null,null,null,null,null,null,null,null,null,null,null,null,null,null,null,{"$f":"IF(C36<>\"\",1,0)","v":0},0,1,0,0,0]
[null,null,null,null,null,null,null,null,null,null,"CUBIERTAS (PERGOLADOS, POLICARBONATO, DOMOS)",1.01,1,null,null,null,null,null,null,null,null,null,null,null,null,null,null,null,null,null,null,null,null,null,null,null,null,null,null,null,null,null,null,null,null,null,null,null,null,null,null,null,null,{"$f":"SUM(BB27:BG36)","v":1}]
[null,"Instalaciones","NO APLICA","Económica","Media","Alta","Residencial","Plus","FRR",null,"BODEGA",1.01,1]
[null,"Instalacion Electricas",null,null,null,null,null,null,{"$f":"IF(SUM(C39:H39)=0,\"\",SUM(C39:H39))","v":""},null,"BARDAS PERIMETRALES",1.01,1,null,null,null,null,null,null,null,null,null,null,null,null,null,null,null,null,null,null,null,null,null,null,null,null,null,null,null,null,null,null,null,null,null,null,null,null,null,null,null,null,{"$f":"IF(C39<>\"\",1,0)","v":0},0,0,0,0,0]
[null,"Instalacion Sanitarias",null,null,null,null,null,null,"",null,"AREAS DEPORTIVAS",1.05,1,null,null,null,null,null,null,null,null,null,null,null,null,null,null,null,null,null,null,null,null,null,null,null,null,null,null,null,null,null,null,null,null,null,null,null,null,null,null,null,null,{"$f":"IF(C40<>\"\",1,0)","v":0},{"$f":"IF(D40<>\"\",1,0)","v":0},{"$f":"IF(E40<>\"\",1,0)","v":0},{"$f":"IF(F40<>\"\",1,0)","v":0},{"$f":"IF(G40<>\"\",1,0)","v":0},{"$f":"IF(H40<>\"\",1,0)","v":0}]
[null,"Instalacion Hidraulicas",null,null,null,null,null,null,"",null,"AREAS ADICIONALES",1.02,1,null,null,null,null,null,null,null,null,null,null,null,null,null,null,null,null,null,null,null,null,null,null,null,null,null,null,null,null,null,null,null,null,null,null,null,null,null,null,null,null,0,0,0,0,0,0]
[null,"instalacion GAS",null,null,null,null,null,null,"",null,"SALA DE UM",1.02,1,null,null,null,null,null,null,null,null,null,null,null,null,null,null,null,null,null,null,null,null,null,null,null,null,null,null,null,null,null,null,null,null,null,null,null,null,null,null,null,null,0,0,0,0,0,0]
[null,null,null,null,null,null,null,null,null,null,"SALA DE TV",1.02,1]
[null,"ACCESOS","NO APLICA","Económica","Media","Alta","Residencial","Plus","FRR",null,"GIMNASIO",1.02,1]
[null,null,null,null,null,null,null,null,{"$f":"IF(SUM(C45:H45)=0,\"\",SUM(C45:H45))","v":""},null,"ESTUDIO",1.01,1,null,null,null,null,null,null,null,null,null,null,null,null,null,null,null,null,null,null,null,null,null,null,null,null,null,null,null,null,null,null,null,null,null,null,null,null,null,null,null,null,{"$f":"IF(C45<>\"\",1,0)","v":0},{"$f":"IF(D45<>\"\",1,0)","v":0},{"$f":"IF(E45<>\"\",1,0)","v":0},{"$f":"IF(F45<>\"\",1,0)","v":0},{"$f":"IF(G45<>\"\",1,0)","v":0},{"$f":"IF(H45<>\"\",1,0)","v":0}]
[null,null,null,null,null,null,null,null,null,null,"ALCOBA",1.01,1]
[null,"MOBILIARIO FIJO","NO APLICA","Económica","Media","Alta","Residencial","Plus","FRR",null,"ALBERCA",1.06,1]
[null,null,null,null,null,null,null,null,{"$f":"IF(SUM(C48:H48)=0,\"\",SUM(C48:H48))","v":""},null,"ELEVADORES",1.05,1,null,null,null,null,null,null,null,null,null,null,null,null,null,null,null,null,null,null,null,null,null,null,null,null,null,null,null,null,null,null,null,null,null,null,null,null,null,null,null,null,{"$f":"IF(C48<>\"\",1,0)","v":0},{"$f":"IF(D48<>\"\",1,0)","v":0},{"$f":"IF(E48<>\"\",1,0)","v":0},{"$f":"IF(F48<>\"\",1,0)","v":0},{"$f":"IF(G48<>\"\",1,0)","v":0},{"$f":"IF(H48<>\"\",1,0)","v":0}]
[null,null,null,null,null,null,null,null,null,null,null,null,null,null,null,null,null,null,null,null,null,null,null,null,null,null,null,null,null,null,null,null,null,null,null,null,null,null,null,null,null,null,null,null,null,null,null,null,null,null,null,null,null,{"$f":"SUM(BB39:BG48)","v":0}]
[null,null,null,null,null,null,null,null,null,null,"Instalaciones Especiales","PARAMETROS",{"$f":"M51*M52*M53*M54*M55*M56*M57*M58*M59*M60","v":1.0506}]
[null,null,null,null,null,null,null,null,null,null,"AIRE ACONDICIONADO",1.02,1]
[null,"Comentarios cliente:",null,null,null,null,null,null,null,null,"SISTEMAS INTELIGENTES",1.04,1]
[null,null,null,null,null,null,null,null,null,null,"BIODIGESTORES",1.02,1]
[null,null,null,null,null,null,null,null,null,null,"CALEFACCION",1.02,1.02]
[null,null,null,null,null,null,null,null,null,null,"CIRCUITO CERRADO DE CCTV",1.03,1.03]
[null,null,null,null,null,null,null,null,null,null,"HIDRONEUMATICO",1.02,1]
[null,null,null,null,null,null,null,null,null,null,"SISTEMAS ECOLOGICOS",1.03,1]
[null,null,null,null,null,null,null,null,null,null,"PANELES SOLARES",1.03,1]
[null,null,null,null,null,null,null,null,null,null,"SISTEMA  DE CAPTACION PLUVIAL",1.02,1]
[null,null,null,null,null,null,null,null,null,null,"OTROS",1.02,1]
[]
[null,"Partida","Calidad",null,null,null,null,null,null,null,"Losas de entrepiso (ESTRUCTURA DE CONCRETO)",null,"FRR"]
[null,"Puertas","No aplica",null,null,null,null,null,null,null,null,"PARAMETRO","SI"]
[null,"Clósets","Económica",null,null,null,null,null,null,null,"Lamina",1.02,1]
[null,"Cocina integral","Media",null,null,null,null,null,null,null,"Madera",1,1]
[null,"Otro","Alta",null,null,null,null,null,null,null,"Cristal",1.03,1]
[null,null,null,null,null,null,null,null,null,null,"Caseton",1.04,1]
[null,"Cristales","Residencial",null,null,null,null,null,null,null,"Muros (ALBAÑILERIA)",null,"FRR"]
[null,"Cancelería","Plus",null,null,null,null,null,null,null,null,"PARAMETRO","SI"]
[null,"Portones/rejas","Residencial",null,null,null,null,null,null,null,"Cristal",1.02,1]
[null,"Protecciones","Alta",null,null,null,null,null,null,null,"Madera",1,1]
[null,"Barandales","Media",null,null,null,null,null,null,null,"Adobe",1.03,1]
[null,"Otro","Económica",null,null,null,null,null,null,null,"Concreto",1.04,1]
[null,null,null,null,null,null,null,null,null,null,null,null,1]
[null,"Pisos","No aplica"]
[null,"Azulejos","Económica"]
[null,"Plafones","Media"]
[null,"Recubrimientos en muros","Alta"]
[null,"Muebles sanitarios (WC, Lavabo)","Residencial"]
[null,"Tinas/Jacuzzi","Plus"]
[null,"Otro","Residencial"]
[]
[null,"Acabados exteriores","Completo"]
[]
[null,"Instalacion Electricas","Completo"]
[null,"Instalacion Sanitarias","Completo"]
[null,"Instalacion Hidraulicas","Completo"]
[null,"instalacion GAS","Completo"]
[]
[null,"Cimentación","Desconocido"]
[null,"Losas de Entrepiso (Estructura de Concreto)","Vigueta y Bovedilla"]
[null,"Muros (Albañilería)","Concreto"]
[]
[null,"Otro Cimentación"]
[null,"Otro Losas de Entrepiso (Estructura de Concreto)"]
[null,"Otro Muros (Albañilería)"]

{"sheet":"Edos_Mpios","index":1,"n_rows":2478,"n_cols":8,"rows_kept":2478,"cut":false,"hidden":true,"merged":[]}
["Estado","Municipio","FIC",null,null,null,null,"Aguascalientes"]
["Yucatan","Abala",1,null,null,null,null,"Baja California"]
["Coahuila De Zaragoza","Abasolo",1,null,null,null,null,"Baja California Sur"]
["Guanajuato","Abasolo",1,null,null,null,null,"Campeche"]
["Nuevo Leon","Abasolo",1,null,null,null,null,"Cdmx"]
["Tamaulipas","Abasolo",1,null,null,null,null,"Chiapas"]
["Oaxaca","Abejones",1,null,null,null,null,"Chihuahua"]
["Chiapas","Acacoyagua",1,null,null,null,null,"Coahuila De Zaragoza"]
["Puebla","Acajete",1,null,null,null,null,"Colima"]
["Veracruz De Ignacio De La Llave","Acajete",1,null,null,null,null,"Durango"]
["Chiapas","Acala",1,null,null,null,null,"Guanajuato"]
["Guanajuato","Acambaro",1,null,null,null,null,"Guerrero"]
["Mexico","Acambay De Ruiz Castañeda",1,null,null,null,null,"Hidalgo"]
["Yucatan","Acanceh",1,null,null,null,null,"Jalisco"]
["Chiapas","Acapetahua",1,null,null,null,null,"Mexico"]
["Nayarit","Acaponeta",1,null,null,null,null,"Michoacan De Ocampo"]
["Guerrero","Acapulco De Juarez",1.036,null,null,null,null,"Morelos"]
["Puebla","Acateno",1,null,null,null,null,"Nayarit"]
["Guerrero","Acatepec",1,null,null,null,null,"Nuevo Leon"]
["Jalisco","Acatic",1,null,null,null,null,"Oaxaca"]
["Hidalgo","Acatlan",1,null,null,null,null,"Puebla"]
["Puebla","Acatlan",1,null,null,null,null,"Queretaro"]
["Veracruz De Ignacio De La Llave","Acatlan",1,null,null,null,null,"Quintana Roo"]
["Jalisco","Acatlan De Juarez",1,null,null,null,null,"San Luis Potosi"]
["Oaxaca","Acatlan De Perez Figueroa",1,null,null,null,null,"Sinaloa"]
["Puebla","Acatzingo",1,null,null,null,null,"Sonora"]
["Hidalgo","Acaxochitlan",1,null,null,null,null,"Tabasco"]
["Veracruz De Ignacio De La Llave","Acayucan",1,null,null,null,null,"Tamaulipas"]
["Mexico","Acolman",1,null,null,null,null,"Tlaxcala"]
["Sonora","Aconchi",1,null,null,null,null,"Veracruz De Ignacio De La Llave"]
["Puebla","Acteopan",1,null,null,null,null,"Yucatan"]
["Hidalgo","Actopan",1,null,null,null,null,"Zacatecas"]
["Veracruz De Ignacio De La Llave","Actopan",1]
["Tlaxcala","Acuamanala De Miguel Hidalgo",1]
["Michoacan De Ocampo","Acuitzio",1]
["Veracruz De Ignacio De La Llave","Acula",1]
["Mexico","Aculco",1]
["Veracruz De Ignacio De La Llave","Acultzingo",1]
["Coahuila De Zaragoza","Ciudad Acuña",0.98199999999999998]
["Hidalgo","Agua Blanca De Iturbide",1]
["Veracruz De Ignacio De La Llave","Agua Dulce",1]
["Sonora","Agua Prieta",1.0589999999999999]
["Nuevo Leon","Agualeguas",1]
["Aguascalientes","Aguascalientes",0.96399999999999997]
["Michoacan De Ocampo","Aguililla",1]
["Sinaloa","Ahome",1]
["Nayarit","Ahuacatlan",1]
["Puebla","Ahuacatlan",1]
["Guerrero","Ahuacuotzingo",1]
["San Luis Potosi","Ahualulco",1]
["Jalisco","Ahualulco De Mercado",1]
["Puebla","Ahuatlan",1]
["Puebla","Ahuazotepec",1]
["Puebla","Ahuehuetitla",1]
["Chihuahua","Ahumada",1]
["Hidalgo","Ajacuba",1]
["Puebla","Ajalpan",1]
["Guerrero","Ajuchitlan Del Progreso",1]
["Yucatan","Akil",1]
["Veracruz De Ignacio De La Llave","Alamo Temapache",1]
["Sonora","Alamos",1]
["San Luis Potosi","Alaquines",1]
["Puebla","Albino Zertuche",1]
["Guerrero","Alcozauca De Guerrero",1]
["Chiapas","Aldama",1]
["Chihuahua","Aldama",1]
["Tamaulipas","Aldama",1]
["Hidalgo","Alfajayucan",1]
["Puebla","Aljojuca",1]
["Chihuahua","Allende",1]
["Coahuila De Zaragoza","Allende",1]
["Nuevo Leon","Allende",1]
["Hidalgo","Almoloya",1]
["Mexico","Almoloya De Alquisiras",1]
["Mexico","Almoloya De Juarez",1]
["Mexico","Almoloya Del Rio",1]
["Veracruz De Ignacio De La Llave","Alpatlahuac",1]
["Guerrero","Alpoyeca",1]
["Tamaulipas","Altamira",0.99]
["Chiapas","Altamirano",1]
["Sonora","Altar",1]
["Puebla","Altepexi",1]
["Veracruz De Ignacio De La Llave","Alto Lucero De Gutierrez Barrios",1]
["Veracruz De Ignacio De La Llave","Altotonga",1]
["Tlaxcala","Altzayanca",1]
["Veracruz De Ignacio De La Llave","Alvarado",1]
["Cdmx","Alvaro Obregon",1]
["Michoacan De Ocampo","Alvaro Obregon",1]
["Jalisco","Amacueca",1]
["Morelos","Amacuzac",1]
["Mexico","Amanalco",1]
["Chiapas","Amatan",1]
["Chiapas","Amatenango De La Frontera",1]
["Chiapas","Amatenango Del Valle",1]
["Mexico","Amatepec",1]
["Jalisco","Amatitan",1]
["Veracruz De Ignacio De La Llave","Amatitlan",1]
["Nayarit","Amatlan De Cañas",1]
["Veracruz De Ignacio De La Llave","Amatlan De Los Reyes",1]
["Tlaxcala","Amaxac De Guerrero",1]
["Queretaro","Amealco De Bonfil",1]
["Jalisco","Ameca",1]
["Mexico","Amecameca",0.91300000000000003]
["Puebla","Amixtlan",1]
["Puebla","Amozoc",1]
["Nuevo Leon","Anahuac",1]
["Michoacan De Ocampo","Angamacutiro",1]
["Michoacan De Ocampo","Angangueo",1]
["Chiapas","Angel Albino Corzo",1]
["Veracruz De Ignacio De La Llave","Angel R. Cabada",1]
["Sinaloa","Angostura",1]
["Oaxaca","Animas Trujano",1]
["Tamaulipas","Antiguo Morelos",1]
["Hidalgo","Apan",1]
["Guanajuato","Apaseo El Alto",1]
["Guanajuato","Apaseo El Grande",1]
["Michoacan De Ocampo","Apatzingan",1]
["Mexico","Apaxco",1]
["Guerrero","Apaxtla",1]
["Veracruz De Ignacio De La Llave","Apazapan",1]
["Tlaxcala","Apetatitlan De Antonio Carvajal",1]
["Tlaxcala","Apizaco",0.86399999999999999]
["Nuevo Leon","Apodaca",1]
["Michoacan De Ocampo","Aporo",1]
["Zacatecas","Apozol",1]
["Zacatecas","Apulco",1]
["Michoacan De Ocampo","Aquila",1]
["Veracruz De Ignacio De La Llave","Aquila",1]
["Chihuahua","Aquiles Serdan",1]
["San Luis Potosi","Aquismon",1]
["Puebla","Aquixtla",1]
["Nuevo Leon","Aramberri",1]
["Jalisco","Arandas",1]
["Guerrero","Arcelia",1]
["Michoacan De Ocampo","Ario",1]
["Sonora","Arivechi",1]
["Sonora","Arizpe",1]
["San Luis Potosi","Armadillo De Los Infante",1]
["Colima","Armeria",1]
["Chiapas","Arriaga",0.873]
["Queretaro","Arroyo Seco",1]
["Coahuila De Zaragoza","Arteaga",1]
["Michoacan De Ocampo","Arteaga",1]
["Chihuahua","Ascension",1]
["Aguascalientes","Asientos",1]
["Veracruz De Ignacio De La Llave","Astacinga",1]
["Oaxaca","Asuncion Cacalotepec",1]
["Oaxaca","Asuncion Cuyotepeji",1]
["Oaxaca","Asuncion Ixtaltepec",1]
["Oaxaca","Asuncion Nochixtlan",1]
["Oaxaca","Asuncion Ocotlan",1]
["Oaxaca","Asuncion Tlacolulita",1]
["Guanajuato","Atarjea",1]
["Jalisco","Atemajac De Brizuela",1]
["Puebla","Atempan",1]
["Guerrero","Atenango Del Rio",1]
["Mexico","Atenco",1]
["Jalisco","Atengo",1]
["Jalisco","Atenguillo",1]
["Puebla","Atexcal",1]
["Sonora","Atil",1]
["Hidalgo","Atitalaquia",1]
["Mexico","Atizapan",1]
["Mexico","Atizapan De Zaragoza",1]
["Mexico","Atlacomulco",1]
["Veracruz De Ignacio De La Llave","Atlahuilco",1]
["Guerrero","Atlamajalcingo Del Monte",1]
["Tlaxcala","Atlangatepec",1]
["Hidalgo","Atlapexco",1]
["Morelos","Atlatlahucan",1]
["Mexico","Atlautla",1]
["Puebla","Atlequizayan",1]
["Puebla","Atlixco",1]
["Guerrero","Atlixtac",1]
["Zacatecas","Atolinga",1]
["Hidalgo","Atotonilco De Tula",1]
["Jalisco","Atotonilco El Alto",1]
["Hidalgo","Atotonilco El Grande",1]
["Jalisco","Atoyac",1]
["Veracruz De Ignacio De La Llave","Atoyac",1]
["Guerrero","Atoyac De Alvarez",0.93300000000000005]
["Puebla","Atoyatempan",1]
["Veracruz De Ignacio De La Llave","Atzacan",1]
["Puebla","Atzala",1]
["Veracruz De Ignacio De La Llave","Atzalan",1]
["Puebla","Atzitzihuacan",1]
["Puebla","Atzitzintla",1]
["Jalisco","Autlan De Navarro",1]
["Mexico","Axapusco",1]
["Morelos","Axochiapan",1]
["San Luis Potosi","Axtla De Terrazas",1]
["Puebla","Axutla",1]
["Veracruz De Ignacio De La Llave","Ayahualulco",1]
["Morelos","Ayala",1]
["Mexico","Ayapango",1]
["Oaxaca","Ayoquezco De Aldama",1]
["Jalisco","Ayotlan",1]
["Puebla","Ayotoxco De Guerrero",1]
["Oaxaca","Ayotzintepec",1]
["Jalisco","Ayutla",1]
["Guerrero","Ayutla De Los Libres",1]
["Cdmx","Azcapotzalco",1]
["Guerrero","Azoyu",1]
["Yucatan","Baca",1]
["Sonora","Bacadehuachi",1]
["Quintana Roo","Bacalar",1]
["Sonora","Bacanora",1]
["Sonora","Bacerac",1]
["Chihuahua","Bachiniva",1]
["Sonora","Bacoachi",1]
["Sonora","Bacum",1]
["Sinaloa","Badiraguato",1]
["Nayarit","Bahia De Banderas",1]
["Tabasco","Balancan",1]
["Chihuahua","Balleza",1]
["Sonora","Banamichi",1]
["Veracruz De Ignacio De La Llave","Banderilla",1]
["Chihuahua","Batopilas",1]
["Sonora","Baviacora",1]
["Sonora","Bavispe",1]
["Chiapas","Bejucal De Ocampo",1]
["Chiapas","Bella Vista",1]
["Chiapas","Benemerito De Las Americas",1]
["Cdmx","Benito Juarez",1]
["Guerrero","Benito Juarez",1]
["Quintana Roo","Benito Juarez",1]
["Sonora","Benito Juarez",1]
["Tlaxcala","Benito Juarez",1]
["Veracruz De Ignacio De La Llave","Benito Juarez",1]
["Zacatecas","Benito Juarez",1]
["Sonora","Benjamin Hill",1]
["Chiapas","Berriozabal",1]
["Veracruz De Ignacio De La Llave","Boca Del Rio",1]
["Chiapas","Bochil",1]
["Chihuahua","Bocoyna",1]
["Yucatan","Bokoba",1]
["Jalisco","Bolaños",1]
["Michoacan De Ocampo","Briseñas",1]
["Yucatan","Buctzotz",1]
["Chihuahua","Buenaventura",1]
["Michoacan De Ocampo","Buenavista",1]
["Guerrero","Buenavista De Cuellar",1]
["Tamaulipas","Burgos",1]
["Nuevo Leon","Bustamante",1]
["Tamaulipas","Bustamante",1]
["Jalisco","Cabo Corrientes",1]
["Sonora","Caborca",1]
["Chiapas","Cacahoatan",1]
["Yucatan","Cacalchen",1]
["Queretaro","Cadereyta De Montes",1]
["Nuevo Leon","Cadereyta Jimenez",1]
["Sonora","Cajeme",1]
["Campeche","Calakmul",1]
["Veracruz De Ignacio De La Llave","Calcahualco",1]
["Zacatecas","Calera",1]
["Oaxaca","Calihuala",1]
["Mexico","Calimaya",1]
["Campeche","Calkini",1]
["Hidalgo","Calnali",1]
["Yucatan","Calotmul",1]
["Puebla","Calpan",1]
["Tlaxcala","Calpulalpan",1]
["Puebla","Caltepec",1]
["Aguascalientes","Calvillo",1]
["Chihuahua","Camargo",1]
["Tamaulipas","Camargo",1]
["Veracruz De Ignacio De La Llave","Camaron De Tejeda",1]
["Veracruz De Ignacio De La Llave","Camerino Z. Mendoza",1]
["Puebla","Camocuautla",1]
["Campeche","Campeche",0.98699999999999999]
["Sonora","Cananea",1]
["Durango","Canatlan",1]
["Quintana Roo","Cancun",1.1120000000000001]
["Coahuila De Zaragoza","Candela",1]
["Campeche","Candelaria",1]
["Oaxaca","Candelaria Loxicha",1]
["Durango","Canelas",1]
["Yucatan","Cansahcab",1]
["Yucatan","Cantamayec",1]
["Puebla","Cañada Morelos",1]
["Jalisco","Cañadas De Obregon",1]
["Zacatecas","Cañitas De Felipe Pescador",1]
["Oaxaca","Capulalpam De Mendez",1]
["Mexico","Capulhuac",1]
["Michoacan De Ocampo","Caracuaro",1]
["Sonora","Carbo",1]
["San Luis Potosi","Cardenas",1]
["Tabasco","Cardenas",0.92300000000000004]
["Hidalgo","Cardonal",1]
["Chihuahua","Carichi",1]
["Veracruz De Ignacio De La Llave","Carlos A. Carrillo",1]
["Campeche","Carmen",1]
["Veracruz De Ignacio De La Llave","Carrillo Puerto",1]
["Tamaulipas","Casas",1]
["Chihuahua","Casas Grandes",1]
["Jalisco","Casimiro Castillo",1]
["Coahuila De Zaragoza","Castaños",1]
["Veracruz De Ignacio De La Llave","Castillo De Teayo",1]
["Chiapas","Catazaja",1]
["Veracruz De Ignacio De La Llave","Catemaco",1]
["San Luis Potosi","Catorce",1]
["Puebla","Caxhuacan",1]
["Veracruz De Ignacio De La Llave","Cazones De Herrera",1]
["San Luis Potosi","Cedral",1]
["Guanajuato","Celaya",0.93600000000000005]
["Yucatan","Celestun",1]
["Yucatan","Cenotillo",1]
["Tabasco","Centla",1]
["Tabasco","Centro",1]
["Nuevo Leon","Cerralvo",1]
["San Luis Potosi","Cerritos",1]
["Veracruz De Ignacio De La Llave","Cerro Azul",1]
["San Luis Potosi","Cerro De San Pedro",1]
["Veracruz De Ignacio De La Llave","Chacaltianguis",1]
["Yucatan","Chacsinkin",1]
["Oaxaca","Chahuites",1]
["Oaxaca","Chalcatongo De Hidalgo",1]
["Puebla","Chalchicomula De Sesma",1]
["Chiapas","Chalchihuitan",1]
["Zacatecas","Chalchihuites",1]
["Mexico","Chalco",1]
["Veracruz De Ignacio De La Llave","Chalma",1]
["Campeche","Champoton",1]
["Chiapas","Chamula",1]
["Chiapas","Chanal",1]
["Yucatan","Chankom",1]
["Mexico","Chapa De Mota",1]
["Yucatan","Chapab",1]
["Jalisco","Chapala",1]
["Hidalgo","Chapantongo",1]
["Puebla","Chapulco",1]
["Hidalgo","Chapulhuacan",1]
["Chiapas","Chapultenango",1]
["Mexico","Chapultepec",1]
["Michoacan De Ocampo","Charapan",1]
["San Luis Potosi","Charcas",1]
["Michoacan De Ocampo","Charo",1]
["Michoacan De Ocampo","Chavinda",1]
["Yucatan","Chemax",1]
["Chiapas","Chenalho",1]
["Michoacan De Ocampo","Cheran",1]
["Chiapas","Chiapa De Corzo",1]
["Chiapas","Chiapilla",1]
["Tlaxcala","Chiautempan",0.91400000000000003]
["Mexico","Chiautla",1]
["Puebla","Chiautla",1]
["Puebla","Chiautzingo",1]
["Yucatan","Chichimila",1]
["Puebla","Chichiquila",1]
["Chiapas","Chicoasen",1]
["Mexico","Chicoloapan",1]
["Chiapas","Chicomuselo",1]
["Veracruz De Ignacio De La Llave","Chiconamel",1]
["Mexico","Chiconcuac",1]
["Puebla","Chiconcuautla",1]
["Veracruz De Ignacio De La Llave","Chiconquiaco",1]
["Veracruz De Ignacio De La Llave","Chicontepec",1]
["Yucatan","Chicxulub Pueblo",1]
["Puebla","Chietla",1]
["Puebla","Chigmecatitlan",1]
["Puebla","Chignahuapan",1]
["Puebla","Chignautla",1]
["Chihuahua","Chihuahua",0.99199999999999999]
["Yucatan","Chikindzonot",1]
["Puebla","Chila",1]
["Puebla","Chila De La Sal",1]
["Guerrero","Chilapa De Alvarez",1]
["Michoacan De Ocampo","Chilchota",1]
["Puebla","Chilchotla",1]
["Hidalgo","Chilcuautla",1]
["Chiapas","Chilon",1]
["Guerrero","Chilpancingo De Los Bravo",0.89400000000000002]
["Mexico","Chimalhuacan",1]
["Jalisco","Chimaltitan",1]
["Nuevo Leon","China",0.99399999999999999]
["Veracruz De Ignacio De La Llave","Chinameca",1]
["Veracruz De Ignacio De La Llave","Chinampa De Gorostiza",1]
["Puebla","Chinantla",1]
["Michoacan De Ocampo","Chinicuila",1]
["Chihuahua","Chinipas",1]
["Oaxaca","Chiquihuitlan De Benito Juarez",1]
["Jalisco","Chiquilistlan",1]
["Veracruz De Ignacio De La Llave","Chocaman",1]
["Yucatan","Chochola",1]
["Sinaloa","Choix",1]
["Veracruz De Ignacio De La Llave","Chontla",1]
["Michoacan De Ocampo","Chucandiro",1]
["Veracruz De Ignacio De La Llave","Chumatlan",1]
["Yucatan","Chumayel",1]
["Michoacan De Ocampo","Churintzio",1]
["Michoacan De Ocampo","Churumuco",1]
["Nuevo Leon","Cienega De Flores",1]
["Oaxaca","Cienega De Zimatlan",1]
["Jalisco","Cihuatlan",1]
["Chiapas","Cintalapa",1]
["Veracruz De Ignacio De La Llave","Citlaltepetl",1]
["Guerrero","Ciudad Altamirano",0.93100000000000005]
["San Luis Potosi","Ciudad Del Maiz",1]
["San Luis Potosi","Ciudad Fernandez",1]
["Oaxaca","Ciudad Ixtepec",1]
["Tamaulipas","Ciudad Madero",1.0309999999999999]
["San Luis Potosi","Ciudad Valles",0.91800000000000004]
["Mexico","Coacalco De Berriozabal",0.97399999999999998]
["Veracruz De Ignacio De La Llave","Coacoatzintla",1]
["Michoacan De Ocampo","Coahuayana",1]
["Guerrero","Coahuayutla De Jose Maria Izazaga",1]
["Veracruz De Ignacio De La Llave","Coahuitlan",1]
["Michoacan De Ocampo","Coalcoman De Vazquez Pallares",1]
["Chiapas","Coapilla",1]
["Oaxaca","Coatecas Altas",1]
["Puebla","Coatepec",1]
["Veracruz De Ignacio De La Llave","Coatepec",0.91700000000000004]
["Mexico","Coatepec Harinas",1]
["Morelos","Coatlan Del Rio",1]
["Veracruz De Ignacio De La Llave","Coatzacoalcos",1.0469999999999999]
["Puebla","Coatzingo",1]
["Veracruz De Ignacio De La Llave","Coatzintla",1]
["Guerrero","Cochoapa El Grande",1]
["Mexico","Cocotitlan",1]
["Guerrero","Cocula",1]
["Jalisco","Cocula",1]
["Michoacan De Ocampo","Coeneo",1]
["Veracruz De Ignacio De La Llave","Coetzala",1]
["Puebla","Cohetzala",1]
["Puebla","Cohuecan",1]
["Oaxaca","Coicoyan De Las Flores",1]
["Michoacan De Ocampo","Cojumatlan De Regules",1]
["Colima","Colima",0.99399999999999999]
["Veracruz De Ignacio De La Llave","Colipa",1]
["Queretaro","Colon",1]
["Jalisco","Colotlan",1]
["Colima","Comala",1]
["Tabasco","Comalcalco",1]
["Veracruz De Ignacio De La Llave","Comapa",1]
["Chiapas","Comitan De Dominguez",0.89]
["Baja California Sur","Comondu",1]
["Guanajuato","Comonfort",1]
["Nayarit","Compostela",0.90400000000000003]
["Oaxaca","Concepcion Buenavista",1]
["Jalisco","Concepcion De Buenos Aires",1]
["Zacatecas","Concepcion Del Oro",1]
["Oaxaca","Concepcion Papalo",1]
["Sinaloa","Concordia",1]
["Durango","Coneto De Comonfort",1]
["Yucatan","Conkal",1]
["Oaxaca","Constancia Del Rosario",1]
["Michoacan De Ocampo","Contepec",1]
["Tlaxcala","Contla De Juan Cuamatzi",1]
["Chiapas","Copainala",1]
["Guerrero","Copala",1]
["Guerrero","Copalillo",1]
["Guerrero","Copanatoyac",1]
["Michoacan De Ocampo","Copandaro",1]
["Colima","Coquimatlan",1]
["Veracruz De Ignacio De La Llave","Cordoba",0.86399999999999999]
["Chihuahua","Coronado",1]
["Puebla","Coronango",1]
["Guanajuato","Coroneo",1]
["Queretaro","Corregidora",1]
["Guanajuato","Cortazar",1]
["Sinaloa","Cosala",1]
["Veracruz De Ignacio De La Llave","Cosamaloapan De Carpio",1]
["Veracruz De Ignacio De La Llave","Cosautlan De Carvajal",1]
["Veracruz De Ignacio De La Llave","Coscomatepec",1]
["Aguascalientes","Cosio",1]
["Oaxaca","Cosolapa",1]
["Veracruz De Ignacio De La Llave","Cosoleacaque",1]
["Oaxaca","Cosoltepec",1]
["Veracruz De Ignacio De La Llave","Cotaxtla",1]
["Michoacan De Ocampo","Cotija",1]
["Puebla","Coxcatlan",1]
["San Luis Potosi","Coxcatlan",1]
["Veracruz De Ignacio De La Llave","Coxquihui",1]
["Chihuahua","Coyame Del Sotol",1]
["Cdmx","Coyoacan",1]
["Puebla","Coyomeapan",1]
["Mexico","Coyotepec",1]
["Puebla","Coyotepec",1]
["Guerrero","Coyuca De Benitez",1]
["Guerrero","Coyuca De Catalan",1]
["Veracruz De Ignacio De La Llave","Coyutla",1]
["Quintana Roo","Cozumel",1.24]
["Tamaulipas","Cruillas",1]
["Cdmx","Cuajimalpa De Morelos",1]
["Guerrero","Cuajinicuilapa",1]
["Guerrero","Cualac",1]
["Tlaxcala","Cuapiaxtla",1]
["Puebla","Cuapiaxtla De Madero",1]
["Coahuila De Zaragoza","Cuatro Cienegas",1]
["Cdmx","Cuauhtemoc",1]
["Chihuahua","Cuauhtemoc",1]
["Colima","Cuauhtemoc",1]
["Zacatecas","Cuauhtemoc",1]
["Puebla","Cuautempan",1]
["Guerrero","Cuautepec",1]
["Hidalgo","Cuautepec De Hinojosa",1]
["Puebla","Cuautinchan",1]
["Mexico","Cuautitlan",0.96899999999999997]
["Jalisco","Cuautitlan De Garcia Barragan",1]
["Mexico","Cuautitlan Izcalli",0.95]
["Jalisco","Cuautla",1]
["Morelos","Cuautla",0.90700000000000003]
["Puebla","Cuautlancingo",1]
["Tlaxcala","Cuaxomulco",1]
["Puebla","Cuayuca De Andrade",1]
["Sonora","Cucurpe",1]
["Durango","Cuencame",1]
["Guanajuato","Cueramaro",1]
["Morelos","Cuernavaca",0.99299999999999999]
["Guerrero","Cuetzala Del Progreso",1]
["Puebla","Cuetzalan Del Progreso",1]
["Veracruz De Ignacio De La Llave","Cuichapa",1]
["Oaxaca","Cuilapam De Guerrero",1]
["Veracruz De Ignacio De La Llave","Cuitlahuac",1]
["Michoacan De Ocampo","Cuitzeo",1]
["Sinaloa","Culiacan",1.0740000000000001]
["Sonora","Cumpas",1]
["Yucatan","Cuncunul",1]
["Tabasco","Cunduacan",1]
["Jalisco","Cuquio",1]
["Chihuahua","Cusihuiriachi",1]
["Guerrero","Cutzamala De Pinzon",1]
["Oaxaca","Cuyamecalco Villa De Zaragoza",1]
["Puebla","Cuyoaco",1]
["Yucatan","Cuzama",1]
["Jalisco","Degollado",1]
["Nayarit","Del Nayar",1]
["Chihuahua","Delicias",0.73699999999999999]
["Sonora","Divisaderos",1]
["Nuevo Leon","Doctor Arroyo",1]
["Nuevo Leon","Doctor Coss",1]
["Nuevo Leon","Doctor Gonzalez",1]
["Guanajuato","Doctor Mora",1]
["Guanajuato","Dolores Hidalgo Cuna De La Independencia Nacional",0.90600000000000003]
["Puebla","Domingo Arenas",1]
["Mexico","Donato Guerra",1]
["Chihuahua","Dr. Belisario Dominguez",1]
["Durango","Durango",0.94]
["Yucatan","Dzan",1]
["Yucatan","Dzemul",1]
["Yucatan","Dzidzantun",1]
["Yucatan","Dzilam De Bravo",1]
["Yucatan","Dzilam Gonzalez",1]
["Yucatan","Dzitas",1]
["Yucatan","Dzoncauich",1]
["San Luis Potosi","Ebano",1]
["Mexico","Ecatepec De Morelos",1]
["Mexico","Ecatzingo",1]
["Michoacan De Ocampo","Ecuandureo",1]
["Guerrero","Eduardo Neri",1]
["Jalisco","Ejutla",1]
["Hidalgo","El Arenal",1]
["Jalisco","El Arenal",1]
["Oaxaca","El Barrio De La Soledad",1]
["Chiapas","El Bosque",1]
["Nuevo Leon","El Carmen",1]
["Tlaxcala","El Carmen Tequexquitla",1]
["Oaxaca","El Espinal",1]
["Sinaloa","El Fuerte",1]
["Jalisco","El Grullo",1]
["Veracruz De Ignacio De La Llave","El Higo",1]
["Jalisco","El Limon",1]
["Aguascalientes","El Llano",1]
["Tamaulipas","El Mante",1]
["Queretaro","El Marques",1]
["San Luis Potosi","El Naranjo",1]
["Durango","El Oro",1]
["Mexico","El Oro",1]
["Zacatecas","El Plateado De Joaquin Amaro",1]
["Chiapas","El Porvenir",1]
["Jalisco","El Salto",1]
["Zacatecas","El Salvador",1]
["Chihuahua","El Tule",1]
["Sinaloa","Elota",1]
["Hidalgo","Eloxochitlan",1]
["Puebla","Eloxochitlan",1]
["Oaxaca","Eloxochitlan De Flores Magon",1]
["Hidalgo","Emiliano Zapata",1]
["Morelos","Emiliano Zapata",1]
["Tabasco","Emiliano Zapata",1]
["Tlaxcala","Emiliano Zapata",1]
["Veracruz De Ignacio De La Llave","Emiliano Zapata",1]
["Sonora","Empalme",0.95899999999999996]
["Jalisco","Encarnacion De Diaz",1]
["Baja California","Ensenada",1.1379999999999999]
["Puebla","Epatlan",1]
["Hidalgo","Epazoyucan",1]
["Michoacan De Ocampo","Epitacio Huerta",1]
["Michoacan De Ocampo","Erongaricuaro",1]
["Campeche","Escarcega",0.94]
["Coahuila De Zaragoza","Escobedo",1]
["Sinaloa","Escuinapa",0.96099999999999997]
["Chiapas","Escuintla",1]
["Tlaxcala","Españita",1]
["Puebla","Esperanza",1]
["Veracruz De Ignacio De La Llave","Espinal",1]
["Yucatan","Espita",1]
["Sonora","Etchojoa",1]
["Jalisco","Etzatlan",1]
["Queretaro","Ezequiel Montes",1]
["Quintana Roo","Felipe Carrillo Puerto",1]
["Veracruz De Ignacio De La Llave","Filomeno Mata",1]
["Guerrero","Florencio Villarreal",1]
["Veracruz De Ignacio De La Llave","Fortin",0.91700000000000004]
["Coahuila De Zaragoza","Francisco I. Madero",1]
["Hidalgo","Francisco I. Madero",1]
["Chiapas","Francisco Leon",1]
["Puebla","Francisco Z. Mena",1]
["Zacatecas","Fresnillo",0.93500000000000005]
["Oaxaca","Fresnillo De Trujano",1]
["Coahuila De Zaragoza","Frontera",1]
["Chiapas","Frontera Comalapa",1]
["Chiapas","Frontera Hidalgo",1]
["Sonora","Fronteras",1]
["Michoacan De Ocampo","Gabriel Zamora",1]
["Chihuahua","Galeana",1]
["Nuevo Leon","Galeana",1]
["Nuevo Leon","Garcia",1]
["Zacatecas","Genaro Codina",1]
["Nuevo Leon","General Bravo",1]
["Guerrero","General Canuto A. Neri",1]
["Coahuila De Zaragoza","General Cepeda",1]
["Zacatecas","General Enrique Estrada",1]
["Nuevo Leon","General Escobedo",1]
["Puebla","General Felipe Angeles",1]
["Zacatecas","General Francisco R. Murguia",1]
["Guerrero","General Heliodoro Castillo",1]
["Zacatecas","General Panfilo Natera",1]
["Sonora","General Plutarco Elias Calles",1]
["Durango","General Simon Bolivar",1]
["Nuevo Leon","General Teran",1]
["Nuevo Leon","General Treviño",1]
["Nuevo Leon","General Zaragoza",1]
["Nuevo Leon","General Zuazua",1]
["Chihuahua","Gomez Farias",1]
["Jalisco","Gomez Farias",1]
["Tamaulipas","Gomez Farias",1]
["Durango","Gomez Palacio",0.92800000000000005]
["Tamaulipas","Gonzalez",1]
["Chihuahua","Gran Morelos",1]
["Sonora","Granados",1]
["Jalisco","Guachinango",1]
["Chihuahua","Guachochi",1]
["Jalisco","Guadalajara",0.98399999999999999]
["San Luis Potosi","Guadalcazar",1]
["Chihuahua","Guadalupe",1]
["Nuevo Leon","Guadalupe",1]
["Puebla","Guadalupe",1]
["Zacatecas","Guadalupe",1]
["Oaxaca","Guadalupe De Ramirez",1]
["Oaxaca","Guadalupe Etla",1]
["Durango","Guadalupe Victoria",1]
["Puebla","Guadalupe Victoria",1]
["Chihuahua","Guadalupe Y Calvo",1]
["Sinaloa","Guamichil",0.96699999999999997]
["Durango","Guanacevi",1]
["Guanajuato","Guanajuato",1]
["Sinaloa","Guasave",0.97]
["Sonora","Guaymas",1.046]
["Chihuahua","Guazapares",1]
["Oaxaca","Guelatao De Juarez",1]
["Tamaulipas","Güemez",1]
["Chihuahua","Guerrero",1]
["Coahuila De Zaragoza","Guerrero",1]
["Tamaulipas","Guerrero",1]
["Oaxaca","Guevea De Humboldt",1]
["Cdmx","Gustavo A. Madero",1]
["Tamaulipas","Gustavo Diaz Ordaz",1]
["Veracruz De Ignacio De La Llave","Gutierrez Zamora",1]
["Yucatan","Halacho",1]
["Campeche","Hecelchakan",1]
["Puebla","Hermenegildo Galeana",1]
["Sonora","Hermosillo",1.01]
["Oaxaca","Heroica Ciudad De Ejutla De Crespo",1]
["Oaxaca","Heroica Ciudad De Huajuapan De Leon",0.84599999999999997]
["Oaxaca","Heroica Ciudad De Juchitan De Zaragoza",1]
["Oaxaca","Heroica Ciudad De Tlaxiaco",1]
["Oaxaca","Heroica Villa Tezoatlan De Segura Y Luna, Cuna De La Independencia De Oaxaca",1]
["Coahuila De Zaragoza","Hidalgo",1]
["Durango","Hidalgo",1]
["Michoacan De Ocampo","Hidalgo",1]
["Nuevo Leon","Hidalgo",1]
["Tamaulipas","Hidalgo",1]
["Chihuahua","Hidalgo Del Parral",1]
["Veracruz De Ignacio De La Llave","Hidalgotitlan",1]
["Nuevo Leon","Higueras",1]
["Yucatan","Hocaba",1]
["Yucatan","Hoctun",1]
["Yucatan","Homun",1]
["Puebla","Honey",1]
["Campeche","Hopelchen",1]
["Jalisco","Hostotipaquillo",1]
["Sonora","Huachinera",1]
["Nayarit","Huajicori",1]
["Nuevo Leon","Hualahuises",1]
["Tlaxcala","Huamantla",0.879]
["Guerrero","Huamuxtitlan",1]
["Michoacan De Ocampo","Huandacareo",1]
["Guanajuato","Huanimaro",1]
["Michoacan De Ocampo","Huaniqueo",1]
["Zacatecas","Huanusco",1]
["Puebla","Huaquechula",1]
["Sonora","Huasabas",1]
["Hidalgo","Huasca De Ocampo",1]
["Sonora","Huatabampo",1]
["Puebla","Huatlatlauca",1]
["Veracruz De Ignacio De La Llave","Huatusco",1]
["Puebla","Huauchinango",1]
["Oaxaca","Huautepec",1]
["Hidalgo","Huautla",1]
["Oaxaca","Huautla De Jimenez",1]
["Veracruz De Ignacio De La Llave","Huayacocotla",1]
["Hidalgo","Huazalingo",1]
["Chiapas","Huehuetan",1]
["Hidalgo","Huehuetla",1]
["Puebla","Huehuetla",1]
["San Luis Potosi","Huehuetlan",1]
["Puebla","Huehuetlan El Chico",1]
["Puebla","Huehuetlan El Grande",1]
["Mexico","Huehuetoca",1]
["Chihuahua","Huejotitan",1]
["Puebla","Huejotzingo",1]
["Jalisco","Huejucar",1]
["Jalisco","Huejuquilla El Alto",1]
["Hidalgo","Huejutla De Reyes",1]
["Sonora","Huepac",1]
["Michoacan De Ocampo","Huetamo",1]
["Puebla","Hueyapan",1]
["Veracruz De Ignacio De La Llave","Hueyapan De Ocampo",1]
["Tlaxcala","Hueyotlipan",1]
["Mexico","Hueypoxtla",1]
["Puebla","Hueytamalco",1]
["Puebla","Hueytlalpan",1]
["Yucatan","Huhi",1]
["Hidalgo","Huichapan",1]
["Veracruz De Ignacio De La Llave","Huiloapan De Cuauhtemoc",1]
["Tabasco","Huimanguillo",1]
["Queretaro","Huimilpan",1]
["Michoacan De Ocampo","Huiramba",1]
["Chiapas","Huitiupan",1]
["Morelos","Huitzilac",1]
["Puebla","Huitzilan De Serdan",1]
["Puebla","Huitziltepec",1]
["Guerrero","Huitzuco De Los Figueroa",1]
["Mexico","Huixquilucan",1]
["Chiapas","Huixtan",1]
["Chiapas","Huixtla",1]
["Yucatan","Hunucma",1]
["Veracruz De Ignacio De La Llave","Ignacio De La Llave",1]
["Chihuahua","Ignacio Zaragoza",1]
["Guerrero","Iguala De La Independencia",0.93500000000000005]
["Guerrero","Igualapa",1]
["Veracruz De Ignacio De La Llave","Ilamatlan",1]
["Guerrero","Iliatenco",1]
["Sonora","Imuris",1]
["Michoacan De Ocampo","Indaparapeo",1]
["Durango","Inde",1]
["Guanajuato","Irapuato",0.88500000000000001]
["Michoacan De Ocampo","Irimbo",1]
["Mexico","Isidro Fabela",1]
["Veracruz De Ignacio De La Llave","Isla",1]
["Quintana Roo","Isla Mujeres",1]
["Nuevo Leon","Iturbide",1]
["Puebla","Ixcamilpa De Guerrero",1]
["Puebla","Ixcaquixtla",1]
["Guerrero","Ixcateopan De Cuauhtemoc",1]
["Veracruz De Ignacio De La Llave","Ixcatepec",1]
["Veracruz De Ignacio De La Llave","Ixhuacan De Los Reyes",1]
["Chiapas","Ixhuatan",1]
["Veracruz De Ignacio De La Llave","Ixhuatlan De Madero",1]
["Veracruz De Ignacio De La Llave","Ixhuatlan Del Cafe",1]
["Veracruz De Ignacio De La Llave","Ixhuatlan Del Sureste",1]
["Veracruz De Ignacio De La Llave","Ixhuatlancillo",1]
["Yucatan","Ixil",1]
["Veracruz De Ignacio De La Llave","Ixmatlahuacan",1]
["Hidalgo","Ixmiquilpan",1]
["Oaxaca","Ixpantepec Nieves",1]
["Puebla","Ixtacamaxtitlan",1]
["Chiapas","Ixtacomitan",1]
["Tlaxcala","Ixtacuixtla De Mariano Matamoros",1]
["Veracruz De Ignacio De La Llave","Ixtaczoquitlan",1]
["Chiapas","Ixtapa",1]
["Guerrero","Ixtapa",0.97299999999999998]
["Mexico","Ixtapaluca",1]
["Mexico","Ixtapan De La Sal",1]
["Mexico","Ixtapan Del Oro",1]
["Chiapas","Ixtapangajoya",1]
["Tlaxcala","Ixtenco",1]
["Puebla","Ixtepec",1]
["Mexico","Ixtlahuaca",1]
["Colima","Ixtlahuacan",1]
["Jalisco","Ixtlahuacan De Los Membrillos",1]
["Jalisco","Ixtlahuacan Del Rio",1]
["Michoacan De Ocampo","Ixtlan",1]
["Oaxaca","Ixtlan De Juarez",1]
["Nayarit","Ixtlan Del Rio",1]
["Yucatan","Izamal",1]
["Cdmx","Iztacalco",1]
["Cdmx","Iztapalapa",1]
["Puebla","Izucar De Matamoros",1]
["Hidalgo","Jacala De Ledezma",1]
["Michoacan De Ocampo","Jacona",1]
["Nayarit","Jala",1]
["Veracruz De Ignacio De La Llave","Jalacingo",1]
["Tabasco","Jalapa",1]
["Mexico","Jalatlaco",1]
["Veracruz De Ignacio De La Llave","Jalcomulco",1]
["Jalisco","Jalostotitlan",1]
["Zacatecas","Jalpa",1]
["Tabasco","Jalpa De Mendez",1]
["Puebla","Jalpan",1]
["Queretaro","Jalpan De Serra",1]
["Mexico","Jaltenco",1]
["Veracruz De Ignacio De La Llave","Jaltipan",1]
["Hidalgo","Jaltocan",1]
["Veracruz De Ignacio De La Llave","Jamapa",1]
["Jalisco","Jamay",1]
["Chihuahua","Janos",1]
["Morelos","Jantetelco",1]
["Guanajuato","Jaral Del Progreso",1]
["Tamaulipas","Jaumave",1]
["Guanajuato","Jerecuaro",1]
["Zacatecas","Jerez",0.872]
["Veracruz De Ignacio De La Llave","Jesus Carranza",1]
["Aguascalientes","Jesus Maria",1]
["Jalisco","Jesus Maria",1]
["Mexico","Jilotepec",0.92400000000000004]
["Veracruz De Ignacio De La Llave","Jilotepec",1]
["Jalisco","Jilotlan De Los Dolores",1]
["Mexico","Jilotzingo",1]
["Chihuahua","Jimenez",1]
["Coahuila De Zaragoza","Jimenez",1]
["Michoacan De Ocampo","Jimenez",1]
["Tamaulipas","Jimenez",1]
["Zacatecas","Jimenez Del Teul",1]
["Michoacan De Ocampo","Jiquilpan",0.91600000000000004]
["Chiapas","Jiquipilas",1]
["Mexico","Jiquipilco",1]
["Chiapas","Jitotol",1]
["Morelos","Jiutepec",0.96]
["Jalisco","Jocotepec",1]
["Mexico","Jocotitlan",1]
["Morelos","Jojutla",1]
["Puebla","Jolalpan",1]
["Morelos","Jonacatepec",1]
["Puebla","Jonotla",1]
["Tabasco","Jonuta",1]
["Puebla","Jopala",1]
["Mexico","Joquicingo",1]
["Veracruz De Ignacio De La Llave","Jose Azueta",1]
["Guerrero","Jose Joaquin De Herrera",1]
["Quintana Roo","Jose Maria Morelos",1]
["Michoacan De Ocampo","Jose Sixto Verduzco",1]
["Zacatecas","Juan Aldama",1]
["Puebla","Juan C. Bonilla",1]
["Puebla","Juan Galindo",1]
["Puebla","Juan N. Mendez",1]
["Guerrero","Juan R. Escudero",1]
["Veracruz De Ignacio De La Llave","Juan Rodriguez Clara",1]
["Jalisco","Juanacatlan",1]
["Chiapas","Juarez",1]
["Chihuahua","Ciudad Juarez",1.048]
["Coahuila De Zaragoza","Juarez",1]
["Michoacan De Ocampo","Juarez",1]
["Nuevo Leon","Juarez",1]
["Hidalgo","Juarez Hidalgo",1]
["Zacatecas","Juchipila",1]
["Veracruz De Ignacio De La Llave","Juchique De Ferrer",1]
["Guerrero","Juchitan",1]
["Mexico","Juchitepec",1]
["Jalisco","Juchitlan",1]
["Chihuahua","Julimes",1]
["Michoacan De Ocampo","Jungapeo",1]
["Yucatan","Kanasin",1]
["Yucatan","Kantunil",1]
["Yucatan","Kaua",1]
["Yucatan","Kinchil",1]
["Yucatan","Kopoma",1]
["Veracruz De Ignacio De La Llave","La Antigua",1]
["Jalisco","La Barca",1]
["Sonora","La Colorada",1]
["Oaxaca","La Compañia",1]
["Chiapas","La Concordia",1]
["Chihuahua","La Cruz",1]
["Chiapas","La Grandeza",1]
["Michoacan De Ocampo","La Huacana",1]
["Jalisco","La Huerta",1]
["Chiapas","La Independencia",1]
["Chiapas","La Libertad",1]
["Cdmx","La Magdalena Contreras",1]
["Tlaxcala","La Magdalena Tlaltelulco",1]
["Puebla","La Magdalena Tlatlauquitepec",1]
["Jalisco","La Manzanilla De La Paz",1]
["Hidalgo","La Mision",1]
["Baja California Sur","La Paz",1.177]
["Mexico","La Paz",1]
["Oaxaca","La Pe",1]
["Veracruz De Ignacio De La Llave","La Perla",1]
["Michoacan De Ocampo","La Piedad",1]
["Oaxaca","La Reforma",1]
["Oaxaca","La Trinidad Vista Hermosa",1]
["Chiapas","La Trinitaria",1]
["Guerrero","La Union De Isidoro Montes De Oca",1]
["Nayarit","La Yesca",1]
["Puebla","Lafragua",1]
["Jalisco","Lagos De Moreno",0.94]
["Michoacan De Ocampo","Lagunillas",1]
["San Luis Potosi","Lagunillas",1]
["Coahuila De Zaragoza","Lamadrid",1]
["Nuevo Leon","Lampazos De Naranjo",1]
["Queretaro","Landa De Matamoros",1]
["Veracruz De Ignacio De La Llave","Landero Y Coss",1]
["Chiapas","Larrainzar",1]
["Veracruz De Ignacio De La Llave","Las Choapas",1]
["Chiapas","Las Margaritas",1]
["Veracruz De Ignacio De La Llave","Las Minas",1]
["Chiapas","Las Rosas",1]
["Veracruz De Ignacio De La Llave","Las Vigas De Ramirez",1]
["Michoacan De Ocampo","Lazaro Cardenas",0.89200000000000002]
["Quintana Roo","Lazaro Cardenas",1]
["Tlaxcala","Lazaro Cardenas",1]
["Guanajuato","Leon",1.0449999999999999]
["Guerrero","Leonardo Bravo",1]
["Durango","Lerdo",1]
["Veracruz De Ignacio De La Llave","Lerdo De Tejada",1]
["Mexico","Lerma",0.877]
["Puebla","Libres",1]
["Nuevo Leon","Linares",0.93799999999999994]
["Tamaulipas","Llera",1]
["Hidalgo","Lolotla",1]
["Oaxaca","Loma Bonita",1]
["Chihuahua","Lopez",1]
["Baja California Sur","Loreto",1]
["Zacatecas","Loreto",1]
["Nuevo Leon","Los Aldamas",1]
["Baja California Sur","Los Cabos",1]
["Nuevo Leon","Los Herreras",1]
["Sinaloa","Los Mochis",0.96099999999999997]
["Nuevo Leon","Los Ramones",1]
["Michoacan De Ocampo","Los Reyes",1]
["Veracruz De Ignacio De La Llave","Los Reyes",1]
["Puebla","Los Reyes De Juarez",1]
["Zacatecas","Luis Moya",1]
["Mexico","Luvianos",1]
["Tabasco","Macuspana",1]
["Chihuahua","Madera",1]
["Michoacan De Ocampo","Madero",1]
["Jalisco","Magdalena",1]
["Sonora","Magdalena",1]
["Veracruz De Ignacio De La Llave","Magdalena",1]
["Oaxaca","Magdalena Apasco",1]
["Oaxaca","Magdalena Jaltepec",1]
["Oaxaca","Magdalena Mixtepec",1]
["Oaxaca","Magdalena Ocotlan",1]
["Oaxaca","Magdalena Peñasco",1]
["Oaxaca","Magdalena Teitipac",1]
["Oaxaca","Magdalena Tequisistlan",1]
["Oaxaca","Magdalena Tlacotepec",1]
["Oaxaca","Magdalena Yodocono De Porfirio Diaz",1]
["Oaxaca","Magdalena Zahuatlan",1]
["Chihuahua","Maguarichi",1]
["Tamaulipas","Mainero",1]
["Mexico","Malinalco",1]
["Guerrero","Malinaltepec",1]
["Veracruz De Ignacio De La Llave","Maltrata",1]
["Yucatan","Mama",1]
["Yucatan","Mani",1]
["Veracruz De Ignacio De La Llave","Manlio Fabio Altamirano",1]
["Chihuahua","Manuel Benavides",1]
["Guanajuato","Manuel Doblado",1]
["Colima","Manzanillo",0.89800000000000002]
["Chiapas","Mapastepec",1]
["Durango","Mapimi",1]
["Michoacan De Ocampo","Maravatio",1]
["Chiapas","Maravilla Tenejapa",1]
["Michoacan De Ocampo","Marcos Castellanos",1]
["Veracruz De Ignacio De La Llave","Mariano Escobedo",1]
["Nuevo Leon","Marin",1]
["Oaxaca","Mariscala De Juarez",1]
["Guerrero","Marquelia",1]
["Chiapas","Marques De Comillas",1]
["Veracruz De Ignacio De La Llave","Martinez De La Torre",1]
["Guerrero","Martir De Cuilapan",1]
["Oaxaca","Martires De Tacubaya",1]
["Jalisco","Mascota",1]
["Chihuahua","Matachi",1]
["Chihuahua","Matamoros",1]
["Coahuila De Zaragoza","Matamoros",1]
["Tamaulipas","Matamoros",1.075]
["San Luis Potosi","Matehuala",0.95899999999999996]
["Oaxaca","Matias Romero Avendaño",1]
["San Luis Potosi","Matlapa",1]
["Yucatan","Maxcanu",1]
["Yucatan","Mayapan",1]
["Jalisco","Mazamitla",1]
["Chiapas","Mazapa De Madero",1]
["Zacatecas","Mazapil",1]
["Puebla","Mazapiltepec De Juarez",1]
["Chiapas","Mazatan",1.056]
["Sonora","Mazatan",1]
["Tlaxcala","Mazatecochco De Jose Maria Morelos",1]
["Morelos","Mazatepec",1]
["Sinaloa","Mazatlan",1.056]
["Oaxaca","Mazatlan Villa De Flores",1]
["Veracruz De Ignacio De La Llave","Mecatlan",1]
["Veracruz De Ignacio De La Llave","Mecayapan",1]
["Veracruz De Ignacio De La Llave","Medellin",1]
["Mexico","Melchor Ocampo",1]
["Nuevo Leon","Melchor Ocampo",1]
["Zacatecas","Melchor Ocampo",1]
["Tamaulipas","Mendez",1]
["Chihuahua","Meoqui",1]
["Yucatan","Merida",1.0089999999999999]
["Oaxaca","Mesones Hidalgo",1]
["Chiapas","Metapa",1]
["Hidalgo","Metepec",1]
["Mexico","Metepec",1]
["Guerrero","Metlatonoc",1]
["Hidalgo","Metztitlan",1]
["Baja California","Mexicali",1.135]
["Mexico","Mexicaltzingo",1]
["San Luis Potosi","Mexquitic De Carmona",1]
["Jalisco","Mexticacan",1]
["Durango","Mezquital",1]
["Zacatecas","Mezquital Del Oro",1]
["Jalisco","Mezquitic",1]
["Morelos","Miacatlan",1]
["Veracruz De Ignacio De La Llave","Miahuatlan",1]
["Oaxaca","Miahuatlan De Porfirio Diaz",1]
["Tamaulipas","Mier",1]
["Nuevo Leon","Mier Y Noriega",1]
["Tamaulipas","ciudad Miguel Aleman",1.071]
["Zacatecas","Miguel Auza",1]
["Cdmx","Miguel Hidalgo",1]
["Cdmx","Milpa Alta",1]
["Nuevo Leon","Mina",1]
["Colima","Minatitlan",1]
["Veracruz De Ignacio De La Llave","Minatitlan",0.94499999999999995]
["Hidalgo","Mineral De La Reforma",1]
["Hidalgo","Mineral Del Chico",1]
["Hidalgo","Mineral Del Monte",1]
["Tamaulipas","Miquihuana",1]
["Veracruz De Ignacio De La Llave","Misantla",1]
["Chiapas","Mitontic",1]
["Oaxaca","Mixistlan De La Reforma",1]
["Hidalgo","Mixquiahuala De Juarez",1]
["Puebla","Mixtla",1]
["Veracruz De Ignacio De La Llave","Mixtla De Altamirano",1]
["Jalisco","Mixtlan",1]
["Guerrero","Mochitlan",1]
["Yucatan","Mococha",1]
["Sinaloa","Mocorito",1]
["San Luis Potosi","Moctezuma",1]
["Sonora","Moctezuma",1]
["Hidalgo","Molango De Escamilla",1]
["Puebla","Molcaxac",1]
["Veracruz De Ignacio De La Llave","Moloacan",1]
["Zacatecas","Momax",1]
["Coahuila De Zaragoza","Monclova",0.92400000000000004]
["Oaxaca","Monjas",1]
["Zacatecas","Monte Escobedo",1]
["Chiapas","Montecristo De Guerrero",1]
["Nuevo Leon","Montemorelos",0.95499999999999996]
["Nuevo Leon","Monterrey",1.054]
["Michoacan De Ocampo","Morelia",0.91300000000000003]
["Chihuahua","Morelos",1]
["Coahuila De Zaragoza","Morelos",1]
["Mexico","Morelos",1]
["Michoacan De Ocampo","Morelos",1]
["Zacatecas","Morelos",1]
["Chihuahua","Moris",1]
["Guanajuato","Moroleon",0.96799999999999997]
["Chiapas","Motozintla",1]
["Yucatan","Motul",1]
["Zacatecas","Moyahua De Estrada",1]
["Michoacan De Ocampo","Mugica",1]
["Baja California Sur","Mulege",1]
["Yucatan","Muna",1]
["Tlaxcala","Muñoz De Domingo Arenas",1]
["Yucatan","Muxupip",1]
["Coahuila De Zaragoza","Muzquiz",1.0169999999999999]
["Tabasco","Nacajuca",1]
["Sonora","Naco",1]
["Sonora","Nacori Chico",1]
["Sonora","Nacozari De Garcia",1]
["Coahuila De Zaragoza","Nadadores",1]
["Michoacan De Ocampo","Nahuatzen",1]
["Chihuahua","Namiquipa",1]
["Tlaxcala","Nanacamilpa De Mariano Arista",1]
["Veracruz De Ignacio De La Llave","Nanchital De Lazaro Cardenas Del Rio",1]
["Veracruz De Ignacio De La Llave","Naolinco",1]
["Veracruz De Ignacio De La Llave","Naranjal",1]
["Veracruz De Ignacio De La Llave","Naranjos Amatlan",1]
["Oaxaca","Natividad",1]
["Tlaxcala","Nativitas",1]
["Mexico","Naucalpan De Juarez",1]
["Puebla","Naupan",1]
["Veracruz De Ignacio De La Llave","Nautla",1]
["Puebla","Nauzontla",1]
["Coahuila De Zaragoza","Nava",1]
["Sonora","Navojoa",1.014]
["Sinaloa","Navolato",1]
["Oaxaca","Nazareno Etla",1]
["Durango","Nazas",1]
["Puebla","Nealtican",1]
["Oaxaca","Nejapa De Madero",1]
["Mexico","Nextlalpan",1]
["Mexico","Nezahualcoyotl",1]
["Puebla","Nicolas Bravo",1]
["Hidalgo","Nicolas Flores",1]
["Mexico","Nicolas Romero",1]
["Chiapas","Nicolas Ruiz",1]
["Zacatecas","Nochistlan De Mejia",1]
["Michoacan De Ocampo","Nocupetaro",1]
["Sonora","Nogales",1.1100000000000001]
["Veracruz De Ignacio De La Llave","Nogales",1]
["Durango","Nombre De Dios",1]
["Chihuahua","Nonoava",1]
["Hidalgo","Nopala De Villagran",1]
["Mexico","Nopaltepec",1]
["Puebla","Nopalucan",1]
["Zacatecas","Noria De Angeles",1]
["Chihuahua","Nuevo Casas Grandes",1]
["Durango","Nuevo Ideal",1]
["Tamaulipas","Nuevo Laredo",1.1180000000000001]
["Tamaulipas","Nuevo Morelos",1]
["Michoacan De Ocampo","Nuevo Parangaricutiro",1]
["Michoacan De Ocampo","Nuevo Urecho",1]
["Oaxaca","Nuevo Zoquiapam",1]
["Michoacan De Ocampo","Numaran",1]
["Oaxaca","Oaxaca De Juarez",0.92]
["Chihuahua","Ocampo",1]
["Coahuila De Zaragoza","Ocampo",1]
["Durango","Ocampo",1]
["Guanajuato","Ocampo",1]
["Michoacan De Ocampo","Ocampo",1]
["Tamaulipas","Ocampo",1]
["Chiapas","Ocosingo",1]
["Chiapas","Ocotepec",1]
["Puebla","Ocotepec",1]
["Jalisco","Ocotlan",0.93899999999999995]
["Oaxaca","Ocotlan De Morelos",1]
["Mexico","Ocoyoacac",1]
["Puebla","Ocoyucan",1]
["Chiapas","Ocozocoautla De Espinosa",1]
["Mexico","Ocuilan",1]
["Morelos","Ocuituco",1]
["Chihuahua","Ojinaga",1]
["Zacatecas","Ojocaliente",1]
["Jalisco","Ojuelos De Jalisco",1]
["Guerrero","Olinala",1]
["Puebla","Olintla",1]
["Veracruz De Ignacio De La Llave","Oluta",1]
["Veracruz De Ignacio De La Llave","Omealca",1]
["Guerrero","Ometepec",0.92400000000000004]
["Hidalgo","Omitlan De Juarez",1]
["Sonora","Onavas",1]
["Yucatan","Opichen",1]
["Sonora","Opodepe",1]
["Sonora","Oquitoa",1]
["Puebla","Oriental",1]
["Veracruz De Ignacio De La Llave","Orizaba",0.89600000000000002]
["Chiapas","Ostuacan",1]
["Chiapas","Osumacinta",1]
["Durango","Otaez",1]
["Veracruz De Ignacio De La Llave","Otatitlan",1]
["Veracruz De Ignacio De La Llave","Oteapan",1]
["Quintana Roo","Othon P. Blanco",1]
["Mexico","Otumba",1]
["Mexico","Otzoloapan",1]
["Mexico","Otzolotepec",1]
["Chiapas","Oxchuc",1]
["Yucatan","Oxkutzcab",1]
["Veracruz De Ignacio De La Llave","Ozuluama De Mascareñas",1]
["Mexico","Ozumba",1]
["Aguascalientes","Pabellon De Arteaga",1]
["Hidalgo","Pachuca De Soto",0.91200000000000003]
["Hidalgo","Pacula",1]
["Tamaulipas","Padilla",1]
["Puebla","Pahuatlan",1]
["Michoacan De Ocampo","Pajacuaran",1]
["Veracruz De Ignacio De La Llave","Pajapan",1]
["Chiapas","Palenque",0.91]
["Campeche","Palizada",1]
["Puebla","Palmar De Bravo",1]
["Tamaulipas","Palmillas",1]
["Yucatan","Panaba",1]
["Michoacan De Ocampo","Panindicuaro",1]
["Tlaxcala","Panotla",1]
["Chiapas","Pantelho",1]
["Chiapas","Pantepec",1]
["Puebla","Pantepec",1]
["Veracruz De Ignacio De La Llave","Panuco",1]
["Zacatecas","Panuco",1]
["Durango","Panuco De Coronado",1]
["Mexico","Papalotla",1]
["Tlaxcala","Papalotla De Xicohtencatl",1]
["Veracruz De Ignacio De La Llave","Papantla",0.90800000000000003]
["Michoacan De Ocampo","Paracho",1]
["Michoacan De Ocampo","Paracuaro",1]
["Tabasco","Paraiso",1]
["Nuevo Leon","Paras",1]
["Coahuila De Zaragoza","Parras",1]
["Veracruz De Ignacio De La Llave","Paso De Ovejas",1]
["Veracruz De Ignacio De La Llave","Paso Del Macho",1]
["Michoacan De Ocampo","Patzcuaro",0.872]
["Guerrero","Pedro Ascencio Alquisiras",1]
["Queretaro","Pedro Escobedo",1]
["Michoacan De Ocampo","Penjamillo",1]
["Guanajuato","Penjamo",1]
["Queretaro","Peñamiller",1]
["Durango","Peñon Blanco",1]
["Michoacan De Ocampo","Periban",1]
["Veracruz De Ignacio De La Llave","Perote",1]
["Nuevo Leon","Pesqueria",1]
["Guerrero","Petatlan",1]
["Puebla","Petlalcingo",1]
["Yucatan","Peto",1]
["Puebla","Piaxtla",1]
["Chiapas","Pichucalco",1]
["Coahuila De Zaragoza","Piedras Negras",1.012]
["Jalisco","Pihuamo",1]
["Chiapas","Pijijiapan",1]
["Guerrero","Pilcaya",1]
["Queretaro","Pinal De Amoles",1]
["Zacatecas","Pinos",1]
["Oaxaca","Pinotepa De Don Luis",1]
["Hidalgo","Pisaflores",1]
["Sonora","Pitiquito",1]
["Veracruz De Ignacio De La Llave","Platon Sanchez",1]
["Veracruz De Ignacio De La Llave","Playa Vicente",1]
["Baja California","Playas De Rosarito",1]
["Oaxaca","Pluma Hidalgo",1]
["Durango","Poanas",1]
["Mexico","Polotitlan",1]
["Jalisco","Poncitlan",1]
["Veracruz De Ignacio De La Llave","Poza Rica De Hidalgo",0.94099999999999995]
["Chihuahua","Praxedis G. Guerrero",1]
["Coahuila De Zaragoza","Progreso",1]
["Yucatan","Progreso",1]
["Hidalgo","Progreso De Obregon",1]
["Puebla","Puebla",0.98199999999999998]
["Durango","Pueblo Nuevo",1]
["Guanajuato","Pueblo Nuevo",1]
["Chiapas","Pueblo Nuevo Solistahuacan",1]
["Veracruz De Ignacio De La Llave","Pueblo Viejo",1]
["Morelos","Puente De Ixtla",1]
["Veracruz De Ignacio De La Llave","Puente Nacional",1]
["Sonora","Puerto Peñasco",1]
["Jalisco","Puerto Vallarta",1.0349999999999999]
["Guerrero","Pungarabato",1]
["Michoacan De Ocampo","Purepero",1]
["Guanajuato","Purisima Del Rincon",1]
["Michoacan De Ocampo","Puruandiro",1]
["Oaxaca","Putla Villa De Guerrero",1]
["Puebla","Quecholac",1]
["Guerrero","Quechultenango",1]
["Michoacan De Ocampo","Querendaro",1]
["Queretaro","Queretaro",0.98199999999999998]
["Puebla","Quimixtlan",1]
["Yucatan","Quintana Roo",1]
["Sonora","Quiriego",1]
["Michoacan De Ocampo","Quiroga",1]
["Jalisco","Quitupan",1]
["Veracruz De Ignacio De La Llave","Rafael Delgado",1]
["Puebla","Rafael Lara Grajales",1]
["Veracruz De Ignacio De La Llave","Rafael Lucio",1]
["Coahuila De Zaragoza","Ramos Arizpe",1]
["Chiapas","Rayon",1]
["Mexico","Rayon",1]
["San Luis Potosi","Rayon",1]
["Sonora","Rayon",1]
["Nuevo Leon","Rayones",1]
["Chiapas","Reforma",1]
["Oaxaca","Reforma De Pineda",1]
["Oaxaca","Reyes Etla",1]
["Tamaulipas","Reynosa",1.1870000000000001]
["Aguascalientes","Rincon De Romos",1]
["Veracruz De Ignacio De La Llave","Rio Blanco",1]
["Tamaulipas","Rio Bravo",1.0880000000000001]
["Zacatecas","Rio Grande",1]
["Yucatan","Rio Lagartos",1]
["San Luis Potosi","Rioverde",1]
["Chihuahua","Riva Palacio",1]
["Durango","Rodeo",1]
["Oaxaca","Rojas De Cuauhtemoc",1]
["Guanajuato","Romita",1]
["Chihuahua","Rosales",1]
["Nayarit","Rosamorada",1]
["Chihuahua","Rosario",1]
["Sinaloa","Rosario",1]
["Sonora","Rosario",1]
["Nayarit","Ruiz",1]
["Chiapas","Sabanilla",1]
["Coahuila De Zaragoza","Sabinas",0.89600000000000002]
["Nuevo Leon","Sabinas Hidalgo",1]
["Yucatan","Sacalum",1]
["Coahuila De Zaragoza","Sacramento",1]
["Sonora","Sahuaripa",1]
["Michoacan De Ocampo","Sahuayo",0.86599999999999999]
["Zacatecas","Sain Alto",1]
["Guanajuato","Salamanca",0.88800000000000001]
["Oaxaca","Salina Cruz",1]
["San Luis Potosi","Salinas",1]
["Nuevo Leon","Salinas Victoria",1]
["Veracruz De Ignacio De La Llave","Saltabarranca",1]
["Coahuila De Zaragoza","Saltillo",0.91600000000000004]
["Chiapas","Salto De Agua",1]
["Sinaloa","Salvador Alvarado",1]
["Michoacan De Ocampo","Salvador Escalante",1]
["Guanajuato","Salvatierra",1]
["Yucatan","Samahil",1]
["Oaxaca","San Agustin Amatengo",1]
["Oaxaca","San Agustin Atenango",1]
["Oaxaca","San Agustin Chayuco",1]
["Oaxaca","San Agustin De Las Juntas",1]
["Oaxaca","San Agustin Etla",1]
["Oaxaca","San Agustin Loxicha",1]
["Hidalgo","San Agustin Metzquititlan",1]
["Oaxaca","San Agustin Tlacotepec",1]
["Hidalgo","San Agustin Tlaxiaca",1]
["Oaxaca","San Agustin Yatareni",1]
["Oaxaca","San Andres Cabecera Nueva",1]
["Puebla","San Andres Cholula",1]
["Oaxaca","San Andres Dinicuiti",1]
["Chiapas","San Andres Duraznal",1]
["Oaxaca","San Andres Huaxpaltepec",1]
["Oaxaca","San Andres Huayapam",1]
["Oaxaca","San Andres Ixtlahuaca",1]
["Oaxaca","San Andres Lagunas",1]
["Oaxaca","San Andres Nuxiño",1]
["Oaxaca","San Andres Paxtlan",1]
["Oaxaca","San Andres Sinaxtla",1]
["Oaxaca","San Andres Solaga",1]
["Veracruz De Ignacio De La Llave","San Andres Tenejapan",1]
["Oaxaca","San Andres Teotilalpam",1]
["Oaxaca","San Andres Tepetlapa",1]
["Veracruz De Ignacio De La Llave","San Andres Tuxtla",1]
["Oaxaca","San Andres Yaa",1]
["Oaxaca","San Andres Zabache",1]
["Oaxaca","San Andres Zautla",1]
["Oaxaca","San Antonino Castillo Velasco",1]
["Oaxaca","San Antonino El Alto",1]
["Oaxaca","San Antonino Monte Verde",1]
["San Luis Potosi","San Antonio",1]
["Oaxaca","San Antonio Acutla",1]
["Puebla","San Antonio Cañada",1]
["Oaxaca","San Antonio De La Cal",1]
["Oaxaca","San Antonio Huitepec",1]
["Mexico","San Antonio La Isla",1]
["Oaxaca","San Antonio Nanahuatipam",1]
["Oaxaca","San Antonio Sinicahua",1]
["Oaxaca","San Antonio Tepetlapa",1]
["Oaxaca","San Baltazar Chichicapam",1]
["Oaxaca","San Baltazar Loxicha",1]
["Oaxaca","San Baltazar Yatzachi El Bajo",1]
["Oaxaca","San Bartolo Coyotepec",1]
["Oaxaca","San Bartolo Soyaltepec",1]
["Hidalgo","San Bartolo Tutotepec",1]
["Oaxaca","San Bartolo Yautepec",1]
["Oaxaca","San Bartolome Ayautla",1]
["Oaxaca","San Bartolome Loxicha",1]
["Oaxaca","San Bartolome Quialana",1]
["Oaxaca","San Bartolome Yucuañe",1]
["Oaxaca","San Bartolome Zoogocho",1]
["Durango","San Bernardo",1]
["Oaxaca","San Bernardo Mixtepec",1]
["Nayarit","San Blas",1]
["Oaxaca","San Blas Atempa",1]
["Coahuila De Zaragoza","San Buenaventura",1]
["Tamaulipas","San Carlos",1]
["Oaxaca","San Carlos Yautepec",1]
["San Luis Potosi","San Ciro De Acosta",1]
["Oaxaca","San Cristobal Amatlan",1]
["Oaxaca","San Cristobal Amoltepec",1]
["Jalisco","San Cristobal De La Barranca",1]
["Chiapas","San Cristobal De Las Casas",0.89600000000000002]
["Oaxaca","San Cristobal Lachirioag",1]
["Oaxaca","San Cristobal Suchixtlahuaca",1]
["Tlaxcala","San Damian Texoloc",1]
["Jalisco","San Diego De Alejandria",1]
["Guanajuato","San Diego De La Union",1]
["Puebla","San Diego La Mesa Tochimiltzingo",1]
["Durango","San Dimas",1]
["Oaxaca","San Dionisio Del Mar",1]
["Oaxaca","San Dionisio Ocotepec",1]
["Oaxaca","San Dionisio Ocotlan",1]
["Oaxaca","San Esteban Atatlahuca",1]
["Guanajuato","San Felipe",1]
["Yucatan","San Felipe",1]
["Sonora","San Felipe De Jesus",1]
["Mexico","San Felipe Del Progreso",1]
["Oaxaca","San Felipe Jalapa De Diaz",1]
["Hidalgo","San Felipe Orizatlan",1]
["Oaxaca","San Felipe Tejalapam",1]
["Puebla","San Felipe Teotlalcingo",1]
["Puebla","San Felipe Tepatlan",1]
["Oaxaca","San Felipe Usila",1]
["Chiapas","San Fernando",1]
["Tamaulipas","San Fernando",1]
["Oaxaca","San Francisco Cahuacua",1]
["Oaxaca","San Francisco Cajonos",1]
["Oaxaca","San Francisco Chapulapa",1]
["Oaxaca","San Francisco Chindua",1]
["Chihuahua","San Francisco De Borja",1]
["Chihuahua","San Francisco De Conchos",1]
["Aguascalientes","San Francisco De Los Romo",1]
["Oaxaca","San Francisco Del Mar",1]
["Chihuahua","San Francisco Del Oro",1]
["Guanajuato","San Francisco Del Rincon",1]
["Oaxaca","San Francisco Huehuetlan",1]
["Oaxaca","San Francisco Ixhuatan",1]
["Oaxaca","San Francisco Jaltepetongo",1]
["Oaxaca","San Francisco Lachigolo",1]
["Oaxaca","San Francisco Logueche",1]
["Oaxaca","San Francisco Nuxaño",1]
["Oaxaca","San Francisco Ozolotepec",1]
["Oaxaca","San Francisco Sola",1]
["Oaxaca","San Francisco Telixtlahuaca",1]
["Oaxaca","San Francisco Teopan",1]
["Tlaxcala","San Francisco Tetlanohcan",1]
["Oaxaca","San Francisco Tlapancingo",1]
["Jalisco","San Gabriel",1]
["Puebla","San Gabriel Chilac",1]
["Oaxaca","San Gabriel Mixtepec",1]
["Puebla","San Gregorio Atzompa",1]
["Sinaloa","San Ignacio",1]
["Jalisco","San Ignacio Cerro Gordo",1]
["Sonora","San Ignacio Rio Muerto",1]
["Oaxaca","San Ildefonso Amatlan",1]
["Oaxaca","San Ildefonso Sola",1]
["Oaxaca","San Ildefonso Villa Alta",1]
["Oaxaca","San Jacinto Amilpas",1]
["Oaxaca","San Jacinto Tlacotepec",1]
["Sonora","San Javier",1]
["Oaxaca","San Jeronimo Coatlan",1]
["Oaxaca","San Jeronimo Silacayoapilla",1]
["Oaxaca","San Jeronimo Sosola",1]
["Oaxaca","San Jeronimo Taviche",1]
["Oaxaca","San Jeronimo Tecoatl",1]
["Puebla","San Jeronimo Tecuanipan",1]
["Oaxaca","San Jeronimo Tlacochahuaya",1]
["Puebla","San Jeronimo Xayacatlan",1]
["Tlaxcala","San Jeronimo Zacualpan",1]
["Queretaro","San Joaquin",1]
["Oaxaca","San Jorge Nuchita",1]
["Oaxaca","San Jose Ayuquila",1]
["Puebla","San Jose Chiapa",1]
["Oaxaca","San Jose Chiltepec",1]
["Aguascalientes","San Jose De Gracia",1]
["Oaxaca","San Jose Del Peñasco",1]
["Oaxaca","San Jose Del Progreso",1]
["Mexico","San Jose Del Rincon",1]
["Oaxaca","San Jose Estancia Grande",1]
["Oaxaca","San Jose Independencia",1]
["Guanajuato","San Jose Iturbide",1]
["Oaxaca","San Jose Lachiguiri",1]
["Puebla","San Jose Miahuatlan",1]
["Tlaxcala","San Jose Teacalco",1]
["Oaxaca","San Jose Tenango",1]
["Oaxaca","San Juan Achiutla",1]
["Puebla","San Juan Atenco",1]
["Oaxaca","San Juan Atepec",1]
["Puebla","San Juan Atzompa",1]
["Oaxaca","San Juan Bautista Atatlahuca",1]
["Oaxaca","San Juan Bautista Coixtlahuaca",1]
["Oaxaca","San Juan Bautista Cuicatlan",1]
["Oaxaca","San Juan Bautista Guelache",1]
["Oaxaca","San Juan Bautista Jayacatlan",1]
["Oaxaca","San Juan Bautista Lo De Soto",1]
["Oaxaca","San Juan Bautista Suchitepec",1]
["Oaxaca","San Juan Bautista Tlachichilco",1]
["Oaxaca","San Juan Bautista Tlacoatzintepec",1]
["Oaxaca","San Juan Bautista Tuxtepec",1]
["Oaxaca","San Juan Bautista Valle Nacional",1]
["Oaxaca","San Juan Cacahuatepec",1]
["Chiapas","San Juan Cancuc",1]
["Oaxaca","San Juan Chicomezuchil",1]
["Oaxaca","San Juan Chilateca",1]
["Oaxaca","San Juan Cieneguilla",1]
["Oaxaca","San Juan Coatzospam",1]
["Oaxaca","San Juan Colorado",1]
["Oaxaca","San Juan Comaltepec",1]
["Oaxaca","San Juan Cotzocon",1]
["Durango","San Juan De Guadalupe",1]
["Oaxaca","San Juan De Los Cues",1]
["Jalisco","San Juan De Los Lagos",1]
["Coahuila De Zaragoza","San Juan De Sabinas",1]
["Oaxaca","San Juan Del Estado",1]
["Durango","San Juan Del Rio",1]
["Oaxaca","San Juan Del Rio",1]
["Queretaro","San Juan Del Rio",1]
["Oaxaca","San Juan Diuxi",1]
["Veracruz De Ignacio De La Llave","San Juan Evangelista",1]
["Oaxaca","San Juan Evangelista Analco",1]
["Oaxaca","San Juan Guelavia",1]
["Oaxaca","San Juan Guichicovi",1]
["Tlaxcala","San Juan Huactzinco",1]
["Oaxaca","San Juan Ihualtepec",1]
["Oaxaca","San Juan Juquila Mixes",1]
["Oaxaca","San Juan Juquila Vijanos",1]
["Oaxaca","San Juan Lachao",1]
["Oaxaca","San Juan Lachigalla",1]
["Oaxaca","San Juan Lajarcia",1]
["Oaxaca","San Juan Lalana",1]
["Oaxaca","San Juan Mazatlan",1]
["Oaxaca","San Juan Mixtepec -Dto. 08 -",1]
["Oaxaca","San Juan Mixtepec -Dto. 26 -",1]
["Oaxaca","San Juan Ñumi",1]
["Oaxaca","San Juan Ozolotepec",1]
["Oaxaca","San Juan Petlapa",1]
["Oaxaca","San Juan Quiahije",1]
["Oaxaca","San Juan Quiotepec",1]
["Oaxaca","San Juan Sayultepec",1]
["Oaxaca","San Juan Tabaa",1]
["Oaxaca","San Juan Tamazola",1]
["Oaxaca","San Juan Teita",1]
["Oaxaca","San Juan Teitipac",1]
["Oaxaca","San Juan Tepeuxila",1]
["Oaxaca","San Juan Teposcolula",1]
["Oaxaca","San Juan Yaee",1]
["Oaxaca","San Juan Yatzona",1]
["Oaxaca","San Juan Yucuita",1]
["Jalisco","San Juanito De Escobedo",1]
["Jalisco","San Julian",1]
["Oaxaca","San Lorenzo",1]
["Oaxaca","San Lorenzo Albarradas",1]
["Tlaxcala","San Lorenzo Axocomanitla",1]
["Oaxaca","San Lorenzo Cacaotepec",1]
["Oaxaca","San Lorenzo Cuaunecuiltitla",1]
["Oaxaca","San Lorenzo Texmelucan",1]
["Oaxaca","San Lorenzo Victoria",1]
["Chiapas","San Lucas",1]
["Michoacan De Ocampo","San Lucas",1]
["Oaxaca","San Lucas Camotlan",1]
["Oaxaca","San Lucas Ojitlan",1]
["Oaxaca","San Lucas Quiavini",1]
["Tlaxcala","San Lucas Tecopilco",1]
["Oaxaca","San Lucas Zoquiapam",1]
["Guerrero","San Luis Acatlan",1]
["Oaxaca","San Luis Amatlan",1]
["Guanajuato","San Luis De La Paz",1]
["Durango","San Luis Del Cordero",1]
["San Luis Potosi","San Luis Potosi",0.93799999999999994]
["Sonora","San Luis Rio Colorado",1.1439999999999999]
["Oaxaca","San Marcial Ozolotepec",1]
["Guerrero","San Marcos",1]
["Jalisco","San Marcos",1]
["Oaxaca","San Marcos Arteaga",1]
["San Luis Potosi","San Martin Chalchicuautla",1]
["Jalisco","San Martin De Bolaños",1]
["Mexico","San Martin De Las Piramides",1]
["Oaxaca","San Martin De Los Cansecos",1]
["Jalisco","San Martin Hidalgo",1]
["Oaxaca","San Martin Huamelulpam",1]
["Oaxaca","San Martin Itunyoso",1]
["Oaxaca","San Martin Lachila",1]
["Oaxaca","San Martin Peras",1]
["Puebla","San Martin Texmelucan",1]
["Oaxaca","San Martin Tilcajete",1]
["Puebla","San Martin Totoltepec",1]
["Oaxaca","San Martin Toxpalan",1]
["Oaxaca","San Martin Zacatepec",1]
["Mexico","San Mateo Atenco",1]
["Oaxaca","San Mateo Cajonos",1]
["Oaxaca","San Mateo Del Mar",1]
["Oaxaca","San Mateo Etlatongo",1]
["Oaxaca","San Mateo Nejapam",1]
["Oaxaca","San Mateo Peñasco",1]
["Oaxaca","San Mateo Piñas",1]
["Oaxaca","San Mateo Rio Hondo",1]
["Oaxaca","San Mateo Sindihui",1]
["Oaxaca","San Mateo Tlapiltepec",1]
["Oaxaca","San Mateo Yoloxochitlan",1]
["Oaxaca","San Mateo Yucutindo",1]
["Puebla","San Matias Tlalancaleca",1]
["Oaxaca","San Melchor Betaza",1]
["Oaxaca","San Miguel Achiutla",1]
["Oaxaca","San Miguel Ahuehuetitlan",1]
["Oaxaca","San Miguel Aloapam",1]
["Oaxaca","San Miguel Amatitlan",1]
["Oaxaca","San Miguel Amatlan",1]
["Oaxaca","San Miguel Chicahua",1]
["Oaxaca","San Miguel Chimalapa",1]
["Oaxaca","San Miguel Coatlan",1]
["Guanajuato","San Miguel De Allende",0.85799999999999998]
["Sonora","San Miguel De Horcasitas",1]
["Oaxaca","San Miguel Del Puerto",1]
["Oaxaca","San Miguel Del Rio",1]
["Oaxaca","San Miguel Ejutla",1]
["Jalisco","San Miguel El Alto",1]
["Oaxaca","San Miguel El Grande",1]
["Oaxaca","San Miguel Huautla",1]
["Puebla","San Miguel Ixitlan",1]
["Oaxaca","San Miguel Mixtepec",1]
["Oaxaca","San Miguel Panixtlahuaca",1]
["Oaxaca","San Miguel Peras",1]
["Oaxaca","San Miguel Piedras",1]
["Oaxaca","San Miguel Quetzaltepec",1]
["Oaxaca","San Miguel Santa Flor",1]
["Oaxaca","San Miguel Soyaltepec",1]
["Oaxaca","San Miguel Suchixtepec",1]
["Oaxaca","San Miguel Tecomatlan",1]
["Oaxaca","San Miguel Tenango",1]
["Oaxaca","San Miguel Tequixtepec",1]
["Oaxaca","San Miguel Tilquiapam",1]
["Oaxaca","San Miguel Tlacamama",1]
["Oaxaca","San Miguel Tlacotepec",1]
["Guerrero","San Miguel Totolapan",1]
["Oaxaca","San Miguel Tulancingo",1]
["Puebla","San Miguel Xoxtla",1]
["Oaxaca","San Miguel Yotao",1]
["Oaxaca","San Nicolas",1]
["Tamaulipas","San Nicolas",1]
["Puebla","San Nicolas Buenos Aires",1]
["Nuevo Leon","San Nicolas De Los Garza",1]
["Puebla","San Nicolas De Los Ranchos",1]
["Oaxaca","San Nicolas Hidalgo",1]
["San Luis Potosi","San Nicolas Tolentino",1]
["Puebla","San Pablo Anicano",1]
["Oaxaca","San Pablo Coatlan",1]
["Oaxaca","San Pablo Cuatro Venados",1]
["Tlaxcala","San Pablo Del Monte",1]
["Oaxaca","San Pablo Etla",1]
["Oaxaca","San Pablo Huitzo",1]
["Oaxaca","San Pablo Huixtepec",1]
["Oaxaca","San Pablo Macuiltianguis",1]
["Oaxaca","San Pablo Tijaltepec",1]
["Oaxaca","San Pablo Villa De Mitla",1]
["Oaxaca","San Pablo Yaganiza",1]
["Coahuila De Zaragoza","San Pedro",0.95399999999999996]
["Oaxaca","San Pedro Amuzgos",1]
["Oaxaca","San Pedro Apostol",1]
["Oaxaca","San Pedro Atoyac",1]
["Oaxaca","San Pedro Cajonos",1]
["Puebla","San Pedro Cholula",1]
["Oaxaca","San Pedro Comitancillo",1]
["Oaxaca","San Pedro Coxcaltepec Cantaros",1]
["Sonora","San Pedro De La Cueva",1]
["Durango","San Pedro Del Gallo",1]
["Oaxaca","San Pedro El Alto",1]
["Nuevo Leon","San Pedro Garza Garcia",1]
["Oaxaca","San Pedro Huamelula",1]
["Oaxaca","San Pedro Huilotepec",1]
["Oaxaca","San Pedro Ixcatlan",1]
["Oaxaca","San Pedro Ixtlahuaca",1]
["Oaxaca","San Pedro Jaltepetongo",1]
["Oaxaca","San Pedro Jicayan",1]
["Oaxaca","San Pedro Jocotipac",1]
["Oaxaca","San Pedro Juchatengo",1]
["Nayarit","San Pedro Lagunillas",1]
["Oaxaca","San Pedro Martir",1]
["Oaxaca","San Pedro Martir Quiechapa",1]
["Oaxaca","San Pedro Martir Yucuxaco",1]
["Oaxaca","San Pedro Mixtepec -Dto. 22 -",1]
["Oaxaca","San Pedro Mixtepec -Dto. 26 -",1]
["Oaxaca","San Pedro Molinos",1]
["Oaxaca","San Pedro Nopala",1]
["Oaxaca","San Pedro Ocopetatillo",1]
["Oaxaca","San Pedro Ocotepec",1]
["Oaxaca","San Pedro Pochutla",1]
["Oaxaca","San Pedro Quiatoni",1]
["Oaxaca","San Pedro Sochiapam",1]
["Oaxaca","San Pedro Tapanatepec",1]
["Oaxaca","San Pedro Taviche",1]
["Oaxaca","San Pedro Teozacoalco",1]
["Oaxaca","San Pedro Teutila",1]
["Oaxaca","San Pedro Tidaa",1]
["Jalisco","San Pedro Tlaquepaque",1]
["Oaxaca","San Pedro Topiltepec",1]
["Oaxaca","San Pedro Totolapam",1]
["Oaxaca","San Pedro Y San Pablo Ayutla",1]
["Oaxaca","San Pedro Y San Pablo Teposcolula",1]
["Oaxaca","San Pedro Y San Pablo Tequixtepec",1]
["Oaxaca","San Pedro Yaneri",1]
["Puebla","San Pedro Yeloixtlahuaca",1]
["Oaxaca","San Pedro Yolox",1]
["Oaxaca","San Pedro Yucunama",1]
["Veracruz De Ignacio De La Llave","San Rafael",1]
["Oaxaca","San Raymundo Jalpan",1]
["Hidalgo","San Salvador",1]
["Puebla","San Salvador El Seco",1]
["Puebla","San Salvador El Verde",1]
["Puebla","San Salvador Huixcolotla",1]
["Oaxaca","San Sebastian Abasolo",1]
["Oaxaca","San Sebastian Coatlan",1]
["Jalisco","San Sebastian Del Oeste",1]
["Oaxaca","San Sebastian Ixcapa",1]
["Oaxaca","San Sebastian Nicananduta",1]
["Oaxaca","San Sebastian Rio Hondo",1]
["Oaxaca","San Sebastian Tecomaxtlahuaca",1]
["Oaxaca","San Sebastian Teitipac",1]
["Puebla","San Sebastian Tlacotepec",1]
["Oaxaca","San Sebastian Tutla",1]
["Oaxaca","San Simon Almolongas",1]
["Mexico","San Simon De Guerrero",1]
["Oaxaca","San Simon Zahuatlan",1]
["Oaxaca","San Vicente Coatlan",1]
["Oaxaca","San Vicente Lachixio",1]
["Oaxaca","San Vicente Nuñu",1]
["San Luis Potosi","San Vicente Tancuayalab",1]
["Yucatan","Sanahcat",1]
["Tlaxcala","Sanctorum De Lazaro Cardenas",1]
["Oaxaca","Santa Ana",1]
["Sonora","Santa Ana",1]
["Oaxaca","Santa Ana Ateixtlahuaca",1]
["Oaxaca","Santa Ana Cuauhtemoc",1]
["Oaxaca","Santa Ana Del Valle",1]
["Michoacan De Ocampo","Santa Ana Maya",1]
["Tlaxcala","Santa Ana Nopalucan",1]
["Oaxaca","Santa Ana Tavela",1]
["Oaxaca","Santa Ana Tlapacoyan",1]
["Oaxaca","Santa Ana Yareni",1]
["Oaxaca","Santa Ana Zegache",1]
["Tlaxcala","Santa Apolonia Teacalco",1]
["Chihuahua","Santa Barbara",1]
["Oaxaca","Santa Catalina Quieri",1]
["Guanajuato","Santa Catarina",1]
["Nuevo Leon","Santa Catarina",1]
["San Luis Potosi","Santa Catarina",1]
["Tlaxcala","Santa Catarina Ayometla",1]
["Oaxaca","Santa Catarina Cuixtla",1]
["Oaxaca","Santa Catarina Ixtepeji",1]
["Oaxaca","Santa Catarina Juquila",1]
["Oaxaca","Santa Catarina Lachatao",1]
["Oaxaca","Santa Catarina Loxicha",1]
["Oaxaca","Santa Catarina Mechoacan",1]
["Oaxaca","Santa Catarina Minas",1]
["Oaxaca","Santa Catarina Quiane",1]
["Oaxaca","Santa Catarina Quioquitani",1]
["Oaxaca","Santa Catarina Tayata",1]
["Oaxaca","Santa Catarina Ticua",1]
["Puebla","Santa Catarina Tlaltempan",1]
["Oaxaca","Santa Catarina Yosonotu",1]
["Oaxaca","Santa Catarina Zapoquila",1]
["Durango","Santa Clara",1]
["Sonora","Santa Cruz",1]
["Oaxaca","Santa Cruz Acatepec",1]
["Oaxaca","Santa Cruz Amilpas",1]
["Oaxaca","Santa Cruz De Bravo",1]
["Guanajuato","Santa Cruz De Juventino Rosas",1]
["Oaxaca","Santa Cruz Itundujia",1]
["Oaxaca","Santa Cruz Mixtepec",1]
["Oaxaca","Santa Cruz Nundaco",1]
["Oaxaca","Santa Cruz Papalutla",1]
["Tlaxcala","Santa Cruz Quilehtla",1]
["Oaxaca","Santa Cruz Tacache De Mina",1]
["Oaxaca","Santa Cruz Tacahua",1]
["Oaxaca","Santa Cruz Tayata",1]
["Tlaxcala","Santa Cruz Tlaxcala",1]
["Oaxaca","Santa Cruz Xitla",1]
["Oaxaca","Santa Cruz Xoxocotlan",1]
["Oaxaca","Santa Cruz Zenzontepec",1]
["Yucatan","Santa Elena",1]
["Oaxaca","Santa Gertrudis",1]
["Puebla","Santa Ines Ahuatempan",1]
["Oaxaca","Santa Ines De Zaragoza",1]
["Oaxaca","Santa Ines Del Monte",1]
["Oaxaca","Santa Ines Yatzeche",1]
["Chihuahua","Santa Isabel",1]
["Puebla","Santa Isabel Cholula",1]
["Tlaxcala","Santa Isabel Xiloxoxtla",1]
["Oaxaca","Santa Lucia Del Camino",1]
["Oaxaca","Santa Lucia Miahuatlan",1]
["Oaxaca","Santa Lucia Monteverde",1]
["Oaxaca","Santa Lucia Ocotlan",1]
["Oaxaca","Santa Magdalena Jicotlan",1]
["Oaxaca","Santa Maria Alotepec",1]
["Oaxaca","Santa Maria Apazco",1]
["Oaxaca","Santa Maria Atzompa",1]
["Oaxaca","Santa Maria Camotlan",1]
["Oaxaca","Santa Maria Chachoapam",1]
["Oaxaca","Santa Maria Chilchotla",1]
["Oaxaca","Santa Maria Chimalapa",1]
["Oaxaca","Santa Maria Colotepec",1]
["Oaxaca","Santa Maria Cortijo",1]
["Oaxaca","Santa Maria Coyotepec",1]
["Zacatecas","Santa Maria De La Paz",1]
["Jalisco","Santa Maria De Los Angeles",1]
["Jalisco","Santa Maria Del Oro",1]
["Nayarit","Santa Maria Del Oro",1]
["San Luis Potosi","Santa Maria Del Rio",1]
["Oaxaca","Santa Maria Del Rosario",1]
["Oaxaca","Santa Maria Del Tule",1]
["Oaxaca","Santa Maria Ecatepec",1]
["Oaxaca","Santa Maria Guelace",1]
["Oaxaca","Santa Maria Guienagati",1]
["Oaxaca","Santa Maria Huatulco",1]
["Oaxaca","Santa Maria Huazolotitlan",1]
["Oaxaca","Santa Maria Ipalapa",1]
["Oaxaca","Santa Maria Ixcatlan",1]
["Oaxaca","Santa Maria Jacatepec",1]
["Oaxaca","Santa Maria Jalapa Del Marques",1]
["Oaxaca","Santa Maria Jaltianguis",1]
["Oaxaca","Santa Maria La Asuncion",1]
["Oaxaca","Santa Maria Lachixio",1]
["Oaxaca","Santa Maria Mixtequilla",1]
["Oaxaca","Santa Maria Nativitas",1]
["Oaxaca","Santa Maria Nduayaco",1]
["Oaxaca","Santa Maria Ozolotepec",1]
["Oaxaca","Santa Maria Papalo",1]
["Oaxaca","Santa Maria Peñoles",1]
["Oaxaca","Santa Maria Petapa",1]
["Oaxaca","Santa Maria Quiegolani",1]
["Oaxaca","Santa Maria Sola",1]
["Oaxaca","Santa Maria Tataltepec",1]
["Oaxaca","Santa Maria Tecomavaca",1]
["Oaxaca","Santa Maria Temaxcalapa",1]
["Oaxaca","Santa Maria Temaxcaltepec",1]
["Oaxaca","Santa Maria Teopoxco",1]
["Oaxaca","Santa Maria Tepantlali",1]
["Oaxaca","Santa Maria Texcatitlan",1]
["Oaxaca","Santa Maria Tlahuitoltepec",1]
["Oaxaca","Santa Maria Tlalixtac",1]
["Oaxaca","Santa Maria Tonameca",1]
["Oaxaca","Santa Maria Totolapilla",1]
["Oaxaca","Santa Maria Xadani",1]
["Oaxaca","Santa Maria Yalina",1]
["Oaxaca","Santa Maria Yavesia",1]
["Oaxaca","Santa Maria Yolotepec",1]
["Oaxaca","Santa Maria Yosoyua",1]
["Oaxaca","Santa Maria Yucuhiti",1]
["Oaxaca","Santa Maria Zacatepec",1]
["Oaxaca","Santa Maria Zaniza",1]
["Oaxaca","Santa Maria Zoquitlan",1]
["Nuevo Leon","Santiago",1]
["Oaxaca","Santiago Amoltepec",1]
["Oaxaca","Santiago Apoala",1]
["Oaxaca","Santiago Apostol",1]
["Oaxaca","Santiago Astata",1]
["Oaxaca","Santiago Atitlan",1]
["Oaxaca","Santiago Ayuquililla",1]
["Oaxaca","Santiago Cacaloxtepec",1]
["Oaxaca","Santiago Camotlan",1]
["Oaxaca","Santiago Chazumba",1]
["Oaxaca","Santiago Choapam",1]
["Oaxaca","Santiago Comaltepec",1]
["Hidalgo","Santiago De Anaya",1]
["Oaxaca","Santiago Del Rio",1]
["Chiapas","Santiago El Pinar",1]
["Oaxaca","Santiago Huajolotitlan",1]
["Oaxaca","Santiago Huauclilla",1]
["Oaxaca","Santiago Ihuitlan Plumas",1]
["Oaxaca","Santiago Ixcuintepec",1]
["Nayarit","Santiago Ixcuintla",1]
["Oaxaca","Santiago Ixtayutla",1]
["Oaxaca","Santiago Jamiltepec",1]
["Oaxaca","Santiago Jocotepec",1]
["Oaxaca","Santiago Juxtlahuaca",1]
["Oaxaca","Santiago Lachiguiri",1]
["Oaxaca","Santiago Lalopa",1]
["Oaxaca","Santiago Laollaga",1]
["Oaxaca","Santiago Laxopa",1]
["Oaxaca","Santiago Llano Grande",1]
["Guanajuato","Santiago Maravatio",1]
["Oaxaca","Santiago Matatlan",1]
["Puebla","Santiago Miahuatlan",1]
["Oaxaca","Santiago Miltepec",1]
["Oaxaca","Santiago Minas",1]
["Oaxaca","Santiago Nacaltepec",1]
["Oaxaca","Santiago Nejapilla",1]
["Oaxaca","Santiago Niltepec",1]
["Oaxaca","Santiago Nundiche",1]
["Oaxaca","Santiago Nuyoo",1]
["Durango","Santiago Papasquiaro",1]
["Oaxaca","Santiago Pinotepa Nacional",1]
["Veracruz De Ignacio De La Llave","Santiago Sochiapan",1]
["Oaxaca","Santiago Suchilquitongo",1]
["Oaxaca","Santiago Tamazola",1]
["Oaxaca","Santiago Tapextla",1]
["Oaxaca","Santiago Tenango",1]
["Oaxaca","Santiago Tepetlapa",1]
["Oaxaca","Santiago Tetepec",1]
["Oaxaca","Santiago Texcalcingo",1]
["Oaxaca","Santiago Textitlan",1]
["Oaxaca","Santiago Tilantongo",1]
["Oaxaca","Santiago Tillo",1]
["Oaxaca","Santiago Tlazoyaltepec",1]
["Hidalgo","Santiago Tulantepec De Lugo Guerrero",1]
["Veracruz De Ignacio De La Llave","Santiago Tuxtla",1]
["Oaxaca","Santiago Xanica",1]
["Oaxaca","Santiago Xiacui",1]
["Oaxaca","Santiago Yaitepec",1]
["Oaxaca","Santiago Yaveo",1]
["Oaxaca","Santiago Yolomecatl",1]
["Oaxaca","Santiago Yosondua",1]
["Oaxaca","Santiago Yucuyachi",1]
["Oaxaca","Santiago Zacatepec",1]
["Oaxaca","Santiago Zoochila",1]
["San Luis Potosi","Santo Domingo",1]
["Oaxaca","Santo Domingo Albarradas",1]
["Oaxaca","Santo Domingo Armenta",1]
["Oaxaca","Santo Domingo Chihuitan",1]
["Oaxaca","Santo Domingo De Morelos",1]
["Oaxaca","Santo Domingo Ingenio",1]
["Oaxaca","Santo Domingo Ixcatlan",1]
["Oaxaca","Santo Domingo Nuxaa",1]
["Oaxaca","Santo Domingo Ozolotepec",1]
["Oaxaca","Santo Domingo Petapa",1]
["Oaxaca","Santo Domingo Roayaga",1]
["Oaxaca","Santo Domingo Tehuantepec",1]
["Oaxaca","Santo Domingo Teojomulco",1]
["Oaxaca","Santo Domingo Tepuxtepec",1]
["Oaxaca","Santo Domingo Tlatayapam",1]
["Oaxaca","Santo Domingo Tomaltepec",1]
["Oaxaca","Santo Domingo Tonala",1]
["Oaxaca","Santo Domingo Tonaltepec",1]
["Oaxaca","Santo Domingo Xagacia",1]
["Oaxaca","Santo Domingo Yanhuitlan",1]
["Oaxaca","Santo Domingo Yodohino",1]
["Oaxaca","Santo Domingo Zanatepec",1]
["Mexico","Santo Tomas",1]
["Puebla","Santo Tomas Hueyotlipan",1]
["Oaxaca","Santo Tomas Jalieza",1]
["Oaxaca","Santo Tomas Mazaltepec",1]
["Oaxaca","Santo Tomas Ocotepec",1]
["Oaxaca","Santo Tomas Tamazulapan",1]
["Oaxaca","Santos Reyes Nopala",1]
["Oaxaca","Santos Reyes Papalo",1]
["Oaxaca","Santos Reyes Tepejillo",1]
["Oaxaca","Santos Reyes Yucuna",1]
["Sonora","Saric",1]
["Chihuahua","Satevo",1]
["Chihuahua","Saucillo",1]
["Jalisco","Sayula",1]
["Veracruz De Ignacio De La Llave","Sayula De Aleman",1]
["Michoacan De Ocampo","Senguio",1]
["Yucatan","Seye",1]
["Coahuila De Zaragoza","Sierra Mojada",1]
["Oaxaca","Silacayoapam",1]
["Guanajuato","Silao",0.97]
["Chiapas","Siltepec",1]
["Chiapas","Simojovel",1]
["Sinaloa","Sinaloa",1]
["Yucatan","Sinanche",1]
["Hidalgo","Singuilucan",1]
["Chiapas","Sitala",1]
["Oaxaca","Sitio De Xitlapehua",1]
["Veracruz De Ignacio De La Llave","Sochiapa",1]
["Chiapas","Socoltenango",1]
["Veracruz De Ignacio De La Llave","Soconusco",1]
["Veracruz De Ignacio De La Llave","Soledad Atzompa",1]
["Veracruz De Ignacio De La Llave","Soledad De Doblado",1]
["San Luis Potosi","Soledad De Graciano Sanchez",1]
["Oaxaca","Soledad Etla",1]
["Quintana Roo","Solidaridad",1]
["Chiapas","Solosuchiapa",1]
["Puebla","Soltepec",1]
["Zacatecas","Sombrerete",1]
["Veracruz De Ignacio De La Llave","Soteapan",1]
["Tamaulipas","Soto La Marina",1]
["Yucatan","Sotuta",1]
["Chiapas","Soyalo",1]
["Mexico","Soyaniquilpan De Juarez",1]
["Sonora","Soyopa",1]
["Sonora","Suaqui Grande",1]
["Chiapas","Suchiapa",1]
["Chiapas","Suchiate",1]
["Durango","Suchil",1]
["Yucatan","Sucila",1]
["Yucatan","Sudzal",1]
["Mexico","Sultepec",1]
["Yucatan","Suma",1]
["Chiapas","Sunuapa",1]
["Zacatecas","Susticacan",1]
["Michoacan De Ocampo","Susupuato",1]
["Zacatecas","Tabasco",1]
["Michoacan De Ocampo","Tacambaro",1]
["Tabasco","Tacotalpa",1]
["Yucatan","Tahdziu",1]
["Yucatan","Tahmek",1]
["Jalisco","Tala",1]
["Jalisco","Talpa De Allende",1]
["Veracruz De Ignacio De La Llave","Tamalin",1]
["San Luis Potosi","Tamasopo",1]
["Durango","Tamazula",1]
["Jalisco","Tamazula De Gordiano",1]
["Oaxaca","Tamazulapam Del Espiritu Santo",1]
["San Luis Potosi","Tamazunchale",1]
["Veracruz De Ignacio De La Llave","Tamiahua",1]
["San Luis Potosi","Tampacan",1]
["San Luis Potosi","Tampamolon Corona",1]
["Tamaulipas","Tampico",1.107]
["Veracruz De Ignacio De La Llave","Tampico Alto",1]
["San Luis Potosi","Tamuin",1]
["San Luis Potosi","Tancanhuitz",1]
["Michoacan De Ocampo","Tancitaro",1]
["Veracruz De Ignacio De La Llave","Tancoco",1]
["Oaxaca","Tanetze De Zaragoza",1]
["Michoacan De Ocampo","Tangamandapio",1]
["Michoacan De Ocampo","Tangancicuaro",1]
["Michoacan De Ocampo","Tanhuato",1]
["Oaxaca","Taniche",1]
["San Luis Potosi","Tanlajas",1]
["San Luis Potosi","Tanquian De Escobedo",1]
["Veracruz De Ignacio De La Llave","Tantima",1]
["Veracruz De Ignacio De La Llave","Tantoyuca",1]
["Chiapas","Tapachula",0.93500000000000005]
["Chiapas","Tapalapa",1]
["Jalisco","Tapalpa",1]
["Chiapas","Tapilula",1]
["Guanajuato","Tarandacuao",1]
["Michoacan De Ocampo","Taretan",1]
["Michoacan De Ocampo","Tarimbaro",1]
["Guanajuato","Tarimoro",1]
["Hidalgo","Tasquillo",1]
["Veracruz De Ignacio De La Llave","Tatahuicapan De Juarez",1]
["Oaxaca","Tataltepec De Valdes",1]
["Veracruz De Ignacio De La Llave","Tatatila",1]
["Guerrero","Taxco De Alarcon",0.85099999999999998]
["Yucatan","Teabo",1]
["Tabasco","Teapa",0.86099999999999999]
["Puebla","Tecali De Herrera",1]
["Jalisco","Tecalitlan",1]
["Mexico","Tecamac",1]
["Puebla","Tecamachalco",1]
["Baja California","Tecate",1.024]
["Jalisco","Techaluta De Montenegro",1]
["Guerrero","Tecoanapa",1]
["Yucatan","Tecoh",1]
["Jalisco","Tecolotlan",1]
["Veracruz De Ignacio De La Llave","Tecolutla",1]
["Colima","Tecoman",0.89700000000000002]
["Puebla","Tecomatlan",1]
["Hidalgo","Tecozautla",1]
["Guerrero","Tecpan De Galeana",1]
["Chiapas","Tecpatan",1]
["Nayarit","Tecuala",1]
["Puebla","Tehuacan",0.83499999999999996]
["Veracruz De Ignacio De La Llave","Tehuipango",1]
["Puebla","Tehuitzingo",1]
["Mexico","Tejupilco",1]
["Yucatan","Tekal De Venegas",1]
["Yucatan","Tekanto",1]
["Yucatan","Tekax",1]
["Yucatan","Tekit",1]
["Yucatan","Tekom",1]
["Yucatan","Telchac Pueblo",1]
["Yucatan","Telchac Puerto",1]
["Guerrero","Teloloapan",1]
["Mexico","Temamatla",1]
["Mexico","Temascalapa",1]
["Mexico","Temascalcingo",1]
["Mexico","Temascaltepec",1]
["Yucatan","Temax",1]
["Morelos","Temixco",1]
["Morelos","Temoac",1]
["Mexico","Temoaya",1]
["Chihuahua","Temosachic",1]
["Yucatan","Temozon",1]
["Veracruz De Ignacio De La Llave","Tempoal",1]
["Campeche","Tenabo",1]
["Jalisco","Tenamaxtlan",1]
["Veracruz De Ignacio De La Llave","Tenampa",1]
["Puebla","Tenampulco",1]
["Mexico","Tenancingo",1]
["Tlaxcala","Tenancingo",1]
["Hidalgo","Tenango De Doria",1]
["Mexico","Tenango Del Aire",1]
["Mexico","Tenango Del Valle",1]
["Chiapas","Tenejapa",1]
["Veracruz De Ignacio De La Llave","Tenochtitlan",1]
["Tabasco","Tenosique",1]
["Jalisco","Teocaltiche",1]
["Veracruz De Ignacio De La Llave","Teocelo",1]
["Oaxaca","Teococuilco De Marcos Perez",1]
["Jalisco","Teocuitatlan De Corona",1]
["Tlaxcala","Teolocholco",1]
["Mexico","Teoloyucan",1]
["Puebla","Teopantlan",1]
["Chiapas","Teopisca",1]
["Mexico","Teotihuacan",1]
["Oaxaca","Teotitlan De Flores Magon",1]
["Oaxaca","Teotitlan Del Valle",1]
["Puebla","Teotlalco",1]
["Oaxaca","Teotongo",1]
["Sonora","Tepache",1]
["Yucatan","Tepakan",1]
["Michoacan De Ocampo","Tepalcatepec",1]
["Morelos","Tepalcingo",1]
["Puebla","Tepanco De Lopez",1]
["Puebla","Tepango De Rodriguez",1]
["Jalisco","Tepatitlan De Morelos",0.96]
["Veracruz De Ignacio De La Llave","Tepatlaxco",1]
["Puebla","Tepatlaxco De Hidalgo",1]
["Puebla","Tepeaca",1]
["Hidalgo","Tepeapulco",1]
["Zacatecas","Tepechitlan",1]
["Guerrero","Tepecoacuilco De Trujano",1]
["Hidalgo","Tepehuacan De Guerrero",1]
["Durango","Tepehuanes",1]
["Hidalgo","Tepeji Del Rio De Ocampo",0.93]
["Oaxaca","Tepelmeme Villa De Morelos",1]
["Puebla","Tepemaxalco",1]
["Puebla","Tepeojuma",1]
["Tlaxcala","Tepetitla De Lardizabal",1]
["Hidalgo","Tepetitlan",1]
["Veracruz De Ignacio De La Llave","Tepetlan",1]
["Mexico","Tepetlaoxtoc",1]
["Mexico","Tepetlixpa",1]
["Zacatecas","Tepetongo",1]
["Puebla","Tepetzintla",1]
["Veracruz De Ignacio De La Llave","Tepetzintla",1]
["Puebla","Tepexco",1]
["Puebla","Tepexi De Rodriguez",1]
["Puebla","Tepeyahualco",1]
["Puebla","Tepeyahualco De Cuauhtemoc",1]
["Tlaxcala","Tepeyanco",1]
["Aguascalientes","Tepezala",1]
["Nayarit","Tepic",0.86099999999999999]
["Mexico","Tepotzotlan",0.88500000000000001]
["Morelos","Tepoztlan",1]
["Jalisco","Tequila",1]
["Veracruz De Ignacio De La Llave","Tequila",1]
["Queretaro","Tequisquiapan",1]
["Mexico","Tequixquiac",1]
["Tlaxcala","Terrenate",1]
["Morelos","Tetecala",1]
["Puebla","Tetela De Ocampo",1]
["Morelos","Tetela Del Volcan",1]
["Puebla","Teteles De Avila Castillo",1]
["Hidalgo","Tetepango",1]
["Guerrero","Tetipac",1]
["Yucatan","Tetiz",1]
["Tlaxcala","Tetla De La Solidaridad",1]
["Tlaxcala","Tetlatlahuca",1]
["Jalisco","Teuchitlan",1]
["Zacatecas","Teul De Gonzalez Ortega",1]
["Mexico","Texcaltitlan",1]
["Mexico","Texcalyacac",1]
["Veracruz De Ignacio De La Llave","Texcatepec",1]
["Mexico","Texcoco",0.91100000000000003]
["Veracruz De Ignacio De La Llave","Texhuacan",1]
["Veracruz De Ignacio De La Llave","Texistepec",1]
["Yucatan","Teya",1]
["Puebla","Teziutlan",1]
["Veracruz De Ignacio De La Llave","Tezonapa",1]
["Hidalgo","Tezontepec De Aldama",1]
["Mexico","Tezoyuca",1]
["Puebla","Tianguismanalco",1]
["Mexico","Tianguistenco",1]
["Hidalgo","Tianguistengo",1]
["Yucatan","Ticul",1]
["Guanajuato","Tierra Blanca",1]
["Veracruz De Ignacio De La Llave","Tierra Blanca",1]
["San Luis Potosi","Tierra Nueva",1]
["Veracruz De Ignacio De La Llave","Tihuatlan",1]
["Baja California","Tijuana",1.175]
["Chiapas","Tila",1]
["Puebla","Tilapa",1]
["Mexico","Timilpan",1]
["Yucatan","Timucuy",1]
["Michoacan De Ocampo","Tingambato",1]
["Michoacan De Ocampo","Tinguindin",1]
["Yucatan","Tinum",1]
["Michoacan De Ocampo","Tiquicheo De Nicolas Romero",1]
["Yucatan","Tixcacalcupul",1]
["Yucatan","Tixkokob",1]
["Yucatan","Tixmehuac",1]
["Yucatan","Tixpehual",1]
["Guerrero","Tixtla De Guerrero",1]
["Jalisco","Tizapan El Alto",1]
["Hidalgo","Tizayuca",1.073]
["Yucatan","Tizimin",1]
["Veracruz De Ignacio De La Llave","Tlachichilco",1]
["Puebla","Tlachichuca",1]
["Guerrero","Tlacoachistlahuaca",1]
["Guerrero","Tlacoapa",1]
["Veracruz De Ignacio De La Llave","Tlacojalpan",1]
["Oaxaca","Tlacolula De Matamoros",1]
["Veracruz De Ignacio De La Llave","Tlacolulan",1]
["Veracruz De Ignacio De La Llave","Tlacotalpan",1]
["Puebla","Tlacotepec De Benito Juarez",1]
["Veracruz De Ignacio De La Llave","Tlacotepec De Mejia",1]
["Oaxaca","Tlacotepec Plumas",1]
["Puebla","Tlacuilotepec",1]
["Cdmx","Tlahuac",1]
["Durango","Tlahualilo",1]
["Puebla","Tlahuapan",1]
["Hidalgo","Tlahuelilpan",1]
["Hidalgo","Tlahuiltepa",1]
["Jalisco","Tlajomulco De Zuñiga",1]
["Guerrero","Tlalchapa",1]
["Veracruz De Ignacio De La Llave","Tlalixcoyan",1]
["Oaxaca","Tlalixtac De Cabrera",1]
["Guerrero","Tlalixtaquilla De Maldonado",1]
["Mexico","Tlalmanalco",1]
["Veracruz De Ignacio De La Llave","Tlalnelhuayocan",1]
["Morelos","Tlalnepantla",1]
["Mexico","Tlalnepantla De Baz",1]
["Cdmx","Tlalpan",1]
["Michoacan De Ocampo","Tlalpujahua",1]
["Puebla","Tlaltenango",1]
["Zacatecas","Tlaltenango De Sanchez Roman",1]
["Veracruz De Ignacio De La Llave","Tlaltetela",1]
["Morelos","Tlaltizapan De Zapata",1]
["Hidalgo","Tlanalapa",1]
["Hidalgo","Tlanchinol",1]
["Puebla","Tlanepantla",1]
["Puebla","Tlaola",1]
["Guerrero","Tlapa De Comonfort",0.85199999999999998]
["Puebla","Tlapacoya",1]
["Veracruz De Ignacio De La Llave","Tlapacoyan",1]
["Puebla","Tlapanala",1]
["Guerrero","Tlapehuala",1]
["Veracruz De Ignacio De La Llave","Tlaquilpa",1]
["Morelos","Tlaquiltenango",1]
["Puebla","Tlatlauquitepec",1]
["Mexico","Tlatlaya",1]
["Tlaxcala","Tlaxcala",0.89700000000000002]
["Puebla","Tlaxco",1]
["Tlaxcala","Tlaxco",1]
["Hidalgo","Tlaxcoapan",1]
["Morelos","Tlayacapan",1]
["Michoacan De Ocampo","Tlazazalca",1]
["Veracruz De Ignacio De La Llave","Tlilapan",1]
["Tlaxcala","Tocatlan",1]
["Puebla","Tochimilco",1]
["Puebla","Tochtepec",1]
["Michoacan De Ocampo","Tocumbo",1]
["Hidalgo","Tolcayuca",1]
["Jalisco","Toliman",1]
["Queretaro","Toliman",1]
["Mexico","Toluca",0.96]
["Jalisco","Tomatlan",1]
["Veracruz De Ignacio De La Llave","Tomatlan",1]
["Chiapas","Tonala",1]
["Jalisco","Tonala",1]
["Mexico","Tonanitla",1]
["Mexico","Tonatico",1]
["Jalisco","Tonaya",1]
["Veracruz De Ignacio De La Llave","Tonayan",1]
["Jalisco","Tonila",1]
["Durango","Topia",1]
["Coahuila De Zaragoza","Torreon",0.90200000000000002]
["Jalisco","Totatiche",1]
["Tlaxcala","Totolac",1]
["Chiapas","Totolapa",1]
["Morelos","Totolapan",1]
["Puebla","Totoltepec De Guerrero",1]
["Oaxaca","Totontepec Villa De Morelos",1]
["Jalisco","Tototlan",1]
["Veracruz De Ignacio De La Llave","Totutla",1]
["Zacatecas","Trancoso",1]
["Veracruz De Ignacio De La Llave","Tres Valles",1]
["Sonora","Trincheras",1]
["Zacatecas","Trinidad Garcia De La Cadena",1]
["Oaxaca","Trinidad Zaachila",1]
["Sonora","Tubutama",1]
["Tamaulipas","Tula",1]
["Hidalgo","Tula De Allende",0.90500000000000003]
["Hidalgo","Tulancingo De Bravo",0.88100000000000001]
["Puebla","Tulcingo",1]
["Mexico","Tultepec",1]
["Mexico","Tultitlan",1]
["Quintana Roo","Tulum",1]
["Chiapas","Tumbala",1]
["Michoacan De Ocampo","Tumbiscatio",1]
["Yucatan","Tunkas",1]
["Michoacan De Ocampo","Turicato",1]
["Jalisco","Tuxcacuesco",1]
["Jalisco","Tuxcueca",1]
["Jalisco","Tuxpan",1]
["Michoacan De Ocampo","Tuxpan",1]
["Nayarit","Tuxpan",1]
["Veracruz De Ignacio De La Llave","Tuxpan",1]
["Veracruz De Ignacio De La Llave","Tuxtilla",1]
["Chiapas","Tuxtla Chico",1]
["Chiapas","Tuxtla Gutierrez",0.92600000000000005]
["Puebla","Tuzamapan De Galeana",1]
["Chiapas","Tuzantan",1]
["Michoacan De Ocampo","Tuzantla",1]
["Puebla","Tzicatlacoyan",1]
["Chiapas","Tzimol",1]
["Michoacan De Ocampo","Tzintzuntzan",1]
["Michoacan De Ocampo","Tzitzio",1]
["Tlaxcala","Tzompantepec",1]
["Yucatan","Tzucacab",1]
["Yucatan","Uayma",1]
["Yucatan","Ucu",1]
["Yucatan","Uman",1]
["Jalisco","Union De San Antonio",1]
["Jalisco","Union De Tula",1]
["Oaxaca","Union Hidalgo",1]
["Chiapas","Union Juarez",1]
["Sonora","Ures",1]
["Guanajuato","Uriangato",1]
["Chihuahua","Urique",1]
["Veracruz De Ignacio De La Llave","Ursulo Galvan",1]
["Chihuahua","Uruachi",1]
["Michoacan De Ocampo","Uruapan",0.95699999999999996]
["Veracruz De Ignacio De La Llave","Uxpanapa",1]
["Oaxaca","Valerio Trujano",1]
["Yucatan","Valladolid",0.89700000000000002]
["Mexico","Valle De Bravo",1]
["Mexico","Valle De Chalco Solidaridad",1]
["Jalisco","Valle De Guadalupe",1]
["Jalisco","Valle De Juarez",1]
["Guanajuato","Valle De Santiago",1]
["Chihuahua","Valle De Zaragoza",1]
["Tamaulipas","Valle Hermoso",1]
["Nuevo Leon","Vallecillo",1]
["Zacatecas","Valparaiso",1]
["San Luis Potosi","Vanegas",1]
["Veracruz De Ignacio De La Llave","Vega De Alatorre",1]
["San Luis Potosi","Venado",1]
["Cdmx","Venustiano Carranza",1]
["Chiapas","Venustiano Carranza",1]
["Michoacan De Ocampo","Venustiano Carranza",1]
["Puebla","Venustiano Carranza",1]
["Veracruz De Ignacio De La Llave","Veracruz ",0.93899999999999995]
["Zacatecas","Vetagrande",1]
["Durango","Vicente Guerrero",1]
["Puebla","Vicente Guerrero",1]
["Guanajuato","Victoria",1]
["Tamaulipas","Victoria",1]
["Coahuila De Zaragoza","Viesca",1]
["Veracruz De Ignacio De La Llave","Villa Aldama",1]
["Chiapas","Villa Comaltitlan",1]
["Jalisco","Villa Corona",1]
["Chiapas","Villa Corzo",1]
["Mexico","Villa De Allende",1]
["Colima","Villa De Alvarez",1]
["San Luis Potosi","Villa De Arista",1]
["San Luis Potosi","Villa De Arriaga",1]
["Oaxaca","Villa De Chilapa De Diaz",1]
["Zacatecas","Villa De Cos",1]
["Oaxaca","Villa De Etla",1]
["San Luis Potosi","Villa De Guadalupe",1]
["San Luis Potosi","Villa De La Paz",1]
["San Luis Potosi","Villa De Ramos",1]
["San Luis Potosi","Villa De Reyes",1]
["Oaxaca","Villa De Tamazulapam Del Progreso",1]
["Hidalgo","Villa De Tezontepec",1]
["Oaxaca","Villa De Tututepec De Melchor Ocampo",1]
["Oaxaca","Villa De Zaachila",1]
["Mexico","Villa Del Carbon",1]
["Oaxaca","Villa Diaz Ordaz",1]
["Zacatecas","Villa Garcia",1]
["Zacatecas","Villa Gonzalez Ortega",1]
["Jalisco","Villa Guerrero",1]
["Mexico","Villa Guerrero",1]
["Jalisco","Villa Hidalgo",1]
["Oaxaca","Villa Hidalgo",1]
["San Luis Potosi","Villa Hidalgo",1]
["Sonora","Villa Hidalgo",1]
["Zacatecas","Villa Hidalgo",1]
["San Luis Potosi","Villa Juarez",1]
["Sonora","Villa Pesqueira",1]
["Jalisco","Villa Purificacion",1]
["Oaxaca","Villa Sola De Vega",1]
["Oaxaca","Villa Talea De Castro",1]
["Oaxaca","Villa Tejupam De La Union",1]
["Coahuila De Zaragoza","Villa Union",1]
["Mexico","Villa Victoria",1]
["Chiapas","Villaflores",0.90500000000000003]
["Guanajuato","Villagran",1]
["Tamaulipas","Villagran",1]
["Nuevo Leon","Villaldama",1]
["Michoacan De Ocampo","Villamar",1]
["Zacatecas","Villanueva",1]
["Michoacan De Ocampo","Vista Hermosa",1.004]
["Veracruz De Ignacio De La Llave","Xalapa",0.84299999999999997]
["Nayarit","Xalisco",1]
["Tlaxcala","Xaloztoc",1]
["Guerrero","Xalpatlahuac",1]
["Tlaxcala","Xaltocan",1]
["Puebla","Xayacatlan De Bravo",1]
["Guanajuato","Xichu",1]
["Veracruz De Ignacio De La Llave","Xico",1]
["Tlaxcala","Xicohtzinco",1]
["Tamaulipas","Xicotencatl",1]
["Puebla","Xicotepec",1]
["Puebla","Xicotlan",1]
["San Luis Potosi","Xilitla",1]
["Puebla","Xiutetelco",1]
["Yucatan","Xocchel",1]
["Puebla","Xochiapulco",1]
["Hidalgo","Xochiatipan",1]
["Hidalgo","Xochicoatlan",1]
["Guerrero","Xochihuehuetlan",1]
["Puebla","Xochiltepec",1]
["Cdmx","Xochimilco",1]
["Guerrero","Xochistlahuaca",1]
["Morelos","Xochitepec",1]
["Puebla","Xochitlan De Vicente Suarez",1]
["Puebla","Xochitlan Todos Santos",1]
["Mexico","Xonacatlan",1]
["Veracruz De Ignacio De La Llave","Xoxocotla",1]
["Hidalgo","Yahualica",1]
["Jalisco","Yahualica De Gonzalez Gallo",1]
["Chiapas","Yajalon",1]
["Veracruz De Ignacio De La Llave","Yanga",1]
["Puebla","Yaonahuac",1]
["Tlaxcala","Yauhquemehcan",1]
["Morelos","Yautepec",0.88700000000000001]
["Yucatan","Yaxcaba",1]
["Oaxaca","Yaxe",1]
["Yucatan","Yaxkukul",1]
["Morelos","Yecapixtla",1]
["Sonora","Yecora",1]
["Veracruz De Ignacio De La Llave","Yecuatla",1]
["Puebla","Yehualtepec",1]
["Yucatan","Yobain",1]
["Oaxaca","Yogana",1]
["Michoacan De Ocampo","Yurecuaro",1]
["Guanajuato","Yuriria",1]
["Oaxaca","Yutanduchi De Guerrero",1]
["Puebla","Zacapala",1]
["Puebla","Zacapoaxtla",1]
["Michoacan De Ocampo","Zacapu",1]
["Zacatecas","Zacatecas",0.95399999999999996]
["Tlaxcala","Zacatelco",1]
["Morelos","Zacatepec",1]
["Puebla","Zacatlan",1]
["Mexico","Zacazonapan",1]
["Jalisco","Zacoalco De Torres",1]
["Mexico","Zacualpan",1]
["Morelos","Zacualpan",1]
["Veracruz De Ignacio De La Llave","Zacualpan",1]
["Hidalgo","Zacualtipan De Angeles",1]
["Michoacan De Ocampo","Zamora",0.93600000000000005]
["Jalisco","Zapopan",1]
["Jalisco","Zapotiltic",1]
["Puebla","Zapotitlan",1]
["Puebla","Zapotitlan De Mendez",1]
["Jalisco","Zapotitlan De Vadillo",1]
["Oaxaca","Zapotitlan Lagunas",1]
["Oaxaca","Zapotitlan Palmas",1]
["Guerrero","Zapotitlan Tablas",1]
["Hidalgo","Zapotlan De Juarez",1]
["Jalisco","Zapotlan Del Rey",1]
["Jalisco","Zapotlan El Grande",1]
["Jalisco","Zapotlanejo",1]
["Coahuila De Zaragoza","Zaragoza",1.0529999999999999]
["Puebla","Zaragoza",1]
["San Luis Potosi","Zaragoza",1]
["Veracruz De Ignacio De La Llave","Zaragoza",1]
["Puebla","Zautla",1]
["Hidalgo","Zempoala",1]
["Veracruz De Ignacio De La Llave","Zentla",1]
["Guerrero","Zihuatanejo De Azueta",1]
["Puebla","Zihuateutla",1]
["Tlaxcala","Ziltlaltepec De Trinidad Sanchez Santos",1]
["Hidalgo","Zimapan",1]
["Oaxaca","Zimatlan De Alvarez",1]
["Chiapas","Zinacantan",1]
["Mexico","Zinacantepec",1]
["Puebla","Zinacatepec",1]
["Michoacan De Ocampo","Zinaparo",1]
["Michoacan De Ocampo","Zinapecuaro",1]
["Michoacan De Ocampo","Ziracuaretiro",1]
["Guerrero","Zirandaro",1]
["Michoacan De Ocampo","Zitacuaro",1]
["Guerrero","Zitlala",1]
["Veracruz De Ignacio De La Llave","Zongolica",1]
["Puebla","Zongozotla",1]
["Veracruz De Ignacio De La Llave","Zontecomatlan De Lopez Y Fuentes",1]
["Puebla","Zoquiapan",1]
["Puebla","Zoquitlan",1]
["Veracruz De Ignacio De La Llave","Zozocolco De Hidalgo",1]
["Mexico","Zumpahuacan",1]
["Mexico","Zumpango",1]
["Guanajuato","Allende",0.95899999999999996]
["Puebla","Cholula",0.85499999999999998]
["Jalisco","Ciudad Guzman",0.82799999999999996]
["Tabasco","Frontera",1.024]
["Oaxaca","Huatulco",1.0529999999999999]
["Tamaulipas","Mante",1.0029999999999999]
["Veracruz De Ignacio De La Llave","Mendoza",0.89600000000000002]
["Coahuila De Zaragoza","Nueva Rosita",1.012]
["Chihuahua","Parral",0.97]
["Hidalgo","Sabinas",0.89600000000000002]
["Baja California Sur","San Jose Del Cabo",1.3540000000000001]
["Puebla","San Martin",0.84599999999999997]
["Oaxaca","Tehuantepec",0.83399999999999996]
["Oaxaca","Tuxtepec",0.90800000000000003]
["Chiapas","Victoria",0.98799999999999999]

{"sheet":"Filtro_Edo_Mpios","index":2,"n_rows":12,"n_cols":11,"rows_kept":12,"cut":false,"hidden":true,"merged":[]}
["Estado",null,"Estado","Municipio","FIC",null,null,"Municipio",null,"Municipio","FIC"]
["Campeche",null,"Campeche","Calakmul",1,null,null,"Campeche",null,"Campeche",0.98699999999999999]
[null,null,"Campeche","Calkini",1]
[null,null,"Campeche","Campeche",0.98699999999999999]
[null,null,"Campeche","Candelaria",1]
[null,null,"Campeche","Carmen",1]
[null,null,"Campeche","Champoton",1]
[null,null,"Campeche","Escarcega",0.94]
[null,null,"Campeche","Hecelchakan",1]
[null,null,"Campeche","Hopelchen",1]
[null,null,"Campeche","Palizada",1]
[null,null,"Campeche","Tenabo",1]

{"sheet":"Diagrama","index":3,"n_rows":50,"n_cols":101,"rows_kept":50,"cut":false,"hidden":true,"merged":[[40,4,40,13],[22,1,37,1],[21,4,21,7],[21,8,21,11],[21,12,21,15],[3,1,18,1],[2,24,2,27],[2,28,2,31],[2,4,2,7],[2,8,2,11],[2,12,2,15],[2,16,2,19],[2,20,2,23],[2,96,2,99],[2,64,2,67],[2,68,2,71],[2,72,2,75],[2,76,2,79],[2,80,2,83],[21,28,21,31],[21,32,21,35],[2,84,2,87],[2,88,2,91],[2,92,2,95],[2,44,2,47],[2,48,2,51],[2,52,2,55],[2,56,2,59],[2,60,2,63],[2,32,2,35],[2,36,2,39],[2,40,2,43],[47,2,47,3],[49,2,49,3],[47,4,47,13],[49,4,49,13],[0,44,0,51],[42,2,42,3],[44,2,45,3],[44,4,45,13],[42,4,42,13],[21,36,21,39],[21,40,21,43],[21,44,21,47],[21,48,21,51],[21,16,21,19],[21,20,21,23],[21,24,21,27]]}
[null,null,"Superficie (m2):",{"$f":"+RegistroInf!C3","v":"12"},null,null,null,null,null,null,null,null,null,null,null,null,null,null,null,null,null,null,null,null,null,null,null,null,null,null,null,null,null,null,null,null,null,null,null,null,null,null,null,null,"Programa de Obra"]
[null,null,"Semanas aprox.:",96]
[null,null,null,null,"Mes 1",null,null,null,"Mes 2",null,null,null,"Mes 3",null,null,null,"Mes 4",null,null,null,"Mes 5",null,null,null,"Mes 6",null,null,null,"Mes 7",null,null,null,"Mes 8",null,null,null,"Mes 9",null,null,null,"Mes 10",null,null,null,"Mes 11",null,null,null,"Mes 12",null,null,null,"Mes 13",null,null,null,"Mes 14",null,null,null,"Mes 15",null,null,null,"Mes 16",null,null,null,"Mes 17",null,null,null,"Mes 18",null,null,null,"Mes 19",null,null,null,"Mes 20",null,null,null,"Mes 21",null,null,null,"Mes 22",null,null,null,"Mes 23",null,null,null,"Mes 24"]
[null,"Vivienda Alta Residencial 4","Concepto","%","S1","S2","S3","S4","S5","S6","S7","S8","S9","S10","S11","S12","S13","S14","S15","S16","S17","S18","S19","S20","S21","S22","S23","S24","S25","S26","S27","S28","S29","S30","S31","S32","S33","S34","S35","S36","S37","S38","S39","S40","S41","S42","S43","S44","S45","S46","S47","S48","S49","S50","S51","S52","S53","S54","S55","S56","S57","S58","S59","S60","S61","S62","S63","S64","S65","S66","S67","S68","S69","S70","S71","S72","S73","S74","S75","S76","S77","S78","S79","S80","S81","S82","S83","S84","S85","S86","S87","S88","S89","S90","S91","S92","S93","S94","S95","S96"]
[null,null,"Cimentacion",8.908656409482929E-2,1,1,1,1,1,1,1,1,1]
[null,null,"Estructura De Concreto",0.16405393791674722,null,null,null,null,null,null,null,null,0,1,1,1,1,1,1,1,1,1,1,1,1,1,1,1,1]
[null,null,"Albañileria",8.7098322189605074E-2,null,null,null,null,null,null,null,null,null,null,null,null,null,null,null,null,null,null,null,null,null,null,null,null,0,1,1,1,1,1,1,1,1]
[null,null,"Instalacion Hidraulica",1.1940689831090215E-2,null,null,null,null,null,null,null,null,null,null,null,null,null,null,null,null,null,null,null,null,null,null,null,null,null,null,null,null,null,null,null,null,0,1]
[null,null,"Instalacion Sanitaria",9.9749316246131991E-3,null,null,null,null,null,null,null,null,null,null,null,null,null,null,null,null,null,null,null,null,null,null,null,null,null,null,null,null,null,null,null,null,null,0,1]
[null,null,"Instalacion Electrica",1.1899048478743708E-2,null,null,null,null,null,null,null,null,null,null,null,null,null,null,null,null,null,null,null,null,null,null,null,null,null,null,null,null,null,null,null,null,null,null,0,1]
[null,null,"Instalacion De Gas",1.0400339818924258E-3,null,null,null,null,null,null,null,null,null,null,null,null,null,null,null,null,null,null,null,null,null,null,null,null,null,null,null,null,null,null,null,null,null,null,null,0,1]
[null,null,"Acabados Interiores",0.34333385066052607,null,null,null,null,null,null,null,null,null,null,null,null,null,null,null,null,null,null,null,null,null,null,null,null,null,null,null,null,null,null,null,null,null,null,null,null,0,1,1,1,1,1,1,1,1,1,1,1,1,1,1,1,1,1,1,1,1,1,1,1,1,1,1,1,1,1,1,1,1,1]
[null,null,"Acabados Exteriores",8.3135332790740479E-2,null,null,null,null,null,null,null,null,null,null,null,null,null,null,null,null,null,null,null,null,null,null,null,null,null,null,null,null,null,null,null,null,null,null,null,null,null,null,null,null,null,null,null,null,null,null,null,null,null,null,null,null,null,null,null,null,null,null,null,null,null,null,null,null,null,null,null,null,null,0,1,1,1,1,1,1,1,1]
[null,null,"Accesos",2.0699614946185826E-2,null,null,null,null,null,null,null,null,null,null,null,null,null,null,null,null,null,null,null,null,null,null,null,null,null,null,null,null,null,null,null,null,null,null,null,null,null,null,null,null,null,null,null,null,null,null,null,null,null,null,null,null,null,null,null,null,null,null,null,null,null,null,null,null,null,null,null,null,null,null,null,null,null,null,null,null,null,0,1,1]
[null,null,"Canceleria",3.4141592254777996E-2,null,null,null,null,null,null,null,null,null,null,null,null,null,null,null,null,null,null,null,null,null,null,null,null,null,null,null,null,null,null,null,null,null,null,null,null,null,null,null,null,null,null,null,null,null,null,null,null,null,null,null,null,null,null,null,null,null,null,null,null,null,null,null,null,null,null,null,null,null,null,null,null,null,null,null,null,null,null,null,0,1,1,1]
[null,null,"Mobiliario Fijo",5.7770934058057694E-2,null,null,null,null,null,null,null,null,null,null,null,null,null,null,null,null,null,null,null,null,null,null,null,null,null,null,null,null,null,null,null,null,null,null,null,null,null,null,null,null,null,null,null,null,null,null,null,null,null,null,null,null,null,null,null,null,null,null,null,null,null,null,null,null,null,null,null,null,null,null,null,null,null,null,null,null,null,null,null,null,null,null,0,1,1,1,1,1,1]
[null,null,"Guarda",6.1718169764081315E-3,null,null,null,null,null,null,null,null,null,null,null,null,null,null,null,null,null,null,null,null,null,null,null,null,null,null,null,null,null,null,null,null,null,null,null,null,null,null,null,null,null,null,null,null,null,null,null,null,null,null,null,null,null,null,null,null,null,null,null,null,null,null,null,null,null,null,null,null,null,null,null,null,null,null,null,null,null,null,null,null,null,null,null,null,null,null,null,null,0,1]
[null,null,{"$f":"+IF(D18=\"\",\"\",\"Equipo\")","v":"Equipo"},2.2595398851057429E-2,null,null,null,null,null,null,null,null,null,null,null,null,null,null,null,null,null,null,null,null,null,null,null,null,null,null,null,null,null,null,null,null,null,null,null,null,null,null,null,null,null,null,null,null,null,null,null,null,null,null,null,null,null,null,null,null,null,null,null,null,null,null,null,null,null,null,null,null,null,null,null,null,null,null,null,null,null,null,null,null,null,null,null,null,null,null,null,null,null,0,1,1]
[null,null,{"$f":"+IF(D19=\"\",\"\",\"Accesorias\")","v":"Accesorias"},5.4222911532851907E-2,null,null,null,null,null,null,null,null,null,null,null,null,null,null,null,null,null,null,null,null,null,null,null,null,null,null,null,null,null,null,null,null,null,null,null,null,null,null,null,null,null,null,null,null,null,null,null,null,null,null,null,null,null,null,null,null,null,null,null,null,null,null,null,null,null,null,null,null,null,null,null,null,null,null,null,null,null,null,null,null,null,null,null,null,null,null,null,null,null,null,null,0,1,1,1,1]
[null,null,null,null,null,null,null,null,null,null,null,null,null,null,null,null,null,null,null,null,null,null,null,null,null,null,null,null,null,null,null,null,null,null,null,null,null,null,null,null,null,null,null,null,null,null,null,null,null,null,null,null,null,null,null,null,null,null,null,null,null,null,null,null,null,null,null,null,null,null,null,null,null,null,null,null,null,null,null,null,null,null,null,null,null,null,null,null,null,null,null,null,null,null,null,null,null,null,null,null,0]
[]
[null,null,null,null,"Mes 13",null,null,null,"Mes 14",null,null,null,"Mes 15",null,null,null,"Mes 16",null,null,null,"Mes 17",null,null,null,"Mes 18",null,null,null,"Mes 19",null,null,null,"Mes 20",null,null,null,"Mes 21",null,null,null,"Mes 22",null,null,null,"Mes 23",null,null,null,"Mes 24"]
[null,{"$f":"+B4","v":"Vivienda Alta Residencial 4"},{"$f":"+C4","v":"Concepto"},{"$f":"+D4","v":"%"},"S49","S50","S51","S52","S53","S54","S55","S56","S57","S58","S59","S60","S61","S62","S63","S64","S65","S66","S67","S68","S69","S70","S71","S72","S73","S74","S75","S76","S77","S78","S79","S80","S81","S82","S83","S84","S85","S86","S87","S88","S89","S90","S91","S92","S93","S94","S95","S96"]
[null,null,{"$f":"+C5","v":"Cimentacion"},8.908656409482929E-2]
[null,null,"Estructura De Concreto",0.16405393791674722]
[null,null,"Albañileria",8.7098322189605074E-2]
[null,null,"Instalacion Hidraulica",1.1940689831090215E-2]
[null,null,"Instalacion Sanitaria",9.9749316246131991E-3]
[null,null,"Instalacion Electrica",1.1899048478743708E-2]
[null,null,"Instalacion De Gas",1.0400339818924258E-3]
[null,null,"Acabados Interiores",0.34333385066052607,1,1,1,1,1,1,1,1,1,1,1,1,1,1,1,1,1,1,1,1,1,1]
[null,null,"Acabados Exteriores",8.3135332790740479E-2,null,null,null,null,null,null,null,null,null,null,null,null,null,null,null,null,null,null,null,null,null,0,1,1,1,1,1,1,1,1]
[null,null,"Accesos",2.0699614946185826E-2,null,null,null,null,null,null,null,null,null,null,null,null,null,null,null,null,null,null,null,null,null,null,null,null,null,null,null,null,null,0,1,1]
[null,null,"Canceleria",3.4141592254777996E-2,null,null,null,null,null,null,null,null,null,null,null,null,null,null,null,null,null,null,null,null,null,null,null,null,null,null,null,null,null,null,null,0,1,1,1]
[null,null,"Mobiliario Fijo",5.7770934058057694E-2,null,null,null,null,null,null,null,null,null,null,null,null,null,null,null,null,null,null,null,null,null,null,null,null,null,null,null,null,null,null,null,null,null,null,0,1,1,1,1,1,1]
[null,null,"Guarda",6.1718169764081315E-3,null,null,null,null,null,null,null,null,null,null,null,null,null,null,null,null,null,null,null,null,null,null,null,null,null,null,null,null,null,null,null,null,null,null,null,null,null,null,null,null,0,1]
[null,null,"Equipo",{"$f":"+D18","v":2.2595398851057429E-2},null,null,null,null,null,null,null,null,null,null,null,null,null,null,null,null,null,null,null,null,null,null,null,null,null,null,null,null,null,null,null,null,null,null,null,null,null,null,null,null,null,0,1,1]
[null,null,"Accesorias",{"$f":"+D19","v":5.4222911532851907E-2},null,null,null,null,null,null,null,null,null,null,null,null,null,null,null,null,null,null,null,null,null,null,null,null,null,null,null,null,null,null,null,null,null,null,null,null,null,null,null,null,null,null,null,0,1,1,1,1]
[]
[]
[null,"Información general",null,null,{"$f":"TODAY()","v":"2024-03-21"}]
[]
[null,null,"Nombre del cliente:",null,{"$f":"+RegistroInf!C1","v":"dsf"}]
[]
[null,null,"Ubicación del Inmueble:",null,{"$f":"+RegistroInf!C2","v":"dsfdsf"}]
[]
[]
[null,null,"Estado:",null,{"$f":"+RegistroInf!C4","v":"Baja California Sur"}]
[]
[null,null,"Ciudad o Municipio:",null,{"$f":"+RegistroInf!C5","v":"La Paz"}]

{"sheet":"Solicitud","index":4,"n_rows":115,"n_cols":15,"rows_kept":115,"cut":false,"hidden":true,"merged":[[115,2,118,6],[115,8,118,9],[115,11,117,14],[118,11,118,14],[68,5,69,6],[69,12,69,15],[112,2,112,5],[114,2,114,6],[81,4,81,5],[82,4,82,5],[74,9,74,15],[114,8,114,9],[114,11,114,14],[13,4,13,6],[37,12,37,13],[5,12,5,15],[13,2,13,3],[15,2,15,3],[17,2,17,3],[23,1,23,3],[11,2,11,3],[19,2,19,3],[11,4,11,6],[1,1,1,15],[5,9,5,11],[8,2,9,3],[8,4,9,7],[6,4,6,6],[6,2,6,3],[47,1,47,3],[53,1,53,3],[76,9,79,14],[39,12,39,13],[41,12,41,13],[51,5,52,6],[59,5,60,6],[58,5,58,6],[50,5,50,6],[47,9,51,15],[61,1,61,3],[67,5,67,6]]}
[]
[null,"RESUMEN DEL CLIENTE"]
[]
[]
[null,"Información general",null,null,null,null,null,null,null,"Elementos adicionales"]
[null,null,null,null,null,null,null,null,null,"Obras complementarias",null,null,"Instalaciones especiales"]
[null,null,"Nombre del cliente:",null,{"$f":"+RegistroInf!C1","v":"dsf"},null,null,null,null,null,"Terraza:",{"$f":"+IF(RegistroInf!M34=1,\"\",\"Si\")","v":""},null,"Aire acondicionado:",{"$f":"+IF(RegistroInf!M51=1,\"\",\"Si\")","v":""}]
[null,null,null,null,null,null,null,null,null,null,"Roof garden:",{"$f":"+IF(RegistroInf!M35=1,\"\",\"Si\")","v":"Si"},null,"Sistemas inteligentes:",{"$f":"+IF(RegistroInf!M52=1,\"\",\"Si\")","v":""}]
[null,null,"Ubicación del Inmueble:",null,{"$f":"+RegistroInf!C2","v":"dsfdsf"},null,null,null,null,null,"Palapas",{"$f":"+IF(RegistroInf!M36=1,\"\",\"Si\")","v":""},null,"Biodigestores:",{"$f":"+IF(RegistroInf!M53=1,\"\",\"Si\")","v":""}]
[null,null,null,null,null,null,null,null,null,null,"Cubiertas:",{"$f":"+IF(RegistroInf!M37=1,\"\",\"Si\")","v":""},null,"Calefaccion:",{"$f":"+IF(RegistroInf!M54=1,\"\",\"Si\")","v":"Si"}]
[null,null,null,null,null,null,null,null,null,null,"Bodega:",{"$f":"+IF(RegistroInf!M38=1,\"\",\"Si\")","v":""},null,"Circuito cerrado de CCTV:",{"$f":"+IF(RegistroInf!M55=1,\"\",\"Si\")","v":"Si"}]
[null,null,"Estado:",null,{"$f":"+RegistroInf!C4","v":"Baja California Sur"},null,null,null,null,null,"Bardas perimetrales:",{"$f":"+IF(RegistroInf!M39=1,\"\",\"Si\")","v":""},null,"Hidroneumatico:",{"$f":"+IF(RegistroInf!M56=1,\"\",\"Si\")","v":""}]
[null,null,null,null,null,null,null,null,null,null,"Áreas deportivas:",{"$f":"+IF(RegistroInf!M40=1,\"\",\"Si\")","v":""},null,"Sistemas ecologicos:",{"$f":"+IF(RegistroInf!M57=1,\"\",\"Si\")","v":""}]
[null,null,"Ciudad o Municipio:",null,{"$f":"+RegistroInf!C5","v":"La Paz"},null,null,null,null,null,"Áreas adicionales:",{"$f":"+IF(RegistroInf!M41=1,\"\",\"Si\")","v":""},null,"Paneles solares:",{"$f":"+IF(RegistroInf!M58=1,\"\",\"Si\")","v":""}]
[null,null,null,null,null,null,null,null,null,null,"Sala de Usos Multiples",{"$f":"+IF(RegistroInf!M42=1,\"\",\"Si\")","v":""},null,"Sistema  de captacion pluvial:",{"$f":"+IF(RegistroInf!M59=1,\"\",\"Si\")","v":""}]
[null,null,"Superficie Construida:",null,{"$f":"+RegistroInf!C3","v":"12"},"m2",null,null,null,null,"Sala de TV:",{"$f":"+IF(RegistroInf!M43=1,\"\",\"Si\")","v":""},null,"Otros:",{"$f":"+IF(RegistroInf!M60=1,\"\",\"Si\")","v":""}]
[null,null,null,null,null,null,null,null,null,null,"Gimnasio:",{"$f":"+IF(RegistroInf!M44=1,\"\",\"Si\")","v":""}]
[null,null,"Modelo de  Vivienda Seleccionada:",null,{"$f":"+Diagrama!B4","v":"Vivienda Alta Residencial 4"},null,null,null,null,null,"Estudio:",{"$f":"+IF(RegistroInf!M45=1,\"\",\"Si\")","v":""}]
[null,null,null,null,null,null,null,null,null,null,"Alcoba:",{"$f":"+IF(RegistroInf!M46=1,\"\",\"Si\")","v":""}]
[null,null,"Uso General del Proyecto:",null,"Habitacional (Habitacional/Mixto)",null,null,null,null,null,"Alberca:",{"$f":"+IF(RegistroInf!M47=1,\"\",\"Si\")","v":""}]
[null,null,null,null,null,null,null,null,null,null,"Elevadores:",{"$f":"+IF(RegistroInf!M48=1,\"\",\"Si\")","v":""}]
[]
[null,"Partidas",null,null,null,null,null,null,null,"Estructura"]
[null,"Concepto",null,null,"Monto","%"]
[null,null,null,"Cimentación:",{"$f":"+RegistroInf!W9","v":24890.371953255428},{"$f":"+RegistroInf!X9","v":{"$error":"#VALUE!"}},null,null,null,null,null,"Cocina:",{"$f":"+RegistroInf!Q27","v":"4"}]
[null,null,null,"Estructura De Concreto:",{"$f":"+RegistroInf!W10","v":11962.164941569283},{"$f":"+RegistroInf!X10","v":{"$error":"#VALUE!"}},null,null,null,null,null,"Sala:",{"$f":"+RegistroInf!Q28","v":"2"}]
[null,null,null,"Albañileria:",{"$f":"+RegistroInf!W11","v":29088.394657762939},{"$f":"+RegistroInf!X11","v":{"$error":"#VALUE!"}},null,null,null,null,null,"Comedor:",{"$f":"+RegistroInf!Q29","v":"1"}]
[null,null,null,"Instalacion Hidraulica:",{"$f":"+RegistroInf!W12","v":{"$error":"#VALUE!"}},{"$f":"+RegistroInf!X12","v":{"$error":"#VALUE!"}},null,null,null,null,null,"Baños:",{"$f":"+RegistroInf!Q30","v":"2"}]
[null,null,null,"Instalacion Sanitaria:",{"$f":"+RegistroInf!W13","v":{"$error":"#VALUE!"}},{"$f":"+RegistroInf!X13","v":{"$error":"#VALUE!"}},null,null,null,null,null,"Recámaras:",{"$f":"+RegistroInf!Q31","v":"1"}]
[null,null,null,"Instalacion Electrica:",{"$f":"+RegistroInf!W14","v":{"$error":"#VALUE!"}},{"$f":"+RegistroInf!X14","v":{"$error":"#VALUE!"}},null,null,null,null,null,"Vestidores:",{"$f":"+RegistroInf!Q32","v":"3"}]
[null,null,null,"Instalacion De Gas:",{"$f":"+RegistroInf!W15","v":{"$error":"#VALUE!"}},{"$f":"+RegistroInf!X15","v":{"$error":"#VALUE!"}},null,null,null,null,null,"Estacionamientos:",{"$f":"+RegistroInf!Q33","v":"2"}]
[null,null,null,"Acabados Interiores:",{"$f":"+RegistroInf!W16","v":0},{"$f":"+RegistroInf!X16","v":{"$error":"#VALUE!"}},null,null,null,null,null,"Cuarto de Servicio:",{"$f":"+RegistroInf!Q34","v":"1"}]
[null,null,null,"Acabados Exteriores:",{"$f":"+RegistroInf!W17","v":19433.419392320531},{"$f":"+RegistroInf!X17","v":{"$error":"#VALUE!"}},null,null,null,null,null,"Espacio con Acceso Independiente:",{"$f":"+RegistroInf!Q35","v":"2"}]
[null,null,null,"Accesos:",{"$f":"+RegistroInf!W18","v":{"$error":"#VALUE!"}},{"$f":"+RegistroInf!X18","v":{"$error":"#VALUE!"}}]
[null,null,null,"Canceleria:",{"$f":"+RegistroInf!W19","v":0},{"$f":"+RegistroInf!X19","v":{"$error":"#VALUE!"}}]
[null,null,null,"Mobiliario Fijo:",{"$f":"+RegistroInf!W20","v":{"$error":"#VALUE!"}},{"$f":"+RegistroInf!X20","v":{"$error":"#VALUE!"}},null,null,null,"Resultado Estructura"]
[null,null,null,"Guarda:",{"$f":"+RegistroInf!W21","v":0},{"$f":"+RegistroInf!X21","v":{"$error":"#VALUE!"}}]
[null,null,null,{"$f":"+IF(RegistroInf!Q22=\"\",\"Equipo (N/A):\",\"Equipo:\")","v":"Equipo (N/A):"},{"$f":"IF(RegistroInf!Q22=\"\",0,RegistroInf!W22)","v":0},{"$f":"IF(RegistroInf!Q22=\"\",0,RegistroInf!X22)","v":0},null,null,null,null,"Cimentación:",{"$f":"IF(RegistroInf!C90=\"\",\"\",RegistroInf!C90)","v":"Desconocido"},{"$f":"IF(RegistroInf!C94=\"\",\"\",RegistroInf!C94)","v":""}]
[null,null,null,{"$f":"+IF(RegistroInf!Q23=\"\",\"Accesorias (N/A):\",\"Accesorias:\")","v":"Accesorias (N/A):"},{"$f":"IF(RegistroInf!Q23=\"\",0,RegistroInf!W23)","v":0},{"$f":"IF(RegistroInf!Q23=\"\",0,RegistroInf!X23)","v":0}]
[null,null,null,{"$f":"+IF(RegistroInf!V26=1,\"Obras complementarias (N/A):\",\"Obras complementarias:\")","v":"Obras complementarias:"},{"$f":"+IF(RegistroInf!V26=1,0,RegistroInf!W26)","v":{"$error":"#VALUE!"}},{"$f":"+IF(RegistroInf!V26=1,0,RegistroInf!X26)","v":{"$error":"#VALUE!"}},null,null,null,null,"Losas de Entrepiso:",{"$f":"IF(RegistroInf!C91=\"\",\"\",RegistroInf!C91)","v":"Vigueta y Bovedilla"},{"$f":"IF(RegistroInf!C95=\"\",\"\",RegistroInf!C95)","v":""}]
[null,null,null,{"$f":"+IF(RegistroInf!V27=1,\"Instalaciones especiales (N/A):\",\"Instalaciones especiales:\")","v":"Instalaciones especiales:"},{"$f":"+IF(RegistroInf!V27=1,0,RegistroInf!W27)","v":{"$error":"#VALUE!"}},{"$f":"+IF(RegistroInf!V27=1,0,RegistroInf!X27)","v":{"$error":"#VALUE!"}}]
[null,null,null,"Subtotal:",{"$f":"+SUM(E25:E41)","v":{"$error":"#VALUE!"}},null,null,null,null,null,"Muros:",{"$f":"IF(RegistroInf!C92=\"\",\"\",RegistroInf!C92)","v":"Concreto"},{"$f":"IF(RegistroInf!C96=\"\",\"\",RegistroInf!C96)","v":""}]
[null,null,null,"FIC:",{"$f":"+RegistroInf!C6","v":0.98699999999999999}]
[null,null,null,"Total Estimado:",{"$f":"+E42*E43","v":{"$error":"#VALUE!"}}]
[]
[]
[null,"Calidad seleccionada",null,null,null,null,null,null,null,"Comentarios"]
[null,"Carpintería",null,null,"Calidad",null,null,null,null,{"$f":"IF(RegistroInf!C52=\"\",\"Sin comentarios\",RegistroInf!C52)","v":"Sin comentarios"}]
[null,null,null,"Puertas:",{"$f":"+RegistroInf!C63","v":"No aplica"}]
[null,null,null,"Closets:",{"$f":"+RegistroInf!C64","v":"Económica"}]
[null,null,null,"Cocina integral:",{"$f":"+RegistroInf!C65","v":"Media"},"Especificación de Otro"]
[null,null,null,"Otro:",{"$f":"+RegistroInf!C66","v":"Alta"},{"$f":"IF(RegistroInf!C8=\"\",\"Sin especificar en la solicitud\",RegistroInf!C8)","v":"Sin especificar en la solicitud"}]
[]
[null,"Ventanería",null,null,"Calidad",null,null,null,null,"Resultado evaluación"]
[null,null,null,"Cristales:",{"$f":"+RegistroInf!C68","v":"Residencial"}]
[null,null,null,"Canceleria:",{"$f":"+RegistroInf!C69","v":"Plus"},null,null,null,null,null,"Valor del terreno:",{"$f":"RegistroInf!F3*1","v":12}]
[null,null,null,"Portones / rejas:",{"$f":"+RegistroInf!C70","v":"Residencial"}]
[null,null,null,"Protecciones:",{"$f":"+RegistroInf!C71","v":"Alta"},null,null,null,null,null,"Valor físico proyectado:",{"$f":"+RegistroInf!F4","v":{"$error":"#VALUE!"}}]
[null,null,null,"Barandales:",{"$f":"+RegistroInf!C72","v":"Media"},"Especificación de Otro"]
[null,null,null,"Otro:",{"$f":"+RegistroInf!C73","v":"Económica"},{"$f":"IF(RegistroInf!C15=\"\",\"Sin especificar en la solicitud\",RegistroInf!C15)","v":"Sin especificar en la solicitud"},null,null,null,null,"Costo del avalúo aproximado:",{"$f":"+RegistroInf!F5","v":1900}]
[]
[null,"Acabados interiores",null,null,"Calidad",null,null,null,null,null,"Presupuesto estimado:",{"$f":"+RegistroInf!F1","v":{"$error":"#VALUE!"}}]
[null,null,null,"Pisos: ",{"$f":"+RegistroInf!C75","v":"No aplica"}]
[null,null,null,"Azulejos:",{"$f":"+RegistroInf!C76","v":"Económica"},null,null,null,null,null,"Valor unitario:",{"$f":"+RegistroInf!F2","v":{"$error":"#VALUE!"}}]
[null,null,null,"Plafones:",{"$f":"+RegistroInf!C77","v":"Media"}]
[null,null,null,"Recubrimientos en muros:",{"$f":"+RegistroInf!C78","v":"Alta"}]
[null,null,null,"Muebles sanitarios:",{"$f":"+RegistroInf!C79","v":"Residencial"}]
[null,null,null,"Tinas / Jacuzzi",{"$f":"+RegistroInf!C80","v":"Plus"},"Especificación de Otro"]
[null,null,null,"Otro:",{"$f":"+RegistroInf!C81","v":"Residencial"},{"$f":"IF(RegistroInf!C24=\"\",\"Sin especificar en la solicitud\",RegistroInf!C24)","v":"Sin especificar en la solicitud"}]
[null,null,null,null,null,null,null,null,null,"Firma","Aplicativo V4",null,{"$f":"+NOW()","v":"2024-03-21T15:37:15.590"}]
[]
[]
[]
[]
[null,null,null,null,null,null,null,null,null,{"$f":"+E7","v":"dsf"}]
[]
[null,null,null,null,null,null,null,null,null,"Este Presupuesto y Programa de Obra tiene carácter informativo.\n\nPara mayor información consulta scotiabank.com.mx/hipotecario"]
[]
[]
[null,"SBI-19032024-2"]
[]
[]
[]
[]
[]
[]
[]
[]
[]
[]
[]
[]
[]
[]
[]
[]
[]
[]
[]
[]
[]
[]
[]
[]
[]
[]
[]
[]
[]
[]
[]
[]
[]
[]
[null,null,"Comentarios",null,null,null,null,null,null,null,null,"Firma"]

{"sheet":"Presupuesto y Programa de Obra","index":5,"n_rows":19,"n_cols":1,"rows_kept":19,"cut":false,"hidden":false,"merged":[[18,0,18,3]]}
[]
[]
[]
[]
[]
[]
[]
[]
[]
[]
[]
[]
[]
[]
[]
[]
[]
[]
[{"$f":"+TODAY()","v":"2024-03-21"}]

{"sheet":"Hoja1","index":6,"n_rows":26,"n_cols":44,"rows_kept":26,"cut":false,"hidden":true,"merged":[[0,1,0,4]]}
[]
[null,"CIMENTACION",71750.2,{"$f":"C2/C26","v":1793.7549999999999},{"$f":"C2/428675.18","v":0.16737661368684792},null,"CIMENTACION",124244.44,{"$f":"H2/59.9","v":2074.1976627712856},{"$f":"H2/907305.25","v":0.13693786076957012},null,"CIMENTACION",108223.3,{"$f":"M2/83.22","v":1300.4482095650085},{"$f":"M2/1516255.93","v":7.1375351521296287E-2},null,null,"CIMENTACION",263426.07,{"$f":"S2/122.24","v":2154.9907558900527},{"$f":"S2/2297717.17","v":0.11464686491418785},null,null,"CIMENTACION",350347.89,{"$f":"Y2/200.82","v":1744.5866447564986},{"$f":"Y2/2618805.27","v":0.13378157361047316},null,null,"CIMENTACION",657278.29,{"$f":"AE2/304.06","v":2161.6729921725978},{"$f":"AE2/5428832.08","v":0.12107176650783423},null,null,"CIMENTACION",994135.47,{"$f":"AK2/447.04","v":2223.8177120615605},{"$f":"AK2/8475740.22","v":0.11729187589470502},null,"CIMENTACION",1345380.18,{"$f":"AP2/691.56","v":1945.427988894673},{"$f":"AP2/12973067.2","v":0.10370563562639989}]
[null,"ESTRUCTURA DE CONCRETO",40286.9,{"$f":"C3/C26","v":1007.1725},{"$f":"C3/428675.18","v":9.3980015358015367E-2},null,"ESTRUCTURA DE CONCRETO",59711.14,{"$f":"H3/59.9","v":996.84707846410686},{"$f":"H3/907305.25","v":6.5811522638053732E-2},null,"ESTRUCTURA DE CONCRETO",233573.24,{"$f":"M3/83.22","v":2806.6959865416966},{"$f":"M3/1516255.93","v":0.15404605210678385},null,null,"ESTRUCTURA DE CONCRETO",299291.09000000003,{"$f":"S3/122.24","v":2448.3891524869114},{"$f":"S3/2297717.17","v":0.13025584432569656},null,null,"ESTRUCTURA DE CONCRETO",491007.38,{"$f":"Y3/200.82","v":2445.0123493675928},{"$f":"Y3/2618805.27","v":0.18749289442204306},null,null,"ESTRUCTURA DE CONCRETO",869571,{"$f":"AE3/304.06","v":2859.8664737222916},{"$f":"AE3/5428832.08","v":0.16017644074929649},null,null,"ESTRUCTURA DE CONCRETO",1329769.24,{"$f":"AK3/447.04","v":2974.6090730136002},{"$f":"AK3/8475740.22","v":0.15689122194450644},null,"ESTRUCTURA DE CONCRETO",2130519.88,{"$f":"AP3/691.56","v":3080.7448088379897},{"$f":"AP3/12973067.2","v":0.16422638125238417}]
[null,"ALBAÑILERIA",33480.74,{"$f":"C4/C26","v":837.0184999999999},7.8102819015553923E-2,null,"ALBAÑILERIA",145199.57,2424.0328881469118,0.16003386952737242,null,"ALBAÑILERIA",200001.81,2403.2901946647439,0.13190504719081297,null,null,"ALBAÑILERIA",257338.18,2105.1879908376964,0.1119973264594615,null,null,"ALBAÑILERIA",339527.79,1690.7070510905287,0.12964988038228592,null,null,"ALBAÑILERIA",420900,1384.2662632375188,7.7530487920341049E-2,null,null,"ALBAÑILERIA",886976.38,1984.1096546170365,0.10464883974464238,null,"ALBAÑILERIA",1323805.82,1914.2313320608482,0.10204262412207347]
[null,"INSTALACION HIDRAULICA",12017.84,{"$f":"C5/C26","v":300.44600000000003},2.8034839805747561E-2,null,"INSTALACION HIDRAULICA",57207.5,955.05008347245416,6.3052098508192253E-2,null,"INSTALACION HIDRAULICA",67425.210000000006,810.2043979812546,4.4468225097065252E-2,null,null,"INSTALACION HIDRAULICA",73502.5,601.29662958115182,3.1989359247378564E-2,null,null,"INSTALACION HIDRAULICA",120112.71,598.11129369584705,4.5865460626631473E-2,null,null,"INSTALACION HIDRAULICA",132331.09,435.21374070907058,2.4375609348373878E-2,null,null,"INSTALACION HIDRAULICA",200140.78,447.70217430207583,2.3613368839187944E-2,null,"INSTALACION HIDRAULICA",188558.49,272.65673260454628,1.4534611367772765E-2]
[null,"INSTALACION SANITARIA",17780.32,{"$f":"C6/C26","v":444.50799999999998},4.1477372214551819E-2,null,"INSTALACION SANITARIA",22006.55,367.38814691151919,2.425484697680301E-2,null,"INSTALACION SANITARIA",33275.64,399.85147801009373,2.1945925711894826E-2,null,null,"INSTALACION SANITARIA",48753.25,398.83221531413614,2.121812494442038E-2,null,null,"INSTALACION SANITARIA",50611.78,252.02559506025295,1.9326286142688266E-2,null,null,"INSTALACION SANITARIA",88755.68,291.90186147470894,1.6348945535998232E-2,null,null,"INSTALACION SANITARIA",134236.04,300.27746957766641,1.583767747898248E-2,null,"INSTALACION SANITARIA",167872.39,242.74450517670198,1.294006940779587E-2]
[null,"INSTALACION ELECTRICA",15128.95,{"$f":"C7/C26","v":378.22375},3.5292339528498015E-2,null,"INSTALACION ELECTRICA",54920.67,916.87262103505839,6.0531634750267342E-2,null,"INSTALACION ELECTRICA",58899.08,707.75150204277816,3.8845078086520657E-2,null,null,"INSTALACION ELECTRICA",82026.070000000007,671.02478730366499,3.5698941136432391E-2,null,null,"INSTALACION ELECTRICA",120475.4,599.91733891046704,4.6003955078339979E-2,null,null,"INSTALACION ELECTRICA",112056.31,368.53354601065575,2.0640960771805637E-2,null,null,"INSTALACION ELECTRICA",169476.45,379.10802165354329,1.9995474802317621E-2,null,"INSTALACION ELECTRICA",190217.84,275.05616287813064,1.4662518667906075E-2]
[null,"INSTALACION DE GAS",9292.02,{"$f":"C8/C26","v":232.3005},2.1676132497337495E-2,null,"INSTALACION DE GAS",10471.24,174.81202003338899,1.1541033185909592E-2,null,"INSTALACION DE GAS",10219.93,122.80617639990388,6.7402407455052797E-3,null,null,"INSTALACION DE GAS",10437.41,85.384571335078533,4.5425129499293421E-3,null,null,"INSTALACION DE GAS",10219.93,50.890996912658103,3.9025162035052725E-3,null,null,"INSTALACION DE GAS",6789.61,22.329836216536208,1.250657581584288E-3,null,null,"INSTALACION DE GAS",10269.06,22.971232999284179,1.2115826740145179E-3,null,"INSTALACION DE GAS",15403.6,22.273700040488173,1.1873522091984539E-3]
[null,"ACABADOS INTERIORES",60346.6,{"$f":"C9/C26","v":1508.665},0.14077465366667602,null,"ACABADOS INTERIORES",185374.31,3094.7297161936563,0.2043130578159886,null,"ACABADOS INTERIORES",422962.11,5082.4574621485217,0.27895166088484813,null,null,"ACABADOS INTERIORES",681161.75,5572.3310700261782,0.29645152105469968,null,null,"ACABADOS INTERIORES",588102.41,2928.5051787670554,0.22456897301111664,null,null,"ACABADOS INTERIORES",1167393.57,3839.3526606590808,0.21503585905718417,null,null,"ACABADOS INTERIORES",1765591.51,3949.5157256621328,0.20831118747997682,null,"ACABADOS INTERIORES",3239955.4,4684.9953727803804,0.24974474810397962]
[null,"ACABADOS EXTERIORES",50946.32,{"$f":"C10/C26","v":1273.6579999999999},0.1188459756405771,null,"ACABADOS EXTERIORES",95103.09,1587.6976627712854,0.1048192876653144,null,"ACABADOS EXTERIORES",111272.51,1337.0885604422012,7.338636426635442E-2,null,null,"ACABADOS EXTERIORES",241113.46,1972.4595876963351,0.10493609185154847,null,null,"ACABADOS EXTERIORES",240434.35,1197.2629718155563,9.181070190835533E-2,null,null,"ACABADOS EXTERIORES",604744.43999999994,1988.8983753206603,0.11139494298007463,null,null,"ACABADOS EXTERIORES",914628.49,2045.9656630279169,0.10791134063332582,null,"ACABADOS EXTERIORES",1385296.9,2003.1478107467176,0.10678252711124475]
[null,"ACCESOS",16127.49,{"$f":"C11/C26","v":403.18725000000001},3.7621702287498893E-2,null,"ACCESOS",35519.800000000003,592.98497495826382,3.9148676809706552E-2,null,"ACCESOS",71697.7,861.54409997596724,4.7286014571431882E-2,null,null,"ACCESOS",73223.42,599.0135798429319,3.1867899563983323E-2,null,null,"ACCESOS",87482.25,435.62518673438905,3.3405404747791731E-2,null,null,"ACCESOS",120644.91,396.77994474774715,2.2222995337148096E-2,null,null,"ACCESOS",182463.42,408.15904617036506,2.1527726813694154E-2,null,"ACCESOS",366164.8,529.47654578055415,2.8224998325762161E-2]
[null,"CANCELERIA",10002.77,{"$f":"C12/C26","v":250.06925000000001},2.3334147780610954E-2,null,"CANCELERIA",28521.91,476.15876460767947,3.1435848078692367E-2,null,"CANCELERIA",38895.760000000002,467.38476327805819,2.5652503136459295E-2,null,null,"CANCELERIA",62287.85,509.55374672774872,2.7108580121721421E-2,null,null,"CANCELERIA",67746.63,337.35001493875114,2.5869288860870514E-2,null,null,"CANCELERIA",132052.82999999999,434.29859238308222,2.4324353388362675E-2,null,null,"CANCELERIA",199719.76,446.76037938439515,2.3563695301647647E-2,null,"CANCELERIA",329103.98,475.88637283822084,2.5368247533628749E-2]
[null,"MOBILIARIO FIJO",76564.06,{"$f":"C13/C26","v":1914.1015},0.17860623514522114,null,"MOBILIARIO FIJO",56405.61,941.66293823038404,6.2168283496651211E-2,null,"MOBILIARIO FIJO",86652.44,1041.2453737082433,5.7148953738964114E-2,null,null,"MOBILIARIO FIJO",141978.12,1161.4702225130891,6.1790947055507271E-2,null,null,"MOBILIARIO FIJO",117705.85,586.12613285529335,4.4946392673174969E-2,null,null,"MOBILIARIO FIJO",424811.21,1397.1295467999737,7.8250939380685364E-2,null,null,"MOBILIARIO FIJO",642487.96,1437.2046349319969,7.5803168021117084E-2,null,"MOBILIARIO FIJO",849230.34,1227.9922783272602,6.5461029909719429E-2]
[null,"GUARDA",14950.97,{"$f":"C14/C26","v":373.77424999999999},3.487715337286381E-2,null,"GUARDA",32619.42,544.56460767946578,3.5951979777478417E-2,null,"GUARDA",73157.2,879.08195145397735,4.8248582942063085E-2,null,null,"GUARDA",63178,516.83573298429326,2.7495986375033268E-2,null,null,"GUARDA",35030.9,174.43929887461408,1.3376672332723693E-2,null,null,"GUARDA",267477.38,{"$f":"AE14/304.06","v":879.6861803591396},{"$f":"AE14/5428832.08","v":4.9269783271690362E-2},null,null,"GUARDA",404541.25,{"$f":"AK14/447.04","v":904.93300375805291},{"$f":"AK14/8475740.22","v":4.7729312071813357E-2},null,"GUARDA",457990.6,{"$f":"AP14/691.56","v":662.25721557059398},{"$f":"AP14/12973067.2","v":3.5303185664528121E-2}]
[null,null,null,null,null,null,null,null,null,null,null,null,null,null,null,null,null,null,null,null,null,null,null,null,null,null,null,null,null,"EQUIPOS",11422.79,{"$f":"AE15/304.06","v":37.567552456751962},{"$f":"AE15/5428832.08","v":2.1040971302247391E-3},null,null,"EQUIPOS",17275.3,{"$f":"AK15/447.04","v":38.643745526127411},{"$f":"AK15/8475740.22","v":2.0382054607143208E-3},null,"EQUIPOS",68324.289999999994,{"$f":"AP15/691.56","v":98.797342240731098},{"$f":"AP15/12973067.2","v":5.266625767574841E-3}]
[null,null,null,null,null,null,null,null,null,null,null,null,null,null,null,null,null,null,null,null,null,null,null,null,null,null,null,null,null,"ACCESORIAS",412602.97,1356.9787870814969,7.6002161039396152E-2,null,null,"ACCESORIAS",624029.11,1395.9133634574086,7.3625322839354315E-2,null,"ACCESORIAS",915242.69,1323.4465411533345,7.0549444930031652E-2]
[]
[]
[]
[]
[]
[]
[null,null,{"$f":"SUM(C2:C14)","v":428675.18},null,{"$f":"SUM(E2:E14)","v":1.0000000000000002},null,null,{"$f":"SUM(H2:H14)","v":907305.25},null,{"$f":"SUM(J2:J14)","v":1},null,null,{"$f":"SUM(M2:M14)","v":1516255.9299999997},null,{"$f":"SUM(O2:O14)","v":1},null,null,null,{"$f":"SUM(S2:S14)","v":2297717.1700000004},null,{"$f":"SUM(U2:U14)","v":1},null,null,null,{"$f":"SUM(Y2:Y14)","v":2618805.27},null,{"$f":"SUM(AA2:AA14)","v":1},null,null,null,{"$f":"SUM(AE2:AE16)","v":5428832.0799999991},null,{"$f":"SUM(AG2:AG16)","v":1},null,null,null,{"$f":"SUM(AK2:AK16)","v":8475740.2199999988},null,{"$f":"SUM(AM2:AM16)","v":1},null,null,{"$f":"SUM(AP2:AP16)","v":12973067.199999999},null,{"$f":"SUM(AR2:AR16)","v":1.0000000000000002}]
[]
[]
[null,null,40,null,{"$f":"C23/C26","v":10716.879499999999},null,null,59.9,null,{"$f":"H23/H26","v":15146.99916527546},null,null,80,null,{"$f":"M23/M26","v":18953.199124999996},null,null,null,120,null,{"$f":"S23/S26","v":19147.643083333336},null,null,null,200.82,null,{"$f":"Y23/Y26","v":13040.560053779505},null,null,null,300,null,{"$f":"AE23/AE26","v":18096.106933333329},null,null,null,447.04,null,{"$f":"AK23/AK26","v":18959.69090014316},null,null,691.56,null,{"$f":"AP23/AP26","v":18759.134709931172}]